Body Name,Body,Service Label,Service Code,CIPFA Detailed Expenditure Type,CIPFA Detailed Expenditure Code,Date,Transaction Number,Net Amount,Supplier Name
Nottinghamshire County Council,1111/1001,Children and Young People,CYP,Premises Related,BAA,07/06/2022,03-12734,"9,421.17",ARC Property Services Partnership L
Nottinghamshire County Council,1111/1001,Children and Young People,CYP,Premises Related,BAA,17/06/2022,03-14279,14262.68,ARC Property Services Partnership L
Nottinghamshire County Council,1111/1001,Children and Young People,CYP,Premises Related,BAA,22/06/2022,03-15890,1526.21,ARC Property Services Partnership L
Nottinghamshire County Council,1111/1001,Children and Young People,CYP,Premises Related,BAA,29/06/2022,03-16494,5132.53,ARC Property Services Partnership L
Nottinghamshire County Council,1111/1001,Children and Young People,CYP,Premises Related,BDA,01/06/2022,03-10007,1085,High Peak Borough Council
Nottinghamshire County Council,1111/1001,Children and Young People,CYP,Premises Related,BDA,01/06/2022,03-10010,886,Derbyshire Dales District Council
Nottinghamshire County Council,1111/1001,Children and Young People,CYP,Premises Related,BDA,01/06/2022,03-10014,"8,274.24",Ekmw Summit Centre
Nottinghamshire County Council,1111/1001,Children and Young People,CYP,Premises Related,BDA,01/06/2022,03-10018,920,Portland College
Nottinghamshire County Council,1111/1001,Children and Young People,CYP,Premises Related,BDA,01/06/2022,03-10020,"1,500.00",Portland College
Nottinghamshire County Council,1111/1001,Children and Young People,CYP,Premises Related,BDA,06/06/2022,03-16894,4050,Active4Today Ltd
Nottinghamshire County Council,1111/1001,Children and Young People,CYP,Premises Related,BDA,08/06/2022,03-12778,"5,842.34",Calder Conferences Ltd
Nottinghamshire County Council,1111/1001,Children and Young People,CYP,Premises Related,BEA,10/06/2022,03-10168,1693.72,Mansfield District Council
Nottinghamshire County Council,1111/1001,Children and Young People,CYP,Transport Related,CAA,01/06/2022,03-10043,93.78,UK Fuels Ltd
Nottinghamshire County Council,1111/1001,Children and Young People,CYP,Transport Related,CAA,01/06/2022,03-10076,1003,Via East Midlands Ltd
Nottinghamshire County Council,1111/1001,Children and Young People,CYP,Transport Related,CAA,08/06/2022,03-12782,622.81,Via East Midlands Ltd
Nottinghamshire County Council,1111/1001,Children and Young People,CYP,Transport Related,CAA,13/06/2022,03-13756,1668.29,Via East Midlands Ltd
Nottinghamshire County Council,1111/1001,Children and Young People,CYP,Transport Related,CAA,20/06/2022,03-14805,493.14,Via East Midlands Ltd
Nottinghamshire County Council,1111/1001,Children and Young People,CYP,Transport Related,CAA,20/06/2022,03-14812,"1,003.00",Via East Midlands Ltd
Nottinghamshire County Council,1111/1001,Children and Young People,CYP,Transport Related,CAA,29/06/2022,03-12939,211.89,UK Fuels Ltd
Nottinghamshire County Council,1111/1001,Children and Young People,CYP,Transport Related,CCA,01/06/2022,03-10111,748.97,D G Private Hire Ltd
Nottinghamshire County Council,1111/1001,Children and Young People,CYP,Transport Related,CCA,01/06/2022,03-10121,3278.45,Martins Travel
Nottinghamshire County Council,1111/1001,Children and Young People,CYP,Transport Related,CCA,01/06/2022,03-10122,3268,Horizon Travel
Nottinghamshire County Council,1111/1001,Children and Young People,CYP,Transport Related,CCA,01/06/2022,03-10123,"3,470.35",Midfield Travel
Nottinghamshire County Council,1111/1001,Children and Young People,CYP,Transport Related,CCA,01/06/2022,03-10124,"3,181.93",Midfield Travel
Nottinghamshire County Council,1111/1001,Children and Young People,CYP,Transport Related,CCA,01/06/2022,03-10125,1730.9,Bryans Taxis
Nottinghamshire County Council,1111/1001,Children and Young People,CYP,Transport Related,CCA,01/06/2022,03-10126,"1,778.40",K & R Cars
Nottinghamshire County Council,1111/1001,Children and Young People,CYP,Transport Related,CCA,01/06/2022,03-10127,"1,452.74",Meden Travel
Nottinghamshire County Council,1111/1001,Children and Young People,CYP,Transport Related,CCA,01/06/2022,03-10128,"1,384.61",Stagecoach Services Ltd
Nottinghamshire County Council,1111/1001,Children and Young People,CYP,Transport Related,CCA,01/06/2022,03-10132,3513.29,L A Travel
Nottinghamshire County Council,1111/1001,Children and Young People,CYP,Transport Related,CCA,01/06/2022,03-10133,"2,007.18",Travel Liner
Nottinghamshire County Council,1111/1001,Children and Young People,CYP,Transport Related,CCA,01/06/2022,03-10134,1934.4,A Travel
Nottinghamshire County Council,1111/1001,Children and Young People,CYP,Transport Related,CCA,01/06/2022,03-10135,"3,378.96",APC Travel
Nottinghamshire County Council,1111/1001,Children and Young People,CYP,Transport Related,CCA,01/06/2022,03-10142,2490.9,Do Not Use -Cathedral Cars Lincoln
Nottinghamshire County Council,1111/1001,Children and Young People,CYP,Transport Related,CCA,01/06/2022,03-10143,2173.6,Carriage Solutions Ltd
Nottinghamshire County Council,1111/1001,Children and Young People,CYP,Transport Related,CCA,01/06/2022,03-10144,1383.2,Carriage Solutions Ltd
Nottinghamshire County Council,1111/1001,Children and Young People,CYP,Transport Related,CCA,01/06/2022,03-10145,"1,007.76",Carriage Solutions Ltd
Nottinghamshire County Council,1111/1001,Children and Young People,CYP,Transport Related,CCA,01/06/2022,03-10146,"1,857.44",Carriage Solutions Ltd
Nottinghamshire County Council,1111/1001,Children and Young People,CYP,Transport Related,CCA,01/06/2022,03-10147,700.96,Carriage Solutions Ltd
Nottinghamshire County Council,1111/1001,Children and Young People,CYP,Transport Related,CCA,01/06/2022,03-10148,1363.44,Carriage Solutions Ltd
Nottinghamshire County Council,1111/1001,Children and Young People,CYP,Transport Related,CCA,01/06/2022,03-10149,"1,146.08",Carriage Solutions Ltd
Nottinghamshire County Council,1111/1001,Children and Young People,CYP,Transport Related,CCA,01/06/2022,03-10150,"1,480.00",Carriage Solutions Ltd
Nottinghamshire County Council,1111/1001,Children and Young People,CYP,Transport Related,CCA,01/06/2022,03-10151,915.2,Florin Cocut T/A Stars Taxi
Nottinghamshire County Council,1111/1001,Children and Young People,CYP,Transport Related,CCA,01/06/2022,03-10152,1809.6,Home James Cars
Nottinghamshire County Council,1111/1001,Children and Young People,CYP,Transport Related,CCA,01/06/2022,03-10153,2119.92,Home James Cars
Nottinghamshire County Council,1111/1001,Children and Young People,CYP,Transport Related,CCA,01/06/2022,03-10155,"3,355.21",D n K Travel
Nottinghamshire County Council,1111/1001,Children and Young People,CYP,Transport Related,CCA,01/06/2022,03-10156,"2,568.80",Bryans Taxis
Nottinghamshire County Council,1111/1001,Children and Young People,CYP,Transport Related,CCA,07/06/2022,03-12739,3504.86,Sharpes Of Nottingham
Nottinghamshire County Council,1111/1001,Children and Young People,CYP,Transport Related,CCA,07/06/2022,03-12740,"3,457.05",Sharpes Of Nottingham
Nottinghamshire County Council,1111/1001,Children and Young People,CYP,Transport Related,CCA,07/06/2022,03-12741,"4,053.65",Sharpes Of Nottingham
Nottinghamshire County Council,1111/1001,Children and Young People,CYP,Transport Related,CCA,07/06/2022,03-12742,4355.17,Sharpes Of Nottingham
Nottinghamshire County Council,1111/1001,Children and Young People,CYP,Transport Related,CCA,07/06/2022,03-12743,"4,142.88",Sharpes Of Nottingham
Nottinghamshire County Council,1111/1001,Children and Young People,CYP,Transport Related,CCA,07/06/2022,03-12745,3026.7,Sharpes Of Nottingham
Nottinghamshire County Council,1111/1001,Children and Young People,CYP,Transport Related,CCA,07/06/2022,03-12746,3948.6,Sharpes Of Nottingham
Nottinghamshire County Council,1111/1001,Children and Young People,CYP,Transport Related,CCA,07/06/2022,03-12747,"1,601.60",Ace Of Mansfield Ltd
Nottinghamshire County Council,1111/1001,Children and Young People,CYP,Transport Related,CCA,07/06/2022,03-12748,2824.92,Arnold Acorn Travel
Nottinghamshire County Council,1111/1001,Children and Young People,CYP,Transport Related,CCA,07/06/2022,03-12750,"3,135.57",Bridges Transport Ltd
Nottinghamshire County Council,1111/1001,Children and Young People,CYP,Transport Related,CCA,07/06/2022,03-12751,2904.72,Bridges Transport Ltd
Nottinghamshire County Council,1111/1001,Children and Young People,CYP,Transport Related,CCA,07/06/2022,03-12752,"2,390.96",Bridges Transport Ltd
Nottinghamshire County Council,1111/1001,Children and Young People,CYP,Transport Related,CCA,07/06/2022,03-12753,1649.96,Bridges Transport Ltd
Nottinghamshire County Council,1111/1001,Children and Young People,CYP,Transport Related,CCA,07/06/2022,03-12754,2432.76,Bridges Transport Ltd
Nottinghamshire County Council,1111/1001,Children and Young People,CYP,Transport Related,CCA,07/06/2022,03-12755,2355.43,Bridges Transport Ltd
Nottinghamshire County Council,1111/1001,Children and Young People,CYP,Transport Related,CCA,07/06/2022,03-12756,"3,398.72",Bridges Transport Ltd
Nottinghamshire County Council,1111/1001,Children and Young People,CYP,Transport Related,CCA,07/06/2022,03-12757,2509.52,Bridges Transport Ltd
Nottinghamshire County Council,1111/1001,Children and Young People,CYP,Transport Related,CCA,07/06/2022,03-12760,"8,978.71",AOT Coaches Nottingham LLP
Nottinghamshire County Council,1111/1001,Children and Young People,CYP,Transport Related,CCA,07/06/2022,03-12761,2901.81,AOT Coaches Nottingham LLP
Nottinghamshire County Council,1111/1001,Children and Young People,CYP,Transport Related,CCA,07/06/2022,03-12762,2259.86,AOT Coaches Nottingham LLP
Nottinghamshire County Council,1111/1001,Children and Young People,CYP,Transport Related,CCA,07/06/2022,03-12763,"2,947.56",AOT Coaches Nottingham LLP
Nottinghamshire County Council,1111/1001,Children and Young People,CYP,Transport Related,CCA,07/06/2022,03-12764,3396.82,Aj Travel
Nottinghamshire County Council,1111/1001,Children and Young People,CYP,Transport Related,CCA,07/06/2022,03-12767,3208.34,Unity Coaches Ltd
Nottinghamshire County Council,1111/1001,Children and Young People,CYP,Transport Related,CCA,08/06/2022,03-12765,2074.8,Sean's Taxi Services
Nottinghamshire County Council,1111/1001,Children and Young People,CYP,Transport Related,CCA,10/06/2022,03-12908,1076.4,D G Private Hire Ltd
Nottinghamshire County Council,1111/1001,Children and Young People,CYP,Transport Related,CCA,10/06/2022,03-12909,671.84,D G Private Hire Ltd
Nottinghamshire County Council,1111/1001,Children and Young People,CYP,Transport Related,CCA,10/06/2022,03-12910,1383.2,D G Private Hire Ltd
Nottinghamshire County Council,1111/1001,Children and Young People,CYP,Transport Related,CCA,10/06/2022,03-12911,968.24,D G Private Hire Ltd
Nottinghamshire County Council,1111/1001,Children and Young People,CYP,Transport Related,CCA,10/06/2022,03-12912,1092,D G Private Hire Ltd
Nottinghamshire County Council,1111/1001,Children and Young People,CYP,Transport Related,CCA,10/06/2022,03-12913,2311.92,D G Private Hire Ltd
Nottinghamshire County Council,1111/1001,Children and Young People,CYP,Transport Related,CCA,10/06/2022,03-12914,2074.8,D G Private Hire Ltd
Nottinghamshire County Council,1111/1001,Children and Young People,CYP,Transport Related,CCA,10/06/2022,03-12916,1872,D G Private Hire Ltd
Nottinghamshire County Council,1111/1001,Children and Young People,CYP,Transport Related,CCA,10/06/2022,03-12917,948.48,D G Private Hire Ltd
Nottinghamshire County Council,1111/1001,Children and Young People,CYP,Transport Related,CCA,10/06/2022,03-12919,4555.04,Stagecoach Services Ltd
Nottinghamshire County Council,1111/1001,Children and Young People,CYP,Transport Related,CCA,10/06/2022,03-12921,2674.24,Stagecoach Services Ltd
Nottinghamshire County Council,1111/1001,Children and Young People,CYP,Transport Related,CCA,10/06/2022,03-12923,5677.65,Stagecoach Services Ltd
Nottinghamshire County Council,1111/1001,Children and Young People,CYP,Transport Related,CCA,10/06/2022,03-12925,4476.4,Stagecoach Services Ltd
Nottinghamshire County Council,1111/1001,Children and Young People,CYP,Transport Related,CCA,10/06/2022,03-12927,1212.64,Ideal Cars (Private Hire) Ltd
Nottinghamshire County Council,1111/1001,Children and Young People,CYP,Transport Related,CCA,10/06/2022,03-12929,638.17,Ideal Cars (Private Hire) Ltd
Nottinghamshire County Council,1111/1001,Children and Young People,CYP,Transport Related,CCA,10/06/2022,03-12931,988,Ideal Cars (Private Hire) Ltd
Nottinghamshire County Council,1111/1001,Children and Young People,CYP,Transport Related,CCA,10/06/2022,03-12932,1462.24,Ideal Cars (Private Hire) Ltd
Nottinghamshire County Council,1111/1001,Children and Young People,CYP,Transport Related,CCA,10/06/2022,03-12933,990.08,Ideal Cars (Private Hire) Ltd
Nottinghamshire County Council,1111/1001,Children and Young People,CYP,Transport Related,CCA,10/06/2022,03-12934,2173.6,Ideal Cars (Private Hire) Ltd
Nottinghamshire County Council,1111/1001,Children and Young People,CYP,Transport Related,CCA,10/06/2022,03-12935,2173.6,Ideal Cars (Private Hire) Ltd
Nottinghamshire County Council,1111/1001,Children and Young People,CYP,Transport Related,CCA,10/06/2022,03-12936,973.44,Ideal Cars (Private Hire) Ltd
Nottinghamshire County Council,1111/1001,Children and Young People,CYP,Transport Related,CCA,10/06/2022,03-12937,815.36,Ideal Cars (Private Hire) Ltd
Nottinghamshire County Council,1111/1001,Children and Young People,CYP,Transport Related,CCA,10/06/2022,03-12938,2092.2,Ideal Cars (Private Hire) Ltd
Nottinghamshire County Council,1111/1001,Children and Young People,CYP,Transport Related,CCA,10/06/2022,03-13361,1277.4,Southside Cars Ltd
Nottinghamshire County Council,1111/1001,Children and Young People,CYP,Transport Related,CCA,10/06/2022,03-13362,1383.8,Southside Cars Ltd
Nottinghamshire County Council,1111/1001,Children and Young People,CYP,Transport Related,CCA,10/06/2022,03-13363,1456,Southside Cars Ltd
Nottinghamshire County Council,1111/1001,Children and Young People,CYP,Transport Related,CCA,10/06/2022,03-13364,1404,Southside Cars Ltd
Nottinghamshire County Council,1111/1001,Children and Young People,CYP,Transport Related,CCA,10/06/2022,03-13365,1255.2,Southside Cars Ltd
Nottinghamshire County Council,1111/1001,Children and Young People,CYP,Transport Related,CCA,10/06/2022,03-13366,728,Southside Cars Ltd
Nottinghamshire County Council,1111/1001,Children and Young People,CYP,Transport Related,CCA,10/06/2022,03-13367,1645.56,Southside Cars Ltd
Nottinghamshire County Council,1111/1001,Children and Young People,CYP,Transport Related,CCA,10/06/2022,03-13369,1310.4,Southside Cars Ltd
Nottinghamshire County Council,1111/1001,Children and Young People,CYP,Transport Related,CCA,10/06/2022,03-13370,2134.08,Southside Cars Ltd
Nottinghamshire County Council,1111/1001,Children and Young People,CYP,Transport Related,CCA,10/06/2022,03-13371,2147.76,Southside Cars Ltd
Nottinghamshire County Council,1111/1001,Children and Young People,CYP,Transport Related,CCA,10/06/2022,03-13372,1722.35,6 Five 2s
Nottinghamshire County Council,1111/1001,Children and Young People,CYP,Transport Related,CCA,10/06/2022,03-13373,2173.6,6 Five 2s
Nottinghamshire County Council,1111/1001,Children and Young People,CYP,Transport Related,CCA,10/06/2022,03-13374,790.4,6 Five 2s
Nottinghamshire County Council,1111/1001,Children and Young People,CYP,Transport Related,CCA,10/06/2022,03-13375,1936.48,6 Five 2s
Nottinghamshire County Council,1111/1001,Children and Young People,CYP,Transport Related,CCA,10/06/2022,03-13376,1521,6 Five 2s
Nottinghamshire County Council,1111/1001,Children and Young People,CYP,Transport Related,CCA,10/06/2022,03-13379,988,6 Five 2s
Nottinghamshire County Council,1111/1001,Children and Young People,CYP,Transport Related,CCA,10/06/2022,03-13380,728,6 Five 2s
Nottinghamshire County Council,1111/1001,Children and Young People,CYP,Transport Related,CCA,10/06/2022,03-13381,1383.2,6 Five 2s
Nottinghamshire County Council,1111/1001,Children and Young People,CYP,Transport Related,CCA,10/06/2022,03-13382,1642.68,6 Five 2s
Nottinghamshire County Council,1111/1001,Children and Young People,CYP,Transport Related,CCA,10/06/2022,03-13383,1677.32,6 Five 2s
Nottinghamshire County Council,1111/1001,Children and Young People,CYP,Transport Related,CCA,10/06/2022,03-13384,672.36,6 Five 2s
Nottinghamshire County Council,1111/1001,Children and Young People,CYP,Transport Related,CCA,10/06/2022,03-13385,680.58,6 Five 2s
Nottinghamshire County Council,1111/1001,Children and Young People,CYP,Transport Related,CCA,10/06/2022,03-13386,733.02,6 Five 2s
Nottinghamshire County Council,1111/1001,Children and Young People,CYP,Transport Related,CCA,10/06/2022,03-13387,1248,6 Five 2s
Nottinghamshire County Council,1111/1001,Children and Young People,CYP,Transport Related,CCA,10/06/2022,03-13388,948.48,6 Five 2s
Nottinghamshire County Council,1111/1001,Children and Young People,CYP,Transport Related,CCA,10/06/2022,03-13389,869.44,6 Five 2s
Nottinghamshire County Council,1111/1001,Children and Young People,CYP,Transport Related,CCA,10/06/2022,03-13390,1162.2,6 Five 2s
Nottinghamshire County Council,1111/1001,Children and Young People,CYP,Transport Related,CCA,10/06/2022,03-13391,869.44,6 Five 2s
Nottinghamshire County Council,1111/1001,Children and Young People,CYP,Transport Related,CCA,10/06/2022,03-13392,"1,976.00",6 Five 2s
Nottinghamshire County Council,1111/1001,Children and Young People,CYP,Transport Related,CCA,10/06/2022,03-13393,1383.2,6 Five 2s
Nottinghamshire County Council,1111/1001,Children and Young People,CYP,Transport Related,CCA,10/06/2022,03-13394,1580.8,6 Five 2s
Nottinghamshire County Council,1111/1001,Children and Young People,CYP,Transport Related,CCA,10/06/2022,03-13395,711.36,6 Five 2s
Nottinghamshire County Council,1111/1001,Children and Young People,CYP,Transport Related,CCA,10/06/2022,03-13396,"1,753.89",6 Five 2s
Nottinghamshire County Council,1111/1001,Children and Young People,CYP,Transport Related,CCA,10/06/2022,03-13397,1067.04,6 Five 2s
Nottinghamshire County Council,1111/1001,Children and Young People,CYP,Transport Related,CCA,10/06/2022,03-13398,1383.2,6 Five 2s
Nottinghamshire County Council,1111/1001,Children and Young People,CYP,Transport Related,CCA,10/06/2022,03-13399,3972.52,All Wayz Travel
Nottinghamshire County Council,1111/1001,Children and Young People,CYP,Transport Related,CCA,10/06/2022,03-13400,"2,279.43",All Wayz Travel
Nottinghamshire County Council,1111/1001,Children and Young People,CYP,Transport Related,CCA,10/06/2022,03-13401,"2,371.20",All Wayz Travel
Nottinghamshire County Council,1111/1001,Children and Young People,CYP,Transport Related,CCA,10/06/2022,03-13402,"2,568.80",All Wayz Travel
Nottinghamshire County Council,1111/1001,Children and Young People,CYP,Transport Related,CCA,10/06/2022,03-13403,3680.49,All Wayz Travel
Nottinghamshire County Council,1111/1001,Children and Young People,CYP,Transport Related,CCA,10/06/2022,03-13404,"1,580.80",All Wayz Travel
Nottinghamshire County Council,1111/1001,Children and Young People,CYP,Transport Related,CCA,10/06/2022,03-13405,1221.7,200 Cars Ltd
Nottinghamshire County Council,1111/1001,Children and Young People,CYP,Transport Related,CCA,10/06/2022,03-13406,"1,185.60",200 Cars Ltd
Nottinghamshire County Council,1111/1001,Children and Young People,CYP,Transport Related,CCA,10/06/2022,03-13407,"1,497.60",200 Cars Ltd
Nottinghamshire County Council,1111/1001,Children and Young People,CYP,Transport Related,CCA,10/06/2022,03-13409,869.44,200 Cars Ltd
Nottinghamshire County Council,1111/1001,Children and Young People,CYP,Transport Related,CCA,10/06/2022,03-13410,1778.4,200 Cars Ltd
Nottinghamshire County Council,1111/1001,Children and Young People,CYP,Transport Related,CCA,10/06/2022,03-13413,539.2,Ace Of Mansfield Ltd
Nottinghamshire County Council,1111/1001,Children and Young People,CYP,Transport Related,CCA,10/06/2022,03-13416,889.2,Acorn Contracts
Nottinghamshire County Council,1111/1001,Children and Young People,CYP,Transport Related,CCA,10/06/2022,03-13417,988,Acorn Contracts
Nottinghamshire County Council,1111/1001,Children and Young People,CYP,Transport Related,CCA,10/06/2022,03-13418,948.48,Acorn Contracts
Nottinghamshire County Council,1111/1001,Children and Young People,CYP,Transport Related,CCA,10/06/2022,03-13419,1520,Acorn Contracts
Nottinghamshire County Council,1111/1001,Children and Young People,CYP,Transport Related,CCA,10/06/2022,03-13420,"3,313.79",Arrow Specialised Transport Ltd
Nottinghamshire County Council,1111/1001,Children and Young People,CYP,Transport Related,CCA,10/06/2022,03-13421,4208.88,Arrow Specialised Transport Ltd
Nottinghamshire County Council,1111/1001,Children and Young People,CYP,Transport Related,CCA,10/06/2022,03-13422,"3,210.43",Arrow Specialised Transport Ltd
Nottinghamshire County Council,1111/1001,Children and Young People,CYP,Transport Related,CCA,10/06/2022,03-13423,3818.81,Arrow Specialised Transport Ltd
Nottinghamshire County Council,1111/1001,Children and Young People,CYP,Transport Related,CCA,10/06/2022,03-13424,3695.5,Arrow Specialised Transport Ltd
Nottinghamshire County Council,1111/1001,Children and Young People,CYP,Transport Related,CCA,10/06/2022,03-13425,2418.7,Arrow Specialised Transport Ltd
Nottinghamshire County Council,1111/1001,Children and Young People,CYP,Transport Related,CCA,10/06/2022,03-13426,2767.16,Arrow Specialised Transport Ltd
Nottinghamshire County Council,1111/1001,Children and Young People,CYP,Transport Related,CCA,10/06/2022,03-13427,3966.63,Arrow Specialised Transport Ltd
Nottinghamshire County Council,1111/1001,Children and Young People,CYP,Transport Related,CCA,10/06/2022,03-13428,"5,517.22",Arrow Specialised Transport Ltd
Nottinghamshire County Council,1111/1001,Children and Young People,CYP,Transport Related,CCA,10/06/2022,03-13429,2687.36,Arrow Specialised Transport Ltd
Nottinghamshire County Council,1111/1001,Children and Young People,CYP,Transport Related,CCA,10/06/2022,03-13430,4075.5,Arrow Specialised Transport Ltd
Nottinghamshire County Council,1111/1001,Children and Young People,CYP,Transport Related,CCA,10/06/2022,03-13431,4203.18,Arrow Specialised Transport Ltd
Nottinghamshire County Council,1111/1001,Children and Young People,CYP,Transport Related,CCA,10/06/2022,03-13432,2485.77,Arrow Specialised Transport Ltd
Nottinghamshire County Council,1111/1001,Children and Young People,CYP,Transport Related,CCA,10/06/2022,03-13433,3211.95,Arrow Specialised Transport Ltd
Nottinghamshire County Council,1111/1001,Children and Young People,CYP,Transport Related,CCA,10/06/2022,03-13434,2738.66,Arrow Specialised Transport Ltd
Nottinghamshire County Council,1111/1001,Children and Young People,CYP,Transport Related,CCA,10/06/2022,03-13435,"2,461.07",Arrow Specialised Transport Ltd
Nottinghamshire County Council,1111/1001,Children and Young People,CYP,Transport Related,CCA,10/06/2022,03-13436,"3,383.33",Arrow Specialised Transport Ltd
Nottinghamshire County Council,1111/1001,Children and Young People,CYP,Transport Related,CCA,10/06/2022,03-13437,"3,137.85",Arrow Specialised Transport Ltd
Nottinghamshire County Council,1111/1001,Children and Young People,CYP,Transport Related,CCA,10/06/2022,03-13438,"2,276.39",Arrow Specialised Transport Ltd
Nottinghamshire County Council,1111/1001,Children and Young People,CYP,Transport Related,CCA,10/06/2022,03-13439,3276.17,Arrow Specialised Transport Ltd
Nottinghamshire County Council,1111/1001,Children and Young People,CYP,Transport Related,CCA,10/06/2022,03-13440,"3,381.24",Arrow Specialised Transport Ltd
Nottinghamshire County Council,1111/1001,Children and Young People,CYP,Transport Related,CCA,10/06/2022,03-13442,"2,328.26",Arrow Specialised Transport Ltd
Nottinghamshire County Council,1111/1001,Children and Young People,CYP,Transport Related,CCA,10/06/2022,03-13443,2485.77,Arrow Specialised Transport Ltd
Nottinghamshire County Council,1111/1001,Children and Young People,CYP,Transport Related,CCA,10/06/2022,03-13444,3426.84,Arrow Specialised Transport Ltd
Nottinghamshire County Council,1111/1001,Children and Young People,CYP,Transport Related,CCA,10/06/2022,03-13445,2537.26,Arrow Specialised Transport Ltd
Nottinghamshire County Council,1111/1001,Children and Young People,CYP,Transport Related,CCA,10/06/2022,03-13446,2908.33,Arrow Specialised Transport Ltd
Nottinghamshire County Council,1111/1001,Children and Young People,CYP,Transport Related,CCA,10/06/2022,03-13447,"2,622.19",Arrow Specialised Transport Ltd
Nottinghamshire County Council,1111/1001,Children and Young People,CYP,Transport Related,CCA,10/06/2022,03-13448,"3,329.18",Arrow Specialised Transport Ltd
Nottinghamshire County Council,1111/1001,Children and Young People,CYP,Transport Related,CCA,10/06/2022,03-13449,"1,755.41",Arrow Specialised Transport Ltd
Nottinghamshire County Council,1111/1001,Children and Young People,CYP,Transport Related,CCA,10/06/2022,03-13450,"1,863.71",Arrow Specialised Transport Ltd
Nottinghamshire County Council,1111/1001,Children and Young People,CYP,Transport Related,CCA,10/06/2022,03-13451,"2,534.79",Arrow Specialised Transport Ltd
Nottinghamshire County Council,1111/1001,Children and Young People,CYP,Transport Related,CCA,10/06/2022,03-13452,"2,606.04",Arrow Specialised Transport Ltd
Nottinghamshire County Council,1111/1001,Children and Young People,CYP,Transport Related,CCA,10/06/2022,03-13453,"2,653.73",Arrow Specialised Transport Ltd
Nottinghamshire County Council,1111/1001,Children and Young People,CYP,Transport Related,CCA,10/06/2022,03-13454,"2,547.90",Arrow Specialised Transport Ltd
Nottinghamshire County Council,1111/1001,Children and Young People,CYP,Transport Related,CCA,10/06/2022,03-13455,"3,465.98",Arrow Specialised Transport Ltd
Nottinghamshire County Council,1111/1001,Children and Young People,CYP,Transport Related,CCA,10/06/2022,03-13456,"2,899.59",Arrow Specialised Transport Ltd
Nottinghamshire County Council,1111/1001,Children and Young People,CYP,Transport Related,CCA,10/06/2022,03-13457,"2,658.86",Arrow Specialised Transport Ltd
Nottinghamshire County Council,1111/1001,Children and Young People,CYP,Transport Related,CCA,10/06/2022,03-13458,"2,450.24",Arrow Specialised Transport Ltd
Nottinghamshire County Council,1111/1001,Children and Young People,CYP,Transport Related,CCA,10/06/2022,03-13459,"3,002.76",Arrow Specialised Transport Ltd
Nottinghamshire County Council,1111/1001,Children and Young People,CYP,Transport Related,CCA,10/06/2022,03-13461,"2,201.34",Arrow Specialised Transport Ltd
Nottinghamshire County Council,1111/1001,Children and Young People,CYP,Transport Related,CCA,10/06/2022,03-13462,"1,790.18",Arrow Specialised Transport Ltd
Nottinghamshire County Council,1111/1001,Children and Young People,CYP,Transport Related,CCA,10/06/2022,03-13463,"2,608.32",Arrow Specialised Transport Ltd
Nottinghamshire County Council,1111/1001,Children and Young People,CYP,Transport Related,CCA,10/06/2022,03-13464,"3,079.33",Arrow Specialised Transport Ltd
Nottinghamshire County Council,1111/1001,Children and Young People,CYP,Transport Related,CCA,10/06/2022,03-13465,"2,948.23",Arrow Specialised Transport Ltd
Nottinghamshire County Council,1111/1001,Children and Young People,CYP,Transport Related,CCA,10/06/2022,03-13466,"3,729.70",Arrow Specialised Transport Ltd
Nottinghamshire County Council,1111/1001,Children and Young People,CYP,Transport Related,CCA,10/06/2022,03-13467,"4,287.92",Arrow Specialised Transport Ltd
Nottinghamshire County Council,1111/1001,Children and Young People,CYP,Transport Related,CCA,10/06/2022,03-13468,"5,388.59",Arrow Specialised Transport Ltd
Nottinghamshire County Council,1111/1001,Children and Young People,CYP,Transport Related,CCA,10/06/2022,03-13469,"2,138.45",Arrow Specialised Transport Ltd
Nottinghamshire County Council,1111/1001,Children and Young People,CYP,Transport Related,CCA,10/06/2022,03-13470,"3,069.83",Arrow Specialised Transport Ltd
Nottinghamshire County Council,1111/1001,Children and Young People,CYP,Transport Related,CCA,10/06/2022,03-13471,"4,065.05",Arrow Specialised Transport Ltd
Nottinghamshire County Council,1111/1001,Children and Young People,CYP,Transport Related,CCA,10/06/2022,03-13472,"2,759.75",Arrow Specialised Transport Ltd
Nottinghamshire County Council,1111/1001,Children and Young People,CYP,Transport Related,CCA,10/06/2022,03-13473,"4,424.34",Arrow Specialised Transport Ltd
Nottinghamshire County Council,1111/1001,Children and Young People,CYP,Transport Related,CCA,10/06/2022,03-13475,"2,165.80",Arrow Specialised Transport Ltd
Nottinghamshire County Council,1111/1001,Children and Young People,CYP,Transport Related,CCA,10/06/2022,03-13476,"2,568.80",Arrow Specialised Transport Ltd
Nottinghamshire County Council,1111/1001,Children and Young People,CYP,Transport Related,CCA,10/06/2022,03-13477,"3,806.40",Arrow Specialised Transport Ltd
Nottinghamshire County Council,1111/1001,Children and Young People,CYP,Transport Related,CCA,10/06/2022,03-13478,"2,626.00",Arrow Specialised Transport Ltd
Nottinghamshire County Council,1111/1001,Children and Young People,CYP,Transport Related,CCA,10/06/2022,03-13479,"2,637.90",Arrow Specialised Transport Ltd
Nottinghamshire County Council,1111/1001,Children and Young People,CYP,Transport Related,CCA,10/06/2022,03-13481,"1,620.50",Arrow Specialised Transport Ltd
Nottinghamshire County Council,1111/1001,Children and Young People,CYP,Transport Related,CCA,10/06/2022,03-13482,"4,793.70",Arrow Specialised Transport Ltd
Nottinghamshire County Council,1111/1001,Children and Young People,CYP,Transport Related,CCA,10/06/2022,03-13483,"3,311.70",Arrow Specialised Transport Ltd
Nottinghamshire County Council,1111/1001,Children and Young People,CYP,Transport Related,CCA,10/06/2022,03-13484,"3,414.49",Arrow Specialised Transport Ltd
Nottinghamshire County Council,1111/1001,Children and Young People,CYP,Transport Related,CCA,10/06/2022,03-13486,"2,246.75",Arrow Specialised Transport Ltd
Nottinghamshire County Council,1111/1001,Children and Young People,CYP,Transport Related,CCA,10/06/2022,03-13487,"4,880.72",Arrow Specialised Transport Ltd
Nottinghamshire County Council,1111/1001,Children and Young People,CYP,Transport Related,CCA,10/06/2022,03-13488,"2,772.64",Arrow Specialised Transport Ltd
Nottinghamshire County Council,1111/1001,Children and Young People,CYP,Transport Related,CCA,10/06/2022,03-13489,"2,623.14",Arrow Specialised Transport Ltd
Nottinghamshire County Council,1111/1001,Children and Young People,CYP,Transport Related,CCA,10/06/2022,03-13490,"3,422.81",Arrow Specialised Transport Ltd
Nottinghamshire County Council,1111/1001,Children and Young People,CYP,Transport Related,CCA,10/06/2022,03-13491,"5,080.22",Arrow Specialised Transport Ltd
Nottinghamshire County Council,1111/1001,Children and Young People,CYP,Transport Related,CCA,10/06/2022,03-13492,"2,604.33",Arrow Specialised Transport Ltd
Nottinghamshire County Council,1111/1001,Children and Young People,CYP,Transport Related,CCA,10/06/2022,03-13493,"2,821.69",Arrow Specialised Transport Ltd
Nottinghamshire County Council,1111/1001,Children and Young People,CYP,Transport Related,CCA,10/06/2022,03-13494,"2,535.17",Arrow Specialised Transport Ltd
Nottinghamshire County Council,1111/1001,Children and Young People,CYP,Transport Related,CCA,10/06/2022,03-13495,"2,428.20",Arrow Specialised Transport Ltd
Nottinghamshire County Council,1111/1001,Children and Young People,CYP,Transport Related,CCA,10/06/2022,03-13496,"2,740.18",Arrow Specialised Transport Ltd
Nottinghamshire County Council,1111/1001,Children and Young People,CYP,Transport Related,CCA,10/06/2022,03-13497,"2,667.60",Arrow Specialised Transport Ltd
Nottinghamshire County Council,1111/1001,Children and Young People,CYP,Transport Related,CCA,10/06/2022,03-13498,"3,043.04",Arrow Specialised Transport Ltd
Nottinghamshire County Council,1111/1001,Children and Young People,CYP,Transport Related,CCA,10/06/2022,03-13499,"2,568.80",Ng11 Cars
Nottinghamshire County Council,1111/1001,Children and Young People,CYP,Transport Related,CCA,10/06/2022,03-13500,"1,659.84",Ng11 Cars
Nottinghamshire County Council,1111/1001,Children and Young People,CYP,Transport Related,CCA,10/06/2022,03-13501,"1,185.60",Ng11 Cars
Nottinghamshire County Council,1111/1001,Children and Young People,CYP,Transport Related,CCA,10/06/2022,03-13502,936,Ng11 Cars
Nottinghamshire County Council,1111/1001,Children and Young People,CYP,Transport Related,CCA,10/06/2022,03-13503,"1,797.12",Ng11 Cars
Nottinghamshire County Council,1111/1001,Children and Young People,CYP,Transport Related,CCA,10/06/2022,03-13504,"1,580.80",Ng11 Cars
Nottinghamshire County Council,1111/1001,Children and Young People,CYP,Transport Related,CCA,10/06/2022,03-13505,900,Ng11 Cars
Nottinghamshire County Council,1111/1001,Children and Young People,CYP,Transport Related,CCA,10/06/2022,03-13506,"1,106.56",Ng11 Cars
Nottinghamshire County Council,1111/1001,Children and Young People,CYP,Transport Related,CCA,10/06/2022,03-13507,790.4,Ng11 Cars
Nottinghamshire County Council,1111/1001,Children and Young People,CYP,Transport Related,CCA,10/06/2022,03-13509,"3,985.06",BN Gibson Ltd
Nottinghamshire County Council,1111/1001,Children and Young People,CYP,Transport Related,CCA,10/06/2022,03-13510,"4,431.75",BN Gibson Ltd
Nottinghamshire County Council,1111/1001,Children and Young People,CYP,Transport Related,CCA,10/06/2022,03-13511,"4,046.05",BN Gibson Ltd
Nottinghamshire County Council,1111/1001,Children and Young People,CYP,Transport Related,CCA,10/06/2022,03-13512,"2,691.16",BN Gibson Ltd
Nottinghamshire County Council,1111/1001,Children and Young People,CYP,Transport Related,CCA,10/06/2022,03-13513,"3,547.11",BN Gibson Ltd
Nottinghamshire County Council,1111/1001,Children and Young People,CYP,Transport Related,CCA,10/06/2022,03-13514,"2,951.46",BN Gibson Ltd
Nottinghamshire County Council,1111/1001,Children and Young People,CYP,Transport Related,CCA,10/06/2022,03-13515,"3,211.95",BN Gibson Ltd
Nottinghamshire County Council,1111/1001,Children and Young People,CYP,Transport Related,CCA,10/06/2022,03-13516,"3,499.99",BN Gibson Ltd
Nottinghamshire County Council,1111/1001,Children and Young People,CYP,Transport Related,CCA,10/06/2022,03-13517,"2,885.91",BN Gibson Ltd
Nottinghamshire County Council,1111/1001,Children and Young People,CYP,Transport Related,CCA,10/06/2022,03-13518,"4,673.43",BN Gibson Ltd
Nottinghamshire County Council,1111/1001,Children and Young People,CYP,Transport Related,CCA,10/06/2022,03-13519,"2,691.16",BN Gibson Ltd
Nottinghamshire County Council,1111/1001,Children and Young People,CYP,Transport Related,CCA,10/06/2022,03-13520,"4,372.85",BN Gibson Ltd
Nottinghamshire County Council,1111/1001,Children and Young People,CYP,Transport Related,CCA,10/06/2022,03-13521,"4,313.24",BN Gibson Ltd
Nottinghamshire County Council,1111/1001,Children and Young People,CYP,Transport Related,CCA,10/06/2022,03-13522,"4,091.84",BN Gibson Ltd
Nottinghamshire County Council,1111/1001,Children and Young People,CYP,Transport Related,CCA,10/06/2022,03-13523,"3,389.76",BN Gibson Ltd
Nottinghamshire County Council,1111/1001,Children and Young People,CYP,Transport Related,CCA,10/06/2022,03-13524,"4,269.30",BN Gibson Ltd
Nottinghamshire County Council,1111/1001,Children and Young People,CYP,Transport Related,CCA,10/06/2022,03-13525,"3,921.22",BN Gibson Ltd
Nottinghamshire County Council,1111/1001,Children and Young People,CYP,Transport Related,CCA,10/06/2022,03-13526,"3,221.83",BN Gibson Ltd
Nottinghamshire County Council,1111/1001,Children and Young People,CYP,Transport Related,CCA,10/06/2022,03-13527,"2,691.16",BN Gibson Ltd
Nottinghamshire County Council,1111/1001,Children and Young People,CYP,Transport Related,CCA,10/06/2022,03-13528,"2,796.12",BN Gibson Ltd
Nottinghamshire County Council,1111/1001,Children and Young People,CYP,Transport Related,CCA,10/06/2022,03-13529,"3,211.95",BN Gibson Ltd
Nottinghamshire County Council,1111/1001,Children and Young People,CYP,Transport Related,CCA,10/06/2022,03-13530,"3,471.68",BN Gibson Ltd
Nottinghamshire County Council,1111/1001,Children and Young People,CYP,Transport Related,CCA,10/06/2022,03-13531,"2,927.33",BN Gibson Ltd
Nottinghamshire County Council,1111/1001,Children and Young People,CYP,Transport Related,CCA,10/06/2022,03-13532,"2,951.46",BN Gibson Ltd
Nottinghamshire County Council,1111/1001,Children and Young People,CYP,Transport Related,CCA,10/06/2022,03-13533,"2,951.46",BN Gibson Ltd
Nottinghamshire County Council,1111/1001,Children and Young People,CYP,Transport Related,CCA,10/06/2022,03-13534,"2,816.94",BN Gibson Ltd
Nottinghamshire County Council,1111/1001,Children and Young People,CYP,Transport Related,CCA,10/06/2022,03-13538,"2,963.25",BN Gibson Ltd
Nottinghamshire County Council,1111/1001,Children and Young People,CYP,Transport Related,CCA,10/06/2022,03-13539,"2,131.96",BN Gibson Ltd
Nottinghamshire County Council,1111/1001,Children and Young People,CYP,Transport Related,CCA,10/06/2022,03-13540,"2,879.01",BN Gibson Ltd
Nottinghamshire County Council,1111/1001,Children and Young People,CYP,Transport Related,CCA,10/06/2022,03-13541,"3,139.95",BN Gibson Ltd
Nottinghamshire County Council,1111/1001,Children and Young People,CYP,Transport Related,CCA,10/06/2022,03-13543,"2,951.46",BN Gibson Ltd
Nottinghamshire County Council,1111/1001,Children and Young People,CYP,Transport Related,CCA,10/06/2022,03-13544,"3,155.52",BN Gibson Ltd
Nottinghamshire County Council,1111/1001,Children and Young People,CYP,Transport Related,CCA,10/06/2022,03-13545,"2,691.16",BN Gibson Ltd
Nottinghamshire County Council,1111/1001,Children and Young People,CYP,Transport Related,CCA,10/06/2022,03-13546,"4,018.50",BN Gibson Ltd
Nottinghamshire County Council,1111/1001,Children and Young People,CYP,Transport Related,CCA,10/06/2022,03-13547,"3,206.06",BN Gibson Ltd
Nottinghamshire County Council,1111/1001,Children and Young People,CYP,Transport Related,CCA,10/06/2022,03-13548,"4,080.25",BN Gibson Ltd
Nottinghamshire County Council,1111/1001,Children and Young People,CYP,Transport Related,CCA,10/06/2022,03-13549,"4,088.99",BN Gibson Ltd
Nottinghamshire County Council,1111/1001,Children and Young People,CYP,Transport Related,CCA,10/06/2022,03-13550,968.8,D G Private Hire Ltd
Nottinghamshire County Council,1111/1001,Children and Young People,CYP,Transport Related,CCA,10/06/2022,03-13551,826.8,D G Private Hire Ltd
Nottinghamshire County Council,1111/1001,Children and Young People,CYP,Transport Related,CCA,10/06/2022,03-13552,"1,018.16",D G Private Hire Ltd
Nottinghamshire County Council,1111/1001,Children and Young People,CYP,Transport Related,CCA,10/06/2022,03-13554,"1,976.00",Abacus Cars
Nottinghamshire County Council,1111/1001,Children and Young People,CYP,Transport Related,CCA,10/06/2022,03-13555,"2,433.60",Abacus Cars
Nottinghamshire County Council,1111/1001,Children and Young People,CYP,Transport Related,CCA,10/06/2022,03-13556,"3,889.60",Abacus Cars
Nottinghamshire County Council,1111/1001,Children and Young People,CYP,Transport Related,CCA,10/06/2022,03-13557,"2,568.80",Abacus Cars
Nottinghamshire County Council,1111/1001,Children and Young People,CYP,Transport Related,CCA,10/06/2022,03-13558,"2,647.08",Abacus Cars
Nottinghamshire County Council,1111/1001,Children and Young People,CYP,Transport Related,CCA,10/06/2022,03-13560,998.4,Abacus Cars
Nottinghamshire County Council,1111/1001,Children and Young People,CYP,Transport Related,CCA,10/06/2022,03-13562,972.4,Abacus Cars
Nottinghamshire County Council,1111/1001,Children and Young People,CYP,Transport Related,CCA,10/06/2022,03-13563,"2,433.60",Abacus Cars
Nottinghamshire County Council,1111/1001,Children and Young People,CYP,Transport Related,CCA,10/06/2022,03-13566,"1,794.00",Abacus Cars
Nottinghamshire County Council,1111/1001,Children and Young People,CYP,Transport Related,CCA,10/06/2022,03-13567,"1,580.80",Abacus Cars
Nottinghamshire County Council,1111/1001,Children and Young People,CYP,Transport Related,CCA,10/06/2022,03-13569,790.4,Abacus Cars
Nottinghamshire County Council,1111/1001,Children and Young People,CYP,Transport Related,CCA,10/06/2022,03-13571,"2,808.00",Abacus Cars
Nottinghamshire County Council,1111/1001,Children and Young People,CYP,Transport Related,CCA,10/06/2022,03-13574,"5,004.22",Gem Mini Travel Ltd
Nottinghamshire County Council,1111/1001,Children and Young People,CYP,Transport Related,CCA,10/06/2022,03-13575,"5,275.86",Gem Mini Travel Ltd
Nottinghamshire County Council,1111/1001,Children and Young People,CYP,Transport Related,CCA,10/06/2022,03-13576,"4,737.72",Gem Mini Travel Ltd
Nottinghamshire County Council,1111/1001,Children and Young People,CYP,Transport Related,CCA,10/06/2022,03-13577,"4,357.56",Gem Mini Travel Ltd
Nottinghamshire County Council,1111/1001,Children and Young People,CYP,Transport Related,CCA,10/06/2022,03-13578,"5,134.89",Gem Mini Travel Ltd
Nottinghamshire County Council,1111/1001,Children and Young People,CYP,Transport Related,CCA,10/06/2022,03-13582,"3,135.00",Gem Mini Travel Ltd
Nottinghamshire County Council,1111/1001,Children and Young People,CYP,Transport Related,CCA,10/06/2022,03-13586,"4,045.63",Gem Mini Travel Ltd
Nottinghamshire County Council,1111/1001,Children and Young People,CYP,Transport Related,CCA,10/06/2022,03-13587,"3,470.54",JB Tours Watnall Ltd
Nottinghamshire County Council,1111/1001,Children and Young People,CYP,Transport Related,CCA,10/06/2022,03-13588,"3,531.15",JB Tours Watnall Ltd
Nottinghamshire County Council,1111/1001,Children and Young People,CYP,Transport Related,CCA,10/06/2022,03-13589,"2,779.63",Stagecoach Services Ltd
Nottinghamshire County Council,1111/1001,Children and Young People,CYP,Transport Related,CCA,10/06/2022,03-13591,"3,895.00",Stagecoach Services Ltd
Nottinghamshire County Council,1111/1001,Children and Young People,CYP,Transport Related,CCA,10/06/2022,03-13592,"5,372.00",Stagecoach Services Ltd
Nottinghamshire County Council,1111/1001,Children and Young People,CYP,Transport Related,CCA,10/06/2022,03-13593,"2,025.40",Stagecoach Services Ltd
Nottinghamshire County Council,1111/1001,Children and Young People,CYP,Transport Related,CCA,10/06/2022,03-13594,"5,168.14",Stagecoach Services Ltd
Nottinghamshire County Council,1111/1001,Children and Young People,CYP,Transport Related,CCA,10/06/2022,03-13595,"6,100.50",Stagecoach Services Ltd
Nottinghamshire County Council,1111/1001,Children and Young People,CYP,Transport Related,CCA,10/06/2022,03-13596,"5,118.50",Stagecoach Services Ltd
Nottinghamshire County Council,1111/1001,Children and Young People,CYP,Transport Related,CCA,10/06/2022,03-13598,"3,829.13",Stagecoach Services Ltd
Nottinghamshire County Council,1111/1001,Children and Young People,CYP,Transport Related,CCA,10/06/2022,03-13600,"2,750.82",Stagecoach Services Ltd
Nottinghamshire County Council,1111/1001,Children and Young People,CYP,Transport Related,CCA,10/06/2022,03-13603,"4,918.13",Stagecoach Services Ltd
Nottinghamshire County Council,1111/1001,Children and Young People,CYP,Transport Related,CCA,10/06/2022,03-13604,"5,112.39",Stagecoach Services Ltd
Nottinghamshire County Council,1111/1001,Children and Young People,CYP,Transport Related,CCA,10/06/2022,03-13606,"4,419.02",Stagecoach Services Ltd
Nottinghamshire County Council,1111/1001,Children and Young People,CYP,Transport Related,CCA,10/06/2022,03-13615,"4,104.31",Stagecoach Services Ltd
Nottinghamshire County Council,1111/1001,Children and Young People,CYP,Transport Related,CCA,10/06/2022,03-13627,"5,001.76",Freeway Coaches Ltd
Nottinghamshire County Council,1111/1001,Children and Young People,CYP,Transport Related,CCA,10/06/2022,03-13628,"2,262.80",Freeway Coaches Ltd
Nottinghamshire County Council,1111/1001,Children and Young People,CYP,Transport Related,CCA,10/06/2022,03-13629,"4,309.02",Freeway Coaches Ltd
Nottinghamshire County Council,1111/1001,Children and Young People,CYP,Transport Related,CCA,10/06/2022,03-13630,"4,186.24",Freeway Coaches Ltd
Nottinghamshire County Council,1111/1001,Children and Young People,CYP,Transport Related,CCA,10/06/2022,03-13631,"4,189.24",Freeway Coaches Ltd
Nottinghamshire County Council,1111/1001,Children and Young People,CYP,Transport Related,CCA,10/06/2022,03-13632,"3,461.04",K Matthews Travel
Nottinghamshire County Council,1111/1001,Children and Young People,CYP,Transport Related,CCA,10/06/2022,03-13633,"3,257.36",K Matthews Travel
Nottinghamshire County Council,1111/1001,Children and Young People,CYP,Transport Related,CCA,10/06/2022,03-13634,"3,712.80",K Matthews Travel
Nottinghamshire County Council,1111/1001,Children and Young People,CYP,Transport Related,CCA,10/06/2022,03-13635,"2,509.52",K Matthews Travel
Nottinghamshire County Council,1111/1001,Children and Young People,CYP,Transport Related,CCA,10/06/2022,03-13637,"2,401.22",Paul S Winson Coaches
Nottinghamshire County Council,1111/1001,Children and Young People,CYP,Transport Related,CCA,10/06/2022,03-13638,"3,630.12",Rio Cabs
Nottinghamshire County Council,1111/1001,Children and Young People,CYP,Transport Related,CCA,10/06/2022,03-13639,"2,845.44",Rio Cabs
Nottinghamshire County Council,1111/1001,Children and Young People,CYP,Transport Related,CCA,10/06/2022,03-13640,"1,756.74",Rio Cabs
Nottinghamshire County Council,1111/1001,Children and Young People,CYP,Transport Related,CCA,10/06/2022,03-13641,"1,954.34",Rio Cabs
Nottinghamshire County Council,1111/1001,Children and Young People,CYP,Transport Related,CCA,10/06/2022,03-13642,"2,218.63",Wallis Coachways
Nottinghamshire County Council,1111/1001,Children and Young People,CYP,Transport Related,CCA,10/06/2022,03-13643,"2,401.22",Wallis Coachways
Nottinghamshire County Council,1111/1001,Children and Young People,CYP,Transport Related,CCA,10/06/2022,03-13644,592.8,AAA Cabs (Notts) Ltd
Nottinghamshire County Council,1111/1001,Children and Young People,CYP,Transport Related,CCA,10/06/2022,03-13646,"3,151.72",Ace Cars & Minibuses Ltd
Nottinghamshire County Council,1111/1001,Children and Young People,CYP,Transport Related,CCA,10/06/2022,03-13647,"3,052.92",Ace Cars & Minibuses Ltd
Nottinghamshire County Council,1111/1001,Children and Young People,CYP,Transport Related,CCA,10/06/2022,03-13648,"3,151.72",Ace Cars & Minibuses Ltd
Nottinghamshire County Council,1111/1001,Children and Young People,CYP,Transport Related,CCA,10/06/2022,03-13649,"2,954.12",Ace Cars & Minibuses Ltd
Nottinghamshire County Council,1111/1001,Children and Young People,CYP,Transport Related,CCA,10/06/2022,03-13650,"1,756.88",Ace Cars & Minibuses Ltd
Nottinghamshire County Council,1111/1001,Children and Young People,CYP,Transport Related,CCA,10/06/2022,03-13652,"2,756.52",Ace Cars & Minibuses Ltd
Nottinghamshire County Council,1111/1001,Children and Young People,CYP,Transport Related,CCA,10/06/2022,03-13653,"2,558.92",Ace Cars & Minibuses Ltd
Nottinghamshire County Council,1111/1001,Children and Young People,CYP,Transport Related,CCA,10/06/2022,03-13654,"3,349.32",Ace Cars & Minibuses Ltd
Nottinghamshire County Council,1111/1001,Children and Young People,CYP,Transport Related,CCA,10/06/2022,03-13655,"2,756.52",Ace Cars & Minibuses Ltd
Nottinghamshire County Council,1111/1001,Children and Young People,CYP,Transport Related,CCA,10/06/2022,03-13656,"2,954.12",Ace Cars & Minibuses Ltd
Nottinghamshire County Council,1111/1001,Children and Young People,CYP,Transport Related,CCA,10/06/2022,03-13657,"2,743.40",Nottingham Coaches Ltd
Nottinghamshire County Council,1111/1001,Children and Young People,CYP,Transport Related,CCA,10/06/2022,03-13658,"2,784.64",Nottingham Coaches Ltd
Nottinghamshire County Council,1111/1001,Children and Young People,CYP,Transport Related,CCA,10/06/2022,03-13659,"9,603.09",Nottingham Coaches Ltd
Nottinghamshire County Council,1111/1001,Children and Young People,CYP,Transport Related,CCA,10/06/2022,03-13660,"3,598.32",Nottingham Coaches Ltd
Nottinghamshire County Council,1111/1001,Children and Young People,CYP,Transport Related,CCA,10/06/2022,03-13661,"3,140.07",Nottingham Coaches Ltd
Nottinghamshire County Council,1111/1001,Children and Young People,CYP,Transport Related,CCA,10/06/2022,03-13662,"2,236.82",Nottingham Coaches Ltd
Nottinghamshire County Council,1111/1001,Children and Young People,CYP,Transport Related,CCA,10/06/2022,03-13663,"3,749.50",Nottingham Coaches Ltd
Nottinghamshire County Council,1111/1001,Children and Young People,CYP,Transport Related,CCA,10/06/2022,03-13665,748.8,D Bull T/A DB Cabs
Nottinghamshire County Council,1111/1001,Children and Young People,CYP,Transport Related,CCA,10/06/2022,03-13666,686.4,Eastwood Cars (UK) Ltd
Nottinghamshire County Council,1111/1001,Children and Young People,CYP,Transport Related,CCA,10/06/2022,03-13667,930,Nottingham Cars Ltd
Nottinghamshire County Council,1111/1001,Children and Young People,CYP,Transport Related,CCA,10/06/2022,03-13668,592.8,Nottingham Cars Ltd
Nottinghamshire County Council,1111/1001,Children and Young People,CYP,Transport Related,CCA,10/06/2022,03-13670,948.48,Nottingham Cars Ltd
Nottinghamshire County Council,1111/1001,Children and Young People,CYP,Transport Related,CCA,10/06/2022,03-13671,"2,650.24",Nottingham Cars Ltd
Nottinghamshire County Council,1111/1001,Children and Young People,CYP,Transport Related,CCA,10/06/2022,03-13672,"3,329.37",Hammonds Coaches Ltd
Nottinghamshire County Council,1111/1001,Children and Young People,CYP,Transport Related,CCA,10/06/2022,03-13673,"2,107.03",Hammonds Coaches Ltd
Nottinghamshire County Council,1111/1001,Children and Young People,CYP,Transport Related,CCA,10/06/2022,03-13674,"2,527.91",Hammonds Coaches Ltd
Nottinghamshire County Council,1111/1001,Children and Young People,CYP,Transport Related,CCA,10/06/2022,03-13675,"3,288.37",Hammonds Coaches Ltd
Nottinghamshire County Council,1111/1001,Children and Young People,CYP,Transport Related,CCA,10/06/2022,03-13676,"3,571.89",Hammonds Coaches Ltd
Nottinghamshire County Council,1111/1001,Children and Young People,CYP,Transport Related,CCA,10/06/2022,03-13680,"5,225.12",Millennium Travel (Mansfield) Ltd
Nottinghamshire County Council,1111/1001,Children and Young People,CYP,Transport Related,CCA,10/06/2022,03-13682,"3,546.54",Millennium Travel (Mansfield) Ltd
Nottinghamshire County Council,1111/1001,Children and Young People,CYP,Transport Related,CCA,10/06/2022,03-13683,"5,981.01",Millennium Travel (Mansfield) Ltd
Nottinghamshire County Council,1111/1001,Children and Young People,CYP,Transport Related,CCA,10/06/2022,03-13684,"5,750.35",Millennium Travel (Mansfield) Ltd
Nottinghamshire County Council,1111/1001,Children and Young People,CYP,Transport Related,CCA,10/06/2022,03-13685,"8,816.28",Millennium Travel (Mansfield) Ltd
Nottinghamshire County Council,1111/1001,Children and Young People,CYP,Transport Related,CCA,10/06/2022,03-13686,"4,398.88",Vectare Ltd
Nottinghamshire County Council,1111/1001,Children and Young People,CYP,Transport Related,CCA,10/06/2022,03-13687,"2,083.68",Vectare Ltd
Nottinghamshire County Council,1111/1001,Children and Young People,CYP,Transport Related,CCA,10/06/2022,03-13688,"2,083.68",Vectare Ltd
Nottinghamshire County Council,1111/1001,Children and Young People,CYP,Transport Related,CCA,10/06/2022,03-13689,"5,952.51",Vectare Ltd
Nottinghamshire County Council,1111/1001,Children and Young People,CYP,Transport Related,CCA,10/06/2022,03-13690,"2,756.52",Nottingham Specialist Transport Ltd
Nottinghamshire County Council,1111/1001,Children and Young People,CYP,Transport Related,CCA,10/06/2022,03-13691,"2,954.12",Nottingham Specialist Transport Ltd
Nottinghamshire County Council,1111/1001,Children and Young People,CYP,Transport Related,CCA,10/06/2022,03-13692,"3,349.32",Nottingham Specialist Transport Ltd
Nottinghamshire County Council,1111/1001,Children and Young People,CYP,Transport Related,CCA,10/06/2022,03-13693,"3,546.92",Nottingham Specialist Transport Ltd
Nottinghamshire County Council,1111/1001,Children and Young People,CYP,Transport Related,CCA,10/06/2022,03-13694,"2,954.12",Nottingham Specialist Transport Ltd
Nottinghamshire County Council,1111/1001,Children and Young People,CYP,Transport Related,CCA,10/06/2022,03-13695,"2,756.52",Nottingham Specialist Transport Ltd
Nottinghamshire County Council,1111/1001,Children and Young People,CYP,Transport Related,CCA,10/06/2022,03-13696,"3,942.12",Nottingham Specialist Transport Ltd
Nottinghamshire County Council,1111/1001,Children and Young People,CYP,Transport Related,CCA,10/06/2022,03-13697,"3,349.32",Nottingham Specialist Transport Ltd
Nottinghamshire County Council,1111/1001,Children and Young People,CYP,Transport Related,CCA,10/06/2022,03-13698,"6,906.12",Nottingham Specialist Transport Ltd
Nottinghamshire County Council,1111/1001,Children and Young People,CYP,Transport Related,CCA,10/06/2022,03-13699,"2,776.28",Nottingham Specialist Transport Ltd
Nottinghamshire County Council,1111/1001,Children and Young People,CYP,Transport Related,CCA,10/06/2022,03-13700,"2,756.52",Nottingham Specialist Transport Ltd
Nottinghamshire County Council,1111/1001,Children and Young People,CYP,Transport Related,CCA,10/06/2022,03-13701,"6,439.68",Nottingham Specialist Transport Ltd
Nottinghamshire County Council,1111/1001,Children and Young People,CYP,Transport Related,CCA,10/06/2022,03-13702,"4,283.99",Nottingham Specialist Transport Ltd
Nottinghamshire County Council,1111/1001,Children and Young People,CYP,Transport Related,CCA,10/06/2022,03-13703,"2,216.76",Nottingham Specialist Transport Ltd
Nottinghamshire County Council,1111/1001,Children and Young People,CYP,Transport Related,CCA,10/06/2022,03-13704,"3,037.32",Nottingham Specialist Transport Ltd
Nottinghamshire County Council,1111/1001,Children and Young People,CYP,Transport Related,CCA,10/06/2022,03-13705,"2,831.40",Nottingham Specialist Transport Ltd
Nottinghamshire County Council,1111/1001,Children and Young People,CYP,Transport Related,CCA,10/06/2022,03-13707,"3,424.20",Nottingham Specialist Transport Ltd
Nottinghamshire County Council,1111/1001,Children and Young People,CYP,Transport Related,CCA,10/06/2022,03-13708,"3,505.32",Nottingham Specialist Transport Ltd
Nottinghamshire County Council,1111/1001,Children and Young People,CYP,Transport Related,CCA,10/06/2022,03-13709,"3,037.32",Nottingham Specialist Transport Ltd
Nottinghamshire County Council,1111/1001,Children and Young People,CYP,Transport Related,CCA,10/06/2022,03-13710,"2,848.56",Nottingham Specialist Transport Ltd
Nottinghamshire County Council,1111/1001,Children and Young People,CYP,Transport Related,CCA,14/06/2022,03-14035,561.6,Southside Cars Ltd
Nottinghamshire County Council,1111/1001,Children and Young People,CYP,Transport Related,CCA,14/06/2022,03-14036,746.46,Southside Cars Ltd
Nottinghamshire County Council,1111/1001,Children and Young People,CYP,Transport Related,CCA,14/06/2022,03-14037,623,Southside Cars Ltd
Nottinghamshire County Council,1111/1001,Children and Young People,CYP,Transport Related,CCA,14/06/2022,03-14038,644.8,Southside Cars Ltd
Nottinghamshire County Council,1111/1001,Children and Young People,CYP,Transport Related,CCA,14/06/2022,03-14039,676,Southside Cars Ltd
Nottinghamshire County Council,1111/1001,Children and Young People,CYP,Transport Related,CCA,14/06/2022,03-14040,727,Southside Cars Ltd
Nottinghamshire County Council,1111/1001,Children and Young People,CYP,Transport Related,CCA,14/06/2022,03-14041,570.78,Southside Cars Ltd
Nottinghamshire County Council,1111/1001,Children and Young People,CYP,Transport Related,CCA,14/06/2022,03-14042,534.04,Southside Cars Ltd
Nottinghamshire County Council,1111/1001,Children and Young People,CYP,Transport Related,CCA,14/06/2022,03-14043,935,Southside Cars Ltd
Nottinghamshire County Council,1111/1001,Children and Young People,CYP,Transport Related,CCA,14/06/2022,03-14044,"1,000.60",Southside Cars Ltd
Nottinghamshire County Council,1111/1001,Children and Young People,CYP,Transport Related,CCA,14/06/2022,03-14045,"1,021.40",Southside Cars Ltd
Nottinghamshire County Council,1111/1001,Children and Young People,CYP,Transport Related,CCA,14/06/2022,03-14046,919.26,Southside Cars Ltd
Nottinghamshire County Council,1111/1001,Children and Young People,CYP,Transport Related,CCA,14/06/2022,03-14047,725.9,Southside Cars Ltd
Nottinghamshire County Council,1111/1001,Children and Young People,CYP,Transport Related,CCA,14/06/2022,03-14048,726.6,Southside Cars Ltd
Nottinghamshire County Council,1111/1001,Children and Young People,CYP,Transport Related,CCA,14/06/2022,03-14049,523.8,Southside Cars Ltd
Nottinghamshire County Council,1111/1001,Children and Young People,CYP,Transport Related,CCA,14/06/2022,03-14050,648.84,Southside Cars Ltd
Nottinghamshire County Council,1111/1001,Children and Young People,CYP,Transport Related,CCA,14/06/2022,03-14052,"1,100.40",Southside Cars Ltd
Nottinghamshire County Council,1111/1001,Children and Young People,CYP,Transport Related,CCA,14/06/2022,03-14053,716.56,Southside Cars Ltd
Nottinghamshire County Council,1111/1001,Children and Young People,CYP,Transport Related,CCA,14/06/2022,03-14054,"1,276.00",Southside Cars Ltd
Nottinghamshire County Council,1111/1001,Children and Young People,CYP,Transport Related,CCA,14/06/2022,03-14055,"1,076.40",Southside Cars Ltd
Nottinghamshire County Council,1111/1001,Children and Young People,CYP,Transport Related,CCA,14/06/2022,03-14056,"1,085.76",Southside Cars Ltd
Nottinghamshire County Council,1111/1001,Children and Young People,CYP,Transport Related,CCA,14/06/2022,03-14057,"1,151.28",Southside Cars Ltd
Nottinghamshire County Council,1111/1001,Children and Young People,CYP,Transport Related,CCA,14/06/2022,03-14058,"1,320.80",Southside Cars Ltd
Nottinghamshire County Council,1111/1001,Children and Young People,CYP,Transport Related,CCA,14/06/2022,03-14059,"1,254.24",Southside Cars Ltd
Nottinghamshire County Council,1111/1001,Children and Young People,CYP,Transport Related,CCA,14/06/2022,03-14060,"1,679.60",Fozcabs Newark Taxis
Nottinghamshire County Council,1111/1001,Children and Young People,CYP,Transport Related,CCA,15/06/2022,03-14080,"2,687.36",Taxicover Uk Ltd
Nottinghamshire County Council,1111/1001,Children and Young People,CYP,Transport Related,CCA,15/06/2022,03-14081,"3,268.00",Taxicover Uk Ltd
Nottinghamshire County Council,1111/1001,Children and Young People,CYP,Transport Related,CCA,15/06/2022,03-14082,"3,268.00",Taxicover Uk Ltd
Nottinghamshire County Council,1111/1001,Children and Young People,CYP,Transport Related,CCA,15/06/2022,03-14083,"1,936.48",Taxicover Uk Ltd
Nottinghamshire County Council,1111/1001,Children and Young People,CYP,Transport Related,CCA,15/06/2022,03-14084,"1,976.00",Taxicover Uk Ltd
Nottinghamshire County Council,1111/1001,Children and Young People,CYP,Transport Related,CCA,15/06/2022,03-14085,"2,450.24",Taxicover Uk Ltd
Nottinghamshire County Council,1111/1001,Children and Young People,CYP,Transport Related,CCA,15/06/2022,03-14086,"2,371.20",Taxicover Uk Ltd
Nottinghamshire County Council,1111/1001,Children and Young People,CYP,Transport Related,CCA,15/06/2022,03-14087,"2,094.56",Taxicover Uk Ltd
Nottinghamshire County Council,1111/1001,Children and Young People,CYP,Transport Related,CCA,15/06/2022,03-14088,"2,924.48",Central Cars Nottm Ltd
Nottinghamshire County Council,1111/1001,Children and Young People,CYP,Transport Related,CCA,15/06/2022,03-14089,"1,950.00",Central Cars Nottm Ltd
Nottinghamshire County Council,1111/1001,Children and Young People,CYP,Transport Related,CCA,15/06/2022,03-14090,"3,091.87",F4Control Ltd (t/a First4care)
Nottinghamshire County Council,1111/1001,Children and Young People,CYP,Transport Related,CCA,15/06/2022,03-14091,"3,059.00",F4Control Ltd (t/a First4care)
Nottinghamshire County Council,1111/1001,Children and Young People,CYP,Transport Related,CCA,15/06/2022,03-14092,"3,999.50",F4Control Ltd (t/a First4care)
Nottinghamshire County Council,1111/1001,Children and Young People,CYP,Transport Related,CCA,15/06/2022,03-14093,"3,990.00",F4Control Ltd (t/a First4care)
Nottinghamshire County Council,1111/1001,Children and Young People,CYP,Transport Related,CCA,15/06/2022,03-14094,"2,816.56",F4Control Ltd (t/a First4care)
Nottinghamshire County Council,1111/1001,Children and Young People,CYP,Transport Related,CCA,15/06/2022,03-14095,"2,445.30",F4Control Ltd (t/a First4care)
Nottinghamshire County Council,1111/1001,Children and Young People,CYP,Transport Related,CCA,15/06/2022,03-14096,"2,859.12",F4Control Ltd (t/a First4care)
Nottinghamshire County Council,1111/1001,Children and Young People,CYP,Transport Related,CCA,15/06/2022,03-14097,"5,696.20",Johnson Bros Tours Ltd
Nottinghamshire County Council,1111/1001,Children and Young People,CYP,Transport Related,CCA,15/06/2022,03-14098,"4,276.14",Johnson Bros Tours Ltd
Nottinghamshire County Council,1111/1001,Children and Young People,CYP,Transport Related,CCA,15/06/2022,03-14099,"4,050.80",Johnson Bros Tours Ltd
Nottinghamshire County Council,1111/1001,Children and Young People,CYP,Transport Related,CCA,15/06/2022,03-14100,"4,940.00",Johnson Bros Tours Ltd
Nottinghamshire County Council,1111/1001,Children and Young People,CYP,Transport Related,CCA,15/06/2022,03-14103,"8,418.65",Johnson Bros Tours Ltd
Nottinghamshire County Council,1111/1001,Children and Young People,CYP,Transport Related,CCA,15/06/2022,03-14104,"9,642.00",Johnson Bros Tours Ltd
Nottinghamshire County Council,1111/1001,Children and Young People,CYP,Transport Related,CCA,15/06/2022,03-14106,"2,438.46",Alpha Cars
Nottinghamshire County Council,1111/1001,Children and Young People,CYP,Transport Related,CCA,15/06/2022,03-14107,"2,634.35",Alpha Cars
Nottinghamshire County Council,1111/1001,Children and Young People,CYP,Transport Related,CCA,15/06/2022,03-14108,"2,975.00",Alpha Cars
Nottinghamshire County Council,1111/1001,Children and Young People,CYP,Transport Related,CCA,15/06/2022,03-14109,"1,877.20",Alpha Cars
Nottinghamshire County Council,1111/1001,Children and Young People,CYP,Transport Related,CCA,15/06/2022,03-14110,"1,267.38",Alpha Cars
Nottinghamshire County Council,1111/1001,Children and Young People,CYP,Transport Related,CCA,15/06/2022,03-14111,"1,913.70",Alpha Cars
Nottinghamshire County Council,1111/1001,Children and Young People,CYP,Transport Related,CCA,15/06/2022,03-14112,"1,859.00",Alpha Cars
Nottinghamshire County Council,1111/1001,Children and Young People,CYP,Transport Related,CCA,15/06/2022,03-14113,"2,358.72",Alpha Cars
Nottinghamshire County Council,1111/1001,Children and Young People,CYP,Transport Related,CCA,15/06/2022,03-14116,"1,286.40",Alpha Cars
Nottinghamshire County Council,1111/1001,Children and Young People,CYP,Transport Related,CCA,15/06/2022,03-14118,946,Alpha Cars
Nottinghamshire County Council,1111/1001,Children and Young People,CYP,Transport Related,CCA,15/06/2022,03-14121,"3,161.60",Fozcabs Newark Taxis
Nottinghamshire County Council,1111/1001,Children and Young People,CYP,Transport Related,CCA,15/06/2022,03-14122,"1,976.00",Fozcabs Newark Taxis
Nottinghamshire County Council,1111/1001,Children and Young People,CYP,Transport Related,CCA,15/06/2022,03-14123,"1,383.20",Fozcabs Newark Taxis
Nottinghamshire County Council,1111/1001,Children and Young People,CYP,Transport Related,CCA,15/06/2022,03-14124,"2,865.20",Fozcabs Newark Taxis
Nottinghamshire County Council,1111/1001,Children and Young People,CYP,Transport Related,CCA,15/06/2022,03-14125,"2,489.76",Fozcabs Newark Taxis
Nottinghamshire County Council,1111/1001,Children and Young People,CYP,Transport Related,CCA,15/06/2022,03-14127,900,Fozcabs Newark Taxis
Nottinghamshire County Council,1111/1001,Children and Young People,CYP,Transport Related,CCA,15/06/2022,03-14128,"1,390.00",Fozcabs Newark Taxis
Nottinghamshire County Council,1111/1001,Children and Young People,CYP,Transport Related,CCA,15/06/2022,03-14129,"2,516.80",Fozcabs Newark Taxis
Nottinghamshire County Council,1111/1001,Children and Young People,CYP,Transport Related,CCA,15/06/2022,03-14130,"3,260.40",F4Control Ltd (t/a First4care)
Nottinghamshire County Council,1111/1001,Children and Young People,CYP,Transport Related,CCA,15/06/2022,03-14131,"2,568.80",F4Control Ltd (t/a First4care)
Nottinghamshire County Council,1111/1001,Children and Young People,CYP,Transport Related,CCA,15/06/2022,03-14132,"2,681.85",F4Control Ltd (t/a First4care)
Nottinghamshire County Council,1111/1001,Children and Young People,CYP,Transport Related,CCA,15/06/2022,03-14133,"2,662.66",F4Control Ltd (t/a First4care)
Nottinghamshire County Council,1111/1001,Children and Young People,CYP,Transport Related,CCA,15/06/2022,03-14134,"2,796.04",F4Control Ltd (t/a First4care)
Nottinghamshire County Council,1111/1001,Children and Young People,CYP,Transport Related,CCA,15/06/2022,03-14135,"3,268.38",F4Control Ltd (t/a First4care)
Nottinghamshire County Council,1111/1001,Children and Young People,CYP,Transport Related,CCA,15/06/2022,03-14136,"2,367.21",F4Control Ltd (t/a First4care)
Nottinghamshire County Council,1111/1001,Children and Young People,CYP,Transport Related,CCA,15/06/2022,03-14137,"2,681.85",F4Control Ltd (t/a First4care)
Nottinghamshire County Council,1111/1001,Children and Young People,CYP,Transport Related,CCA,15/06/2022,03-14138,"2,839.17",F4Control Ltd (t/a First4care)
Nottinghamshire County Council,1111/1001,Children and Young People,CYP,Transport Related,CCA,15/06/2022,03-14139,"3,037.53",F4Control Ltd (t/a First4care)
Nottinghamshire County Council,1111/1001,Children and Young People,CYP,Transport Related,CCA,15/06/2022,03-14140,"2,779.32",F4Control Ltd (t/a First4care)
Nottinghamshire County Council,1111/1001,Children and Young People,CYP,Transport Related,CCA,15/06/2022,03-14141,"2,483.68",F4Control Ltd (t/a First4care)
Nottinghamshire County Council,1111/1001,Children and Young People,CYP,Transport Related,CCA,15/06/2022,03-14142,"3,195.80",F4Control Ltd (t/a First4care)
Nottinghamshire County Council,1111/1001,Children and Young People,CYP,Transport Related,CCA,15/06/2022,03-14143,"3,156.28",F4Control Ltd (t/a First4care)
Nottinghamshire County Council,1111/1001,Children and Young People,CYP,Transport Related,CCA,15/06/2022,03-14144,"2,399.13",F4Control Ltd (t/a First4care)
Nottinghamshire County Council,1111/1001,Children and Young People,CYP,Transport Related,CCA,15/06/2022,03-14145,"2,717.57",F4Control Ltd (t/a First4care)
Nottinghamshire County Council,1111/1001,Children and Young People,CYP,Transport Related,CCA,15/06/2022,03-14146,"2,618.77",F4Control Ltd (t/a First4care)
Nottinghamshire County Council,1111/1001,Children and Young People,CYP,Transport Related,CCA,15/06/2022,03-14147,"2,914.98",F4Control Ltd (t/a First4care)
Nottinghamshire County Council,1111/1001,Children and Young People,CYP,Transport Related,CCA,15/06/2022,03-14148,"2,870.14",F4Control Ltd (t/a First4care)
Nottinghamshire County Council,1111/1001,Children and Young People,CYP,Transport Related,CCA,15/06/2022,03-14149,"2,484.44",F4Control Ltd (t/a First4care)
Nottinghamshire County Council,1111/1001,Children and Young People,CYP,Transport Related,CCA,15/06/2022,03-14151,"1,709.36",BN Gibson Ltd
Nottinghamshire County Council,1111/1001,Children and Young People,CYP,Transport Related,CCA,15/06/2022,03-14152,"1,976.80",BN Gibson Ltd
Nottinghamshire County Council,1111/1001,Children and Young People,CYP,Transport Related,CCA,15/06/2022,03-14153,"2,350.37",BN Gibson Ltd
Nottinghamshire County Council,1111/1001,Children and Young People,CYP,Transport Related,CCA,15/06/2022,03-14154,"2,718.10",BN Gibson Ltd
Nottinghamshire County Council,1111/1001,Children and Young People,CYP,Transport Related,CCA,15/06/2022,03-14160,"3,180.79",Nottingham Minibuses & Coaches
Nottinghamshire County Council,1111/1001,Children and Young People,CYP,Transport Related,CCA,15/06/2022,03-14164,"2,421.36",Nottingham Minibuses & Coaches
Nottinghamshire County Council,1111/1001,Children and Young People,CYP,Transport Related,CCA,15/06/2022,03-14165,"2,032.81",Nottingham Minibuses & Coaches
Nottinghamshire County Council,1111/1001,Children and Young People,CYP,Transport Related,CCA,15/06/2022,03-14168,"3,026.70",Silverdale Tours Nottm Ltd
Nottinghamshire County Council,1111/1001,Children and Young People,CYP,Transport Related,CCA,15/06/2022,03-14169,"2,940.76",Silverdale Tours Nottm Ltd
Nottinghamshire County Council,1111/1001,Children and Young People,CYP,Transport Related,CCA,15/06/2022,03-14170,"3,220.09",Silverdale Tours Nottm Ltd
Nottinghamshire County Council,1111/1001,Children and Young People,CYP,Transport Related,CCA,15/06/2022,03-14171,"3,026.70",Silverdale Tours Nottm Ltd
Nottinghamshire County Council,1111/1001,Children and Young People,CYP,Transport Related,CCA,15/06/2022,03-14178,"9,967.97",Wilfreda Beehive
Nottinghamshire County Council,1111/1001,Children and Young People,CYP,Transport Related,CCA,15/06/2022,03-14179,"10,032.00",Wilfreda Beehive
Nottinghamshire County Council,1111/1001,Children and Young People,CYP,Transport Related,CCA,15/06/2022,03-14180,"2,527.00",Wilfreda Beehive
Nottinghamshire County Council,1111/1001,Children and Young People,CYP,Transport Related,CCA,15/06/2022,03-14181,628.33,Bassetlaw Action Centre
Nottinghamshire County Council,1111/1001,Children and Young People,CYP,Transport Related,CCA,15/06/2022,03-14182,"1,373.70",Bassetlaw Action Centre
Nottinghamshire County Council,1111/1001,Children and Young People,CYP,Transport Related,CCA,15/06/2022,03-14184,"1,278.51",Bassetlaw Action Centre
Nottinghamshire County Council,1111/1001,Children and Young People,CYP,Transport Related,CCA,15/06/2022,03-14185,"1,877.20",Reliable Cars Ltd
Nottinghamshire County Council,1111/1001,Children and Young People,CYP,Transport Related,CCA,15/06/2022,03-14186,"1,679.60",Reliable Cars Ltd
Nottinghamshire County Council,1111/1001,Children and Young People,CYP,Transport Related,CCA,15/06/2022,03-14187,"2,173.60",Reliable Cars Ltd
Nottinghamshire County Council,1111/1001,Children and Young People,CYP,Transport Related,CCA,15/06/2022,03-14188,"1,679.60",Reliable Cars Ltd
Nottinghamshire County Council,1111/1001,Children and Young People,CYP,Transport Related,CCA,15/06/2022,03-14192,"1,944.46",SM Travel Yorkshire Ltd
Nottinghamshire County Council,1111/1001,Children and Young People,CYP,Transport Related,CCA,15/06/2022,03-14193,"3,878.85",SM Travel Yorkshire Ltd
Nottinghamshire County Council,1111/1001,Children and Young People,CYP,Transport Related,CCA,15/06/2022,03-14194,"1,527.41",SM Travel Yorkshire Ltd
Nottinghamshire County Council,1111/1001,Children and Young People,CYP,Transport Related,CCA,15/06/2022,03-14195,"1,705.25",SM Travel Yorkshire Ltd
Nottinghamshire County Council,1111/1001,Children and Young People,CYP,Transport Related,CCA,15/06/2022,03-14196,"1,843.57",SM Travel Yorkshire Ltd
Nottinghamshire County Council,1111/1001,Children and Young People,CYP,Transport Related,CCA,15/06/2022,03-14197,"1,845.66",SM Travel Yorkshire Ltd
Nottinghamshire County Council,1111/1001,Children and Young People,CYP,Transport Related,CCA,15/06/2022,03-14198,"1,849.46",SM Travel Yorkshire Ltd
Nottinghamshire County Council,1111/1001,Children and Young People,CYP,Transport Related,CCA,15/06/2022,03-14199,"2,317.81",SM Travel Yorkshire Ltd
Nottinghamshire County Council,1111/1001,Children and Young People,CYP,Transport Related,CCA,15/06/2022,03-14200,"2,781.45",SM Travel Yorkshire Ltd
Nottinghamshire County Council,1111/1001,Children and Young People,CYP,Transport Related,CCA,15/06/2022,03-14201,"2,317.81",SM Travel Yorkshire Ltd
Nottinghamshire County Council,1111/1001,Children and Young People,CYP,Transport Related,CCA,15/06/2022,03-14202,"2,456.13",SM Travel Yorkshire Ltd
Nottinghamshire County Council,1111/1001,Children and Young People,CYP,Transport Related,CCA,15/06/2022,03-14203,"3,426.46",SM Travel Yorkshire Ltd
Nottinghamshire County Council,1111/1001,Children and Young People,CYP,Transport Related,CCA,15/06/2022,03-14204,"2,829.67",SM Travel Yorkshire Ltd
Nottinghamshire County Council,1111/1001,Children and Young People,CYP,Transport Related,CCA,15/06/2022,03-14205,"2,831.57",SM Travel Yorkshire Ltd
Nottinghamshire County Council,1111/1001,Children and Young People,CYP,Transport Related,CCA,15/06/2022,03-14206,"1,261.15",SM Travel Yorkshire Ltd
Nottinghamshire County Council,1111/1001,Children and Young People,CYP,Transport Related,CCA,15/06/2022,03-14208,"3,754.40",SM Travel Yorkshire Ltd
Nottinghamshire County Council,1111/1001,Children and Young People,CYP,Transport Related,CCA,15/06/2022,03-14210,"4,201.85",SM Travel Yorkshire Ltd
Nottinghamshire County Council,1111/1001,Children and Young People,CYP,Transport Related,CCA,15/06/2022,03-14211,"1,067.44",SM Travel Yorkshire Ltd
Nottinghamshire County Council,1111/1001,Children and Young People,CYP,Transport Related,CCA,15/06/2022,03-14212,"1,416.25",SM Travel Yorkshire Ltd
Nottinghamshire County Council,1111/1001,Children and Young People,CYP,Transport Related,CCA,15/06/2022,03-14213,"1,201.80",SM Travel Yorkshire Ltd
Nottinghamshire County Council,1111/1001,Children and Young People,CYP,Transport Related,CCA,15/06/2022,03-14214,"1,346.25",SM Travel Yorkshire Ltd
Nottinghamshire County Council,1111/1001,Children and Young People,CYP,Transport Related,CCA,15/06/2022,03-14215,"1,468.13",SM Travel Yorkshire Ltd
Nottinghamshire County Council,1111/1001,Children and Young People,CYP,Transport Related,CCA,15/06/2022,03-14216,"2,219.01",SM Travel Yorkshire Ltd
Nottinghamshire County Council,1111/1001,Children and Young People,CYP,Transport Related,CCA,15/06/2022,03-14217,"2,463.35",SM Travel Yorkshire Ltd
Nottinghamshire County Council,1111/1001,Children and Young People,CYP,Transport Related,CCA,15/06/2022,03-14218,"3,230.76",SM Travel Yorkshire Ltd
Nottinghamshire County Council,1111/1001,Children and Young People,CYP,Transport Related,CCA,15/06/2022,03-14245,736.84,W Hollingsworth T/A Target Taxis
Nottinghamshire County Council,1111/1001,Children and Young People,CYP,Transport Related,CCA,15/06/2022,03-14248,"2,450.24",W Hollingsworth T/A Target Taxis
Nottinghamshire County Council,1111/1001,Children and Young People,CYP,Transport Related,CCA,15/06/2022,03-14249,"2,351.44",W Hollingsworth T/A Target Taxis
Nottinghamshire County Council,1111/1001,Children and Young People,CYP,Transport Related,CCA,15/06/2022,03-14250,"3,420.00",JK Transport Ltd
Nottinghamshire County Council,1111/1001,Children and Young People,CYP,Transport Related,CCA,15/06/2022,03-14251,"4,099.68",JK Transport Ltd
Nottinghamshire County Council,1111/1001,Children and Young People,CYP,Transport Related,CCA,15/06/2022,03-14253,"1,185.00",JK Transport Ltd
Nottinghamshire County Council,1111/1001,Children and Young People,CYP,Transport Related,CCA,15/06/2022,03-14254,"4,327.44",JK Transport Ltd
Nottinghamshire County Council,1111/1001,Children and Young People,CYP,Transport Related,CCA,15/06/2022,03-14255,"1,320.00",JK Transport Ltd
Nottinghamshire County Council,1111/1001,Children and Young People,CYP,Transport Related,CCA,20/06/2022,03-14409,954.72,Alert Cars Ltd
Nottinghamshire County Council,1111/1001,Children and Young People,CYP,Transport Related,CCA,20/06/2022,03-14410,"1,248.48",Southside Cars Ltd
Nottinghamshire County Council,1111/1001,Children and Young People,CYP,Transport Related,CCA,20/06/2022,03-14411,"1,229.02",Southside Cars Ltd
Nottinghamshire County Council,1111/1001,Children and Young People,CYP,Transport Related,CCA,20/06/2022,03-14412,"1,399.85",Southside Cars Ltd
Nottinghamshire County Council,1111/1001,Children and Young People,CYP,Transport Related,CCA,20/06/2022,03-14413,"1,593.80",Southside Cars Ltd
Nottinghamshire County Council,1111/1001,Children and Young People,CYP,Transport Related,CCA,20/06/2022,03-14414,"1,077.44",Southside Cars Ltd
Nottinghamshire County Council,1111/1001,Children and Young People,CYP,Transport Related,CCA,20/06/2022,03-14415,"1,319.60",Southside Cars Ltd
Nottinghamshire County Council,1111/1001,Children and Young People,CYP,Transport Related,CCA,20/06/2022,03-14416,737.1,F4Control Ltd (t/a First4care)
Nottinghamshire County Council,1111/1001,Children and Young People,CYP,Transport Related,CCA,20/06/2022,03-14420,"3,062.80",Shelleys Taxis Ltd
Nottinghamshire County Council,1111/1001,Children and Young People,CYP,Transport Related,CCA,20/06/2022,03-14421,"2,134.08",Shelleys Taxis Ltd
Nottinghamshire County Council,1111/1001,Children and Young People,CYP,Transport Related,CCA,20/06/2022,03-14422,"1,372.80",Shelleys Taxis Ltd
Nottinghamshire County Council,1111/1001,Children and Young People,CYP,Transport Related,CCA,20/06/2022,03-14423,"1,383.20",Shelleys Taxis Ltd
Nottinghamshire County Council,1111/1001,Children and Young People,CYP,Transport Related,CCA,20/06/2022,03-14424,"1,383.20",Shelleys Taxis Ltd
Nottinghamshire County Council,1111/1001,Children and Young People,CYP,Transport Related,CCA,20/06/2022,03-14425,"2,371.20",Shelleys Taxis Ltd
Nottinghamshire County Council,1111/1001,Children and Young People,CYP,Transport Related,CCA,20/06/2022,03-14426,"1,936.48",Shelleys Taxis Ltd
Nottinghamshire County Council,1111/1001,Children and Young People,CYP,Transport Related,CCA,20/06/2022,03-14427,"4,275.00",Vallances Coaches
Nottinghamshire County Council,1111/1001,Children and Young People,CYP,Transport Related,CCA,20/06/2022,03-14428,"3,872.96",Vallances Coaches
Nottinghamshire County Council,1111/1001,Children and Young People,CYP,Transport Related,CCA,20/06/2022,03-14429,"4,248.40",Vallances Coaches
Nottinghamshire County Council,1111/1001,Children and Young People,CYP,Transport Related,CCA,20/06/2022,03-14430,"4,940.00",Vallances Coaches
Nottinghamshire County Council,1111/1001,Children and Young People,CYP,Transport Related,CCA,20/06/2022,03-14431,"4,560.00",Vallances Coaches
Nottinghamshire County Council,1111/1001,Children and Young People,CYP,Transport Related,CCA,20/06/2022,03-14432,"4,560.00",Vallances Coaches
Nottinghamshire County Council,1111/1001,Children and Young People,CYP,Transport Related,CCA,20/06/2022,03-14433,"1,360.35",F4Control Ltd (t/a First4care)
Nottinghamshire County Council,1111/1001,Children and Young People,CYP,Transport Related,CCA,20/06/2022,03-14434,"2,332.50",BN Gibson Ltd
Nottinghamshire County Council,1111/1001,Children and Young People,CYP,Transport Related,CCA,20/06/2022,03-14436,"2,804.78",Skills Motor Coaches Ltd
Nottinghamshire County Council,1111/1001,Children and Young People,CYP,Transport Related,CCA,20/06/2022,03-14437,"3,208.34",Skills Motor Coaches Ltd
Nottinghamshire County Council,1111/1001,Children and Young People,CYP,Transport Related,CCA,20/06/2022,03-14438,"3,648.00",Skills Motor Coaches Ltd
Nottinghamshire County Council,1111/1001,Children and Young People,CYP,Transport Related,CCA,20/06/2022,03-14439,"3,648.00",Skills Motor Coaches Ltd
Nottinghamshire County Council,1111/1001,Children and Young People,CYP,Transport Related,CCA,20/06/2022,03-14440,"2,451.89",Skills Motor Coaches Ltd
Nottinghamshire County Council,1111/1001,Children and Young People,CYP,Transport Related,CCA,20/06/2022,03-14441,"1,829.00",Skills Motor Coaches Ltd
Nottinghamshire County Council,1111/1001,Children and Young People,CYP,Transport Related,CCA,20/06/2022,03-14442,"2,482.45",Skills Motor Coaches Ltd
Nottinghamshire County Council,1111/1001,Children and Young People,CYP,Transport Related,CCA,20/06/2022,03-14443,"2,184.24",Marshalls Of Sutton On Trent Ltd
Nottinghamshire County Council,1111/1001,Children and Young People,CYP,Transport Related,CCA,20/06/2022,03-14448,"3,583.40",Marshalls Of Sutton On Trent Ltd
Nottinghamshire County Council,1111/1001,Children and Young People,CYP,Transport Related,CCA,20/06/2022,03-14451,"2,076.60",Marshalls Of Sutton On Trent Ltd
Nottinghamshire County Council,1111/1001,Children and Young People,CYP,Transport Related,CCA,20/06/2022,03-14453,"6,745.50",Marshalls Of Sutton On Trent Ltd
Nottinghamshire County Council,1111/1001,Children and Young People,CYP,Transport Related,CCA,20/06/2022,03-14454,"4,523.83",Marshalls Of Sutton On Trent Ltd
Nottinghamshire County Council,1111/1001,Children and Young People,CYP,Transport Related,CCA,20/06/2022,03-14457,"4,545.75",Marshalls Of Sutton On Trent Ltd
Nottinghamshire County Council,1111/1001,Children and Young People,CYP,Transport Related,CCA,20/06/2022,03-14458,"1,563.89",Marshalls Of Sutton On Trent Ltd
Nottinghamshire County Council,1111/1001,Children and Young People,CYP,Transport Related,CCA,20/06/2022,03-14459,"3,062.80",Trevor Bailey t/a Trevor Bailey Tra
Nottinghamshire County Council,1111/1001,Children and Young People,CYP,Transport Related,CCA,20/06/2022,03-14460,"2,121.86",Freeway Coaches Ltd
Nottinghamshire County Council,1111/1001,Children and Young People,CYP,Transport Related,CCA,20/06/2022,03-14461,"1,051.38",Freeway Coaches Ltd
Nottinghamshire County Council,1111/1001,Children and Young People,CYP,Transport Related,CCA,20/06/2022,03-14462,"1,160.10",Freeway Coaches Ltd
Nottinghamshire County Council,1111/1001,Children and Young People,CYP,Transport Related,CCA,20/06/2022,03-14463,"3,006.56",Kettlewell Retford Ltd
Nottinghamshire County Council,1111/1001,Children and Young People,CYP,Transport Related,CCA,20/06/2022,03-14464,"1,916.91",Kettlewell Retford Ltd
Nottinghamshire County Council,1111/1001,Children and Young People,CYP,Transport Related,CCA,20/06/2022,03-14465,"2,401.22",Kettlewell Retford Ltd
Nottinghamshire County Council,1111/1001,Children and Young People,CYP,Transport Related,CCA,20/06/2022,03-14466,"2,064.22",Kettlewell Retford Ltd
Nottinghamshire County Council,1111/1001,Children and Young People,CYP,Transport Related,CCA,20/06/2022,03-14467,"7,143.05",Kettlewell Retford Ltd
Nottinghamshire County Council,1111/1001,Children and Young People,CYP,Transport Related,CCA,20/06/2022,03-14468,"3,309.23",Kettlewell Retford Ltd
Nottinghamshire County Council,1111/1001,Children and Young People,CYP,Transport Related,CCA,20/06/2022,03-14469,"5,494.23",Kettlewell Retford Ltd
Nottinghamshire County Council,1111/1001,Children and Young People,CYP,Transport Related,CCA,20/06/2022,03-14470,855,Kettlewell Retford Ltd
Nottinghamshire County Council,1111/1001,Children and Young People,CYP,Transport Related,CCA,20/06/2022,03-14471,"8,930.00",Kettlewell Retford Ltd
Nottinghamshire County Council,1111/1001,Children and Young People,CYP,Transport Related,CCA,20/06/2022,03-14475,"12,050.73",C W Moxon Ltd
Nottinghamshire County Council,1111/1001,Children and Young People,CYP,Transport Related,CCA,20/06/2022,03-14480,"1,168.20",Hammonds Coaches Ltd
Nottinghamshire County Council,1111/1001,Children and Young People,CYP,Transport Related,CCA,20/06/2022,03-14481,"2,128.24",Hammonds Coaches Ltd
Nottinghamshire County Council,1111/1001,Children and Young People,CYP,Transport Related,CCA,20/06/2022,03-14486,"1,508.00",Rushcliffe Travel Ltd
Nottinghamshire County Council,1111/1001,Children and Young People,CYP,Transport Related,CCA,20/06/2022,03-14487,"2,074.80",Rushcliffe Travel Ltd
Nottinghamshire County Council,1111/1001,Children and Young People,CYP,Transport Related,CCA,20/06/2022,03-14488,"2,474.16",Rushcliffe Travel Ltd
Nottinghamshire County Council,1111/1001,Children and Young People,CYP,Transport Related,CCA,20/06/2022,03-14489,"2,762.76",Rushcliffe Travel Ltd
Nottinghamshire County Council,1111/1001,Children and Young People,CYP,Transport Related,CCA,20/06/2022,03-14490,"2,180.36",Rushcliffe Travel Ltd
Nottinghamshire County Council,1111/1001,Children and Young People,CYP,Transport Related,CCA,20/06/2022,03-14491,"1,816.36",Rushcliffe Travel Ltd
Nottinghamshire County Council,1111/1001,Children and Young People,CYP,Transport Related,CCA,20/06/2022,03-14492,"1,762.80",Rushcliffe Travel Ltd
Nottinghamshire County Council,1111/1001,Children and Young People,CYP,Transport Related,CCA,20/06/2022,03-14493,"1,450.80",Rushcliffe Travel Ltd
Nottinghamshire County Council,1111/1001,Children and Young People,CYP,Transport Related,CCA,20/06/2022,03-14494,"1,242.80",Rushcliffe Travel Ltd
Nottinghamshire County Council,1111/1001,Children and Young People,CYP,Transport Related,CCA,20/06/2022,03-14495,"1,346.80",Rushcliffe Travel Ltd
Nottinghamshire County Council,1111/1001,Children and Young People,CYP,Transport Related,CCA,20/06/2022,03-14496,"1,970.80",Rushcliffe Travel Ltd
Nottinghamshire County Council,1111/1001,Children and Young People,CYP,Transport Related,CCA,20/06/2022,03-14497,"1,300.00",Rushcliffe Travel Ltd
Nottinghamshire County Council,1111/1001,Children and Young People,CYP,Transport Related,CCA,20/06/2022,03-14498,"2,273.96",Rushcliffe Travel Ltd
Nottinghamshire County Council,1111/1001,Children and Young People,CYP,Transport Related,CCA,20/06/2022,03-14499,"1,508.00",Rushcliffe Travel Ltd
Nottinghamshire County Council,1111/1001,Children and Young People,CYP,Transport Related,CCA,20/06/2022,03-14500,"1,138.80",Rushcliffe Travel Ltd
Nottinghamshire County Council,1111/1001,Children and Young People,CYP,Transport Related,CCA,20/06/2022,03-14501,"1,554.80",Rushcliffe Travel Ltd
Nottinghamshire County Council,1111/1001,Children and Young People,CYP,Transport Related,CCA,20/06/2022,03-14502,"1,970.80",Rushcliffe Travel Ltd
Nottinghamshire County Council,1111/1001,Children and Young People,CYP,Transport Related,CCA,20/06/2022,03-14503,"1,508.00",Rushcliffe Travel Ltd
Nottinghamshire County Council,1111/1001,Children and Young People,CYP,Transport Related,CCA,20/06/2022,03-14506,"2,862.16",CT4N Ltd
Nottinghamshire County Council,1111/1001,Children and Young People,CYP,Transport Related,CCA,20/06/2022,03-14507,"2,862.16",CT4N Ltd
Nottinghamshire County Council,1111/1001,Children and Young People,CYP,Transport Related,CCA,20/06/2022,03-14508,"2,862.16",CT4N Ltd
Nottinghamshire County Council,1111/1001,Children and Young People,CYP,Transport Related,CCA,20/06/2022,03-14509,"2,444.54",CT4N Ltd
Nottinghamshire County Council,1111/1001,Children and Young People,CYP,Transport Related,CCA,20/06/2022,03-14510,"2,444.54",CT4N Ltd
Nottinghamshire County Council,1111/1001,Children and Young People,CYP,Transport Related,CCA,20/06/2022,03-14511,988,CT4N Ltd
Nottinghamshire County Council,1111/1001,Children and Young People,CYP,Transport Related,CCA,20/06/2022,03-14512,"3,359.20",CT4N Ltd
Nottinghamshire County Council,1111/1001,Children and Young People,CYP,Transport Related,CCA,20/06/2022,03-14513,"2,766.40",CT4N Ltd
Nottinghamshire County Council,1111/1001,Children and Young People,CYP,Transport Related,CCA,20/06/2022,03-14514,830.5,SM Travel Yorkshire Ltd
Nottinghamshire County Council,1111/1001,Children and Young People,CYP,Transport Related,CCA,20/06/2022,03-14516,"1,474.20",A1 Private Hire Ltd
Nottinghamshire County Council,1111/1001,Children and Young People,CYP,Transport Related,CCA,20/06/2022,03-14517,"1,116.00",A1 Private Hire Ltd
Nottinghamshire County Council,1111/1001,Children and Young People,CYP,Transport Related,CCA,20/06/2022,03-14518,898.56,A1 Private Hire Ltd
Nottinghamshire County Council,1111/1001,Children and Young People,CYP,Transport Related,CCA,20/06/2022,03-14519,896,A1 Private Hire Ltd
Nottinghamshire County Council,1111/1001,Children and Young People,CYP,Transport Related,CCA,20/06/2022,03-14520,"1,541.28",A1 Private Hire Ltd
Nottinghamshire County Council,1111/1001,Children and Young People,CYP,Transport Related,CCA,20/06/2022,03-14521,"2,134.08",A1 Private Hire Ltd
Nottinghamshire County Council,1111/1001,Children and Young People,CYP,Transport Related,CCA,20/06/2022,03-14522,879.84,A1 Private Hire Ltd
Nottinghamshire County Council,1111/1001,Children and Young People,CYP,Transport Related,CCA,20/06/2022,03-14523,538.72,A1 Private Hire Ltd
Nottinghamshire County Council,1111/1001,Children and Young People,CYP,Transport Related,CCA,20/06/2022,03-14524,"3,046.68",A1 Private Hire Ltd
Nottinghamshire County Council,1111/1001,Children and Young People,CYP,Transport Related,CCA,20/06/2022,03-14525,"2,321.28",A1 Private Hire Ltd
Nottinghamshire County Council,1111/1001,Children and Young People,CYP,Transport Related,CCA,20/06/2022,03-14526,"1,857.44",A1 Private Hire Ltd
Nottinghamshire County Council,1111/1001,Children and Young People,CYP,Transport Related,CCA,20/06/2022,03-14527,"2,356.00",A1 Private Hire Ltd
Nottinghamshire County Council,1111/1001,Children and Young People,CYP,Transport Related,CCA,20/06/2022,03-14528,"1,857.44",A1 Private Hire Ltd
Nottinghamshire County Council,1111/1001,Children and Young People,CYP,Transport Related,CCA,20/06/2022,03-14530,"2,134.08",A1 Private Hire Ltd
Nottinghamshire County Council,1111/1001,Children and Young People,CYP,Transport Related,CCA,20/06/2022,03-14531,"1,080.00",A1 Private Hire Ltd
Nottinghamshire County Council,1111/1001,Children and Young People,CYP,Transport Related,CCA,20/06/2022,03-14532,846,A1 Private Hire Ltd
Nottinghamshire County Council,1111/1001,Children and Young People,CYP,Transport Related,CCA,23/06/2022,03-14242,"1,936.48",AJ's Travel
Nottinghamshire County Council,1111/1001,Children and Young People,CYP,Transport Related,CCA,24/06/2022,03-10154,"2,957.54",Fulwood Travel Ltd
Nottinghamshire County Council,1111/1001,Children and Young People,CYP,Transport Related,CCA,24/06/2022,03-14220,"3,032.78",24 x 7 Nottinghamshire Ltd
Nottinghamshire County Council,1111/1001,Children and Young People,CYP,Transport Related,CCA,24/06/2022,03-14221,"1,975.81",24 x 7 Nottinghamshire Ltd
Nottinghamshire County Council,1111/1001,Children and Young People,CYP,Transport Related,CCA,24/06/2022,03-14222,"1,555.50",24 x 7 Nottinghamshire Ltd
Nottinghamshire County Council,1111/1001,Children and Young People,CYP,Transport Related,CCA,24/06/2022,03-14223,"1,383.96",24 x 7 Nottinghamshire Ltd
Nottinghamshire County Council,1111/1001,Children and Young People,CYP,Transport Related,CCA,24/06/2022,03-14224,"1,062.92",24 x 7 Nottinghamshire Ltd
Nottinghamshire County Council,1111/1001,Children and Young People,CYP,Transport Related,CCA,24/06/2022,03-14225,"3,377.82",24 x 7 Nottinghamshire Ltd
Nottinghamshire County Council,1111/1001,Children and Young People,CYP,Transport Related,CCA,24/06/2022,03-14226,"2,531.37",24 x 7 Nottinghamshire Ltd
Nottinghamshire County Council,1111/1001,Children and Young People,CYP,Transport Related,CCA,24/06/2022,03-14227,"2,052.19",24 x 7 Nottinghamshire Ltd
Nottinghamshire County Council,1111/1001,Children and Young People,CYP,Transport Related,CCA,24/06/2022,03-14228,"1,681.12",24 x 7 Nottinghamshire Ltd
Nottinghamshire County Council,1111/1001,Children and Young People,CYP,Transport Related,CCA,24/06/2022,03-14229,"2,139.97",24 x 7 Nottinghamshire Ltd
Nottinghamshire County Council,1111/1001,Children and Young People,CYP,Transport Related,CCA,24/06/2022,03-14230,"2,521.11",24 x 7 Nottinghamshire Ltd
Nottinghamshire County Council,1111/1001,Children and Young People,CYP,Transport Related,CCA,24/06/2022,03-14231,"2,046.30",24 x 7 Nottinghamshire Ltd
Nottinghamshire County Council,1111/1001,Children and Young People,CYP,Transport Related,CCA,24/06/2022,03-14232,"2,335.67",24 x 7 Nottinghamshire Ltd
Nottinghamshire County Council,1111/1001,Children and Young People,CYP,Transport Related,CCA,24/06/2022,03-14233,"2,133.13",24 x 7 Nottinghamshire Ltd
Nottinghamshire County Council,1111/1001,Children and Young People,CYP,Transport Related,CCA,24/06/2022,03-14234,"3,413.54",24 x 7 Nottinghamshire Ltd
Nottinghamshire County Council,1111/1001,Children and Young People,CYP,Transport Related,CCA,24/06/2022,03-14235,"1,968.59",24 x 7 Nottinghamshire Ltd
Nottinghamshire County Council,1111/1001,Children and Young People,CYP,Transport Related,CCA,24/06/2022,03-14237,"2,198.87",24 x 7 Nottinghamshire Ltd
Nottinghamshire County Council,1111/1001,Children and Young People,CYP,Transport Related,CCA,24/06/2022,03-14238,"1,407.33",24 x 7 Nottinghamshire Ltd
Nottinghamshire County Council,1111/1001,Children and Young People,CYP,Transport Related,CCA,24/06/2022,03-14239,"2,089.43",24 x 7 Nottinghamshire Ltd
Nottinghamshire County Council,1111/1001,Children and Young People,CYP,Transport Related,CCA,24/06/2022,03-14240,"4,515.54",24 x 7 Nottinghamshire Ltd
Nottinghamshire County Council,1111/1001,Children and Young People,CYP,Transport Related,CCA,24/06/2022,03-14241,"2,642.70",24 x 7 Nottinghamshire Ltd
Nottinghamshire County Council,1111/1001,Children and Young People,CYP,Transport Related,CCA,24/06/2022,03-14243,829.83,AJ's Travel
Nottinghamshire County Council,1111/1001,Children and Young People,CYP,Transport Related,CCA,28/06/2022,03-16342,"1,460.34",Southside Cars Ltd
Nottinghamshire County Council,1111/1001,Children and Young People,CYP,Transport Related,CCA,28/06/2022,03-16343,896.94,Southside Cars Ltd
Nottinghamshire County Council,1111/1001,Children and Young People,CYP,Transport Related,CCA,28/06/2022,03-16344,985.92,Southside Cars Ltd
Nottinghamshire County Council,1111/1001,Children and Young People,CYP,Transport Related,CCA,28/06/2022,03-16345,"1,487.14",Southside Cars Ltd
Nottinghamshire County Council,1111/1001,Children and Young People,CYP,Transport Related,CCA,28/06/2022,03-16346,"1,084.60",Southside Cars Ltd
Nottinghamshire County Council,1111/1001,Children and Young People,CYP,Transport Related,CCA,28/06/2022,03-16347,"1,896.96",Southside Cars Ltd
Nottinghamshire County Council,1111/1001,Children and Young People,CYP,Transport Related,CCA,28/06/2022,03-16348,"1,901.14",Southside Cars Ltd
Nottinghamshire County Council,1111/1001,Children and Young People,CYP,Transport Related,CCA,28/06/2022,03-16349,"1,931.16",Southside Cars Ltd
Nottinghamshire County Council,1111/1001,Children and Young People,CYP,Transport Related,CCA,28/06/2022,03-16350,"1,940.66",Southside Cars Ltd
Nottinghamshire County Council,1111/1001,Children and Young People,CYP,Transport Related,CCA,28/06/2022,03-16351,"1,940.66",Southside Cars Ltd
Nottinghamshire County Council,1111/1001,Children and Young People,CYP,Transport Related,CCA,28/06/2022,03-16352,"1,555.50",Southside Cars Ltd
Nottinghamshire County Council,1111/1001,Children and Young People,CYP,Transport Related,CCA,28/06/2022,03-16353,"1,557.00",Southside Cars Ltd
Nottinghamshire County Council,1111/1001,Children and Young People,CYP,Transport Related,CCA,28/06/2022,03-16354,"1,152.36",Southside Cars Ltd
Nottinghamshire County Council,1111/1001,Children and Young People,CYP,Transport Related,CCA,28/06/2022,03-16355,"1,622.10",Southside Cars Ltd
Nottinghamshire County Council,1111/1001,Children and Young People,CYP,Transport Related,CCA,28/06/2022,03-16356,"1,946.88",Southside Cars Ltd
Nottinghamshire County Council,1111/1001,Children and Young People,CYP,Transport Related,CCA,28/06/2022,03-16358,"2,090.76",Southside Cars Ltd
Nottinghamshire County Council,1111/1001,Children and Young People,CYP,Transport Related,CCA,28/06/2022,03-16359,"1,322.88",Southside Cars Ltd
Nottinghamshire County Council,1111/1001,Children and Young People,CYP,Transport Related,CCA,28/06/2022,03-16360,"2,036.16",Southside Cars Ltd
Nottinghamshire County Council,1111/1001,Children and Young People,CYP,Transport Related,CCA,28/06/2022,03-16361,"2,088.00",Southside Cars Ltd
Nottinghamshire County Council,1111/1001,Children and Young People,CYP,Transport Related,CCA,28/06/2022,03-16362,"2,223.00",Southside Cars Ltd
Nottinghamshire County Council,1111/1001,Children and Young People,CYP,Transport Related,CCA,28/06/2022,03-16363,"2,272.40",Southside Cars Ltd
Nottinghamshire County Council,1111/1001,Children and Young People,CYP,Transport Related,CCA,28/06/2022,03-16364,"2,292.16",Southside Cars Ltd
Nottinghamshire County Council,1111/1001,Children and Young People,CYP,Transport Related,CCA,28/06/2022,03-16365,"2,227.68",Southside Cars Ltd
Nottinghamshire County Council,1111/1001,Children and Young People,CYP,Transport Related,CCA,28/06/2022,03-16366,"2,427.06",Southside Cars Ltd
Nottinghamshire County Council,1111/1001,Children and Young People,CYP,Transport Related,CCA,28/06/2022,03-16367,"2,302.56",Southside Cars Ltd
Nottinghamshire County Council,1111/1001,Children and Young People,CYP,Transport Related,CCA,28/06/2022,03-16368,"2,507.24",Southside Cars Ltd
Nottinghamshire County Council,1111/1001,Children and Young People,CYP,Transport Related,CCA,28/06/2022,03-16369,"2,509.52",Southside Cars Ltd
Nottinghamshire County Council,1111/1001,Children and Young People,CYP,Transport Related,CCA,28/06/2022,03-16370,"1,995.30",Southside Cars Ltd
Nottinghamshire County Council,1111/1001,Children and Young People,CYP,Transport Related,CCA,28/06/2022,03-16371,"2,584.00",Southside Cars Ltd
Nottinghamshire County Council,1111/1001,Children and Young People,CYP,Transport Related,CCA,28/06/2022,03-16372,"2,508.48",Southside Cars Ltd
Nottinghamshire County Council,1111/1001,Children and Young People,CYP,Transport Related,CCA,28/06/2022,03-16374,"2,549.84",Southside Cars Ltd
Nottinghamshire County Council,1111/1001,Children and Young People,CYP,Transport Related,CCA,28/06/2022,03-16375,"2,620.80",Southside Cars Ltd
Nottinghamshire County Council,1111/1001,Children and Young People,CYP,Transport Related,CCA,28/06/2022,03-16376,"1,616.16",Southside Cars Ltd
Nottinghamshire County Council,1111/1001,Children and Young People,CYP,Transport Related,CCA,28/06/2022,03-16377,"2,964.00",Southside Cars Ltd
Nottinghamshire County Council,1111/1001,Children and Young People,CYP,Transport Related,CCA,28/06/2022,03-16378,"2,745.60",Southside Cars Ltd
Nottinghamshire County Council,1111/1001,Children and Young People,CYP,Transport Related,CCA,28/06/2022,03-16380,"3,473.96",Southside Cars Ltd
Nottinghamshire County Council,1111/1001,Children and Young People,CYP,Transport Related,CCA,28/06/2022,03-16382,"2,808.00",Southside Cars Ltd
Nottinghamshire County Council,1111/1001,Children and Young People,CYP,Transport Related,CCA,28/06/2022,03-16383,"4,268.16",Southside Cars Ltd
Nottinghamshire County Council,1111/1001,Children and Young People,CYP,Transport Related,CCA,28/06/2022,03-16384,"4,534.16",Southside Cars Ltd
Nottinghamshire County Council,1111/1001,Children and Young People,CYP,Transport Related,CCA,28/06/2022,03-16385,"1,440.20",6 Five 2s
Nottinghamshire County Council,1111/1001,Children and Young People,CYP,Transport Related,CCA,28/06/2022,03-16388,892.81,6 Five 2s
Nottinghamshire County Council,1111/1001,Children and Young People,CYP,Transport Related,CCA,28/06/2022,03-16389,"3,833.82",Johnson Bros Tours Ltd
Nottinghamshire County Council,1111/1001,Children and Young People,CYP,Transport Related,CCA,28/06/2022,03-16390,"4,910.94",Johnson Bros Tours Ltd
Nottinghamshire County Council,1111/1001,Children and Young People,CYP,Transport Related,CCA,28/06/2022,03-16400,"15,142.61",Erewash Community Transport
Nottinghamshire County Council,1111/1001,Children and Young People,CYP,Transport Related,CCA,28/06/2022,03-16402,"1,877.20",Elkingtons Park Garage
Nottinghamshire County Council,1111/1001,Children and Young People,CYP,Transport Related,CCA,28/06/2022,03-16403,"2,044.05",BN Gibson Ltd
Nottinghamshire County Council,1111/1001,Children and Young People,CYP,Transport Related,CCA,28/06/2022,03-16404,"1,784.16",Skills Motor Coaches Ltd
Nottinghamshire County Council,1111/1001,Children and Young People,CYP,Transport Related,CCA,28/06/2022,03-16405,790.4,D G Private Hire Ltd
Nottinghamshire County Council,1111/1001,Children and Young People,CYP,Transport Related,CCA,28/06/2022,03-16408,"3,160.51",Marshalls Of Sutton On Trent Ltd
Nottinghamshire County Council,1111/1001,Children and Young People,CYP,Transport Related,CCA,28/06/2022,03-16409,"1,260.00",Silverdale Tours Nottm Ltd
Nottinghamshire County Council,1111/1001,Children and Young People,CYP,Transport Related,CCA,28/06/2022,03-16410,"2,676.54",Freeway Coaches Ltd
Nottinghamshire County Council,1111/1001,Children and Young People,CYP,Transport Related,CCA,28/06/2022,03-16411,"3,557.93",Kettlewell Retford Ltd
Nottinghamshire County Council,1111/1001,Children and Young People,CYP,Transport Related,CCA,28/06/2022,03-16412,"6,033.23",Kettlewell Retford Ltd
Nottinghamshire County Council,1111/1001,Children and Young People,CYP,Transport Related,CCA,28/06/2022,03-16413,679.68,Kettlewell Retford Ltd
Nottinghamshire County Council,1111/1001,Children and Young People,CYP,Transport Related,CCA,28/06/2022,03-16417,"1,916.91",CT4N Ltd
Nottinghamshire County Council,1111/1001,Children and Young People,CYP,Transport Related,CCA,28/06/2022,03-16426,936,Notts school Run
Nottinghamshire County Council,1111/1001,Children and Young People,CYP,Transport Related,CCA,28/06/2022,03-16445,"1,067.04",Southside Cars Ltd
Nottinghamshire County Council,1111/1001,Children and Young People,CYP,Transport Related,CCA,28/06/2022,03-16446,629.2,Southside Cars Ltd
Nottinghamshire County Council,1111/1001,Children and Young People,CYP,Transport Related,CCA,28/06/2022,03-16447,"1,146.08",Southside Cars Ltd
Nottinghamshire County Council,1111/1001,Children and Young People,CYP,Transport Related,CCA,28/06/2022,03-16449,"1,183.70",Southside Cars Ltd
Nottinghamshire County Council,1111/1001,Children and Young People,CYP,Transport Related,CCA,28/06/2022,03-16450,"1,225.12",Southside Cars Ltd
Nottinghamshire County Council,1111/1001,Children and Young People,CYP,Transport Related,CCA,28/06/2022,03-16451,"1,284.40",Southside Cars Ltd
Nottinghamshire County Council,1111/1001,Children and Young People,CYP,Transport Related,CCA,28/06/2022,03-16452,755.04,Southside Cars Ltd
Nottinghamshire County Council,1111/1001,Children and Young People,CYP,Transport Related,CCA,28/06/2022,03-16453,"1,381.30",Southside Cars Ltd
Nottinghamshire County Council,1111/1001,Children and Young People,CYP,Transport Related,CCA,28/06/2022,03-16454,"1,381.30",Southside Cars Ltd
Nottinghamshire County Council,1111/1001,Children and Young People,CYP,Transport Related,CCA,28/06/2022,03-16455,511,Southside Cars Ltd
Nottinghamshire County Council,1111/1001,Children and Young People,CYP,Transport Related,CCA,28/06/2022,03-16456,"1,021.36",Ideal Cars (Private Hire) Ltd
Nottinghamshire County Council,1111/1001,Children and Young People,CYP,Transport Related,CCA,28/06/2022,03-16461,"2,865.20",Rushcliffe Travel Ltd
Nottinghamshire County Council,1111/1001,Children and Young People,CYP,Transport Related,CCA,28/06/2022,03-16462,"3,349.32",Rushcliffe Travel Ltd
Nottinghamshire County Council,1111/1001,Children and Young People,CYP,Transport Related,CCA,28/06/2022,03-16463,"3,892.20",Rushcliffe Travel Ltd
Nottinghamshire County Council,1111/1001,Children and Young People,CYP,Transport Related,CCA,28/06/2022,03-16464,"3,942.12",Rushcliffe Travel Ltd
Nottinghamshire County Council,1111/1001,Children and Young People,CYP,Transport Related,CCA,28/06/2022,03-16465,"4,761.64",Rushcliffe Travel Ltd
Nottinghamshire County Council,1111/1001,Children and Young People,CYP,Transport Related,CCA,28/06/2022,03-16466,"5,920.20",Rushcliffe Travel Ltd
Nottinghamshire County Council,1111/1001,Children and Young People,CYP,Transport Related,CCA,28/06/2022,03-16467,"4,672.20",Rushcliffe Travel Ltd
Nottinghamshire County Council,1111/1001,Children and Young People,CYP,Transport Related,CCA,28/06/2022,03-16468,"2,756.52",Rushcliffe Travel Ltd
Nottinghamshire County Council,1111/1001,Children and Young People,CYP,Transport Related,CCA,28/06/2022,03-16469,"2,361.32",Rushcliffe Travel Ltd
Nottinghamshire County Council,1111/1001,Children and Young People,CYP,Transport Related,CCA,28/06/2022,03-16470,"3,744.52",Rushcliffe Travel Ltd
Nottinghamshire County Council,1111/1001,Children and Young People,CYP,Transport Related,CCA,28/06/2022,03-16471,"2,470.00",Rushcliffe Travel Ltd
Nottinghamshire County Council,1111/1001,Children and Young People,CYP,Transport Related,CCA,28/06/2022,03-16472,"4,906.20",Rushcliffe Travel Ltd
Nottinghamshire County Council,1111/1001,Children and Young People,CYP,Transport Related,CCA,28/06/2022,03-16473,"2,865.20",Rushcliffe Travel Ltd
Nottinghamshire County Council,1111/1001,Children and Young People,CYP,Transport Related,CCA,28/06/2022,03-16474,"2,163.72",Rushcliffe Travel Ltd
Nottinghamshire County Council,1111/1001,Children and Young People,CYP,Transport Related,CCA,28/06/2022,03-16475,"2,865.20",Rushcliffe Travel Ltd
Nottinghamshire County Council,1111/1001,Children and Young People,CYP,Transport Related,CCA,30/06/2022,03-16501,571.36,Sharpes Of Nottingham
Nottinghamshire County Council,1111/1001,Children and Young People,CYP,Transport Related,CCA,30/06/2022,03-16502,"2,171.40",Sharpes Of Nottingham
Nottinghamshire County Council,1111/1001,Children and Young People,CYP,Transport Related,CCA,30/06/2022,03-16503,"3,463.89",Silverdale Tours Nottm Ltd
Nottinghamshire County Council,1111/1001,Children and Young People,CYP,Transport Related,CCA,30/06/2022,03-16504,"3,463.89",Silverdale Tours Nottm Ltd
Nottinghamshire County Council,1111/1001,Children and Young People,CYP,Transport Related,CCA,30/06/2022,03-16505,"2,134.69",Freeway Coaches Ltd
Nottinghamshire County Council,1111/1001,Children and Young People,CYP,Transport Related,CCA,30/06/2022,03-16506,"2,219.58",Freeway Coaches Ltd
Nottinghamshire County Council,1111/1001,Children and Young People,CYP,Transport Related,CCA,30/06/2022,03-16507,"10,735.57",Ace Cars & Minibuses Ltd
Nottinghamshire County Council,1111/1001,Children and Young People,CYP,Transport Related,CCA,30/06/2022,03-16508,"1,180.66",Ace Cars & Minibuses Ltd
Nottinghamshire County Council,1111/1001,Children and Young People,CYP,Transport Related,CCA,30/06/2022,03-16512,"2,424.24",Rushcliffe Travel Ltd
Nottinghamshire County Council,1111/1001,Children and Young People,CYP,Transport Related,CCA,30/06/2022,03-16513,"2,798.64",Rushcliffe Travel Ltd
Nottinghamshire County Council,1111/1001,Children and Young People,CYP,Transport Related,CCA,30/06/2022,03-16514,"3,547.44",Rushcliffe Travel Ltd
Nottinghamshire County Council,1111/1001,Children and Young People,CYP,Transport Related,CCA,30/06/2022,03-16865,"1,418.56",W Hollingsworth T/A Target Taxis
Nottinghamshire County Council,1111/1001,Children and Young People,CYP,Transport Related,CCA,30/06/2022,03-16867,"4,815.95",Via East Midlands Ltd
Nottinghamshire County Council,1111/1001,Children and Young People,CYP,Transport Related,CCA,30/06/2022,03-16872,729.06,Via East Midlands Ltd
Nottinghamshire County Council,1111/1001,Children and Young People,CYP,Transport Related,CDA,01/06/2022,03-10111,748.97,D G Private Hire Ltd
Nottinghamshire County Council,1111/1001,Children and Young People,CYP,Transport Related,CDA,01/06/2022,03-10128,"12,461.54",Stagecoach Services Ltd
Nottinghamshire County Council,1111/1001,Children and Young People,CYP,Transport Related,CDA,01/06/2022,03-10136,"1,016.30",SM Travel Yorkshire Ltd
Nottinghamshire County Council,1111/1001,Children and Young People,CYP,Transport Related,CDA,07/06/2022,03-12759,"6,468.58",AOT Coaches Nottingham LLP
Nottinghamshire County Council,1111/1001,Children and Young People,CYP,Transport Related,CDA,07/06/2022,03-12766,"1,745.60",Cloud Cars Ltd
Nottinghamshire County Council,1111/1001,Children and Young People,CYP,Transport Related,CDA,10/06/2022,03-13368,"1,858.00",Southside Cars Ltd
Nottinghamshire County Council,1111/1001,Children and Young People,CYP,Transport Related,CDA,10/06/2022,03-13407,"1,497.60",200 Cars Ltd
Nottinghamshire County Council,1111/1001,Children and Young People,CYP,Transport Related,CDA,10/06/2022,03-13474,"2,549.44",Arrow Specialised Transport Ltd
Nottinghamshire County Council,1111/1001,Children and Young People,CYP,Transport Related,CDA,10/06/2022,03-13485,"2,763.17",Arrow Specialised Transport Ltd
Nottinghamshire County Council,1111/1001,Children and Young People,CYP,Transport Related,CDA,10/06/2022,03-13589,"25,016.67",Stagecoach Services Ltd
Nottinghamshire County Council,1111/1001,Children and Young People,CYP,Transport Related,CDA,10/06/2022,03-13636,"6,908.97",Paul S Winson Coaches
Nottinghamshire County Council,1111/1001,Children and Young People,CYP,Transport Related,CDA,10/06/2022,03-13677,"1,601.60",Ideal Cars (Private Hire) Ltd
Nottinghamshire County Council,1111/1001,Children and Young People,CYP,Transport Related,CDA,10/06/2022,03-13679,880,Gxpress Cars
Nottinghamshire County Council,1111/1001,Children and Young People,CYP,Transport Related,CDA,10/06/2022,03-13680,275,Millennium Travel (Mansfield) Ltd
Nottinghamshire County Council,1111/1001,Children and Young People,CYP,Transport Related,CDA,15/06/2022,03-14073,648,Corkys Cars Midlands Ltd
Nottinghamshire County Council,1111/1001,Children and Young People,CYP,Transport Related,CDA,15/06/2022,03-14101,"6,436.82",Johnson Bros Tours Ltd
Nottinghamshire County Council,1111/1001,Children and Young People,CYP,Transport Related,CDA,15/06/2022,03-14102,"2,316.48",Johnson Bros Tours Ltd
Nottinghamshire County Council,1111/1001,Children and Young People,CYP,Transport Related,CDA,15/06/2022,03-14105,"6,175.00",Johnson Bros Tours Ltd
Nottinghamshire County Council,1111/1001,Children and Young People,CYP,Transport Related,CDA,15/06/2022,03-14155,"2,824.92",Nottingham Minibuses & Coaches
Nottinghamshire County Council,1111/1001,Children and Young People,CYP,Transport Related,CDA,15/06/2022,03-14156,"2,623.14",Nottingham Minibuses & Coaches
Nottinghamshire County Council,1111/1001,Children and Young People,CYP,Transport Related,CDA,15/06/2022,03-14157,"2,426.49",Nottingham Minibuses & Coaches
Nottinghamshire County Council,1111/1001,Children and Young People,CYP,Transport Related,CDA,15/06/2022,03-14158,"1,916.91",Nottingham Minibuses & Coaches
Nottinghamshire County Council,1111/1001,Children and Young People,CYP,Transport Related,CDA,15/06/2022,03-14159,"2,522.25",Nottingham Minibuses & Coaches
Nottinghamshire County Council,1111/1001,Children and Young People,CYP,Transport Related,CDA,15/06/2022,03-14161,"2,853.23",Nottingham Minibuses & Coaches
Nottinghamshire County Council,1111/1001,Children and Young People,CYP,Transport Related,CDA,15/06/2022,03-14162,"4,740.12",Nottingham Minibuses & Coaches
Nottinghamshire County Council,1111/1001,Children and Young People,CYP,Transport Related,CDA,15/06/2022,03-14163,"2,623.14",Nottingham Minibuses & Coaches
Nottinghamshire County Council,1111/1001,Children and Young People,CYP,Transport Related,CDA,15/06/2022,03-14166,"17,211.15",Nottingham Minibuses & Coaches
Nottinghamshire County Council,1111/1001,Children and Young People,CYP,Transport Related,CDA,15/06/2022,03-14172,"3,329.37",Silverdale Tours Nottm Ltd
Nottinghamshire County Council,1111/1001,Children and Young People,CYP,Transport Related,CDA,15/06/2022,03-14173,"3,329.37",Silverdale Tours Nottm Ltd
Nottinghamshire County Council,1111/1001,Children and Young People,CYP,Transport Related,CDA,15/06/2022,03-14174,"3,329.37",Silverdale Tours Nottm Ltd
Nottinghamshire County Council,1111/1001,Children and Young People,CYP,Transport Related,CDA,15/06/2022,03-14175,"3,329.37",Silverdale Tours Nottm Ltd
Nottinghamshire County Council,1111/1001,Children and Young People,CYP,Transport Related,CDA,15/06/2022,03-14191,"1,715.14",SM Travel Yorkshire Ltd
Nottinghamshire County Council,1111/1001,Children and Young People,CYP,Transport Related,CDA,15/06/2022,03-14218,"1,076.92",SM Travel Yorkshire Ltd
Nottinghamshire County Council,1111/1001,Children and Young People,CYP,Transport Related,CDA,20/06/2022,03-14455,"6,083.61",Marshalls Of Sutton On Trent Ltd
Nottinghamshire County Council,1111/1001,Children and Young People,CYP,Transport Related,CDA,20/06/2022,03-14472,"2,724.03",C W Moxon Ltd
Nottinghamshire County Council,1111/1001,Children and Young People,CYP,Transport Related,CDA,20/06/2022,03-14473,"14,891.44",C W Moxon Ltd
Nottinghamshire County Council,1111/1001,Children and Young People,CYP,Transport Related,CDA,20/06/2022,03-14474,"5,206.00",C W Moxon Ltd
Nottinghamshire County Council,1111/1001,Children and Young People,CYP,Transport Related,CDA,20/06/2022,03-14482,"1,554.80",Rushcliffe Travel Ltd
Nottinghamshire County Council,1111/1001,Children and Young People,CYP,Transport Related,CDA,24/06/2022,03-14235,292.36,24 x 7 Nottinghamshire Ltd
Nottinghamshire County Council,1111/1001,Children and Young People,CYP,Transport Related,CDA,28/06/2022,03-16381,"3,530.20",Southside Cars Ltd
Nottinghamshire County Council,1111/1001,Children and Young People,CYP,Transport Related,CDA,28/06/2022,03-16400,340.63,Erewash Community Transport
Nottinghamshire County Council,1111/1001,Children and Young People,CYP,Transport Related,CDA,28/06/2022,03-16459,"2,954.12",Rushcliffe Travel Ltd
Nottinghamshire County Council,1111/1001,Children and Young People,CYP,Transport Related,CDA,30/06/2022,03-16508,"1,180.66",Ace Cars & Minibuses Ltd
Nottinghamshire County Council,1111/1001,Children and Young People,CYP,Transport Related,CEA,06/06/2022,03-10115,"3,932.62",Reed Employment Ltd
Nottinghamshire County Council,1111/1001,Children and Young People,CYP,Transport Related,CEA,27/06/2022,03-16036,"2,870.42",Reed Employment Ltd
Nottinghamshire County Council,1111/1001,Children and Young People,CYP,Transport Related,CEA,27/06/2022,03-16041,"3,763.23",Reed Employment Ltd
Nottinghamshire County Council,1111/1001,Children and Young People,CYP,Transport Related,CEA,27/06/2022,03-16047,"3,163.84",Reed Employment Ltd
Nottinghamshire County Council,1111/1001,Children and Young People,CYP,Transport Related,CEA,30/06/2022,03-16872,"2,499.61",Via East Midlands Ltd
Nottinghamshire County Council,1111/1001,Children and Young People,CYP,Supplies & Services,DBA,01/06/2022,03-10051,"1,127.02",Brake Bros Ltd
Nottinghamshire County Council,1111/1001,Children and Young People,CYP,Supplies & Services,DBA,07/06/2022,03-12675,294.07,M Maloney Country Butchers & B Ltd
Nottinghamshire County Council,1111/1001,Children and Young People,CYP,Supplies & Services,DBA,13/06/2022,03-13764,266.7,M Maloney Country Butchers & B Ltd
Nottinghamshire County Council,1111/1001,Children and Young People,CYP,Supplies & Services,DBA,16/06/2022,03-14270,288.06,M Maloney Country Butchers & B Ltd
Nottinghamshire County Council,1111/1001,Children and Young People,CYP,Supplies & Services,DBA,20/06/2022,03-14823,"1,586.90",John Palin (Wholesale) Ltd
Nottinghamshire County Council,1111/1001,Children and Young People,CYP,Supplies & Services,DBA,22/06/2022,03-12681,744.04,Brake Bros Ltd
Nottinghamshire County Council,1111/1001,Children and Young People,CYP,Supplies & Services,DBA,22/06/2022,03-15979,202.95,M Maloney Country Butchers & B Ltd
Nottinghamshire County Council,1111/1001,Children and Young People,CYP,Supplies & Services,DBA,29/06/2022,03-14024,174.09,Brake Bros Ltd
Nottinghamshire County Council,1111/1001,Children and Young People,CYP,Supplies & Services,DEA,06/06/2022,03-10059,770,Cambridge Education / Mott Macdonal
Nottinghamshire County Council,1111/1001,Children and Young People,CYP,Supplies & Services,DEA,06/06/2022,03-10060,800,Cambridge Education / Mott Macdonal
Nottinghamshire County Council,1111/1001,Children and Young People,CYP,Supplies & Services,DEA,06/06/2022,03-10061,865,Cambridge Education / Mott Macdonal
Nottinghamshire County Council,1111/1001,Children and Young People,CYP,Supplies & Services,DEA,06/06/2022,03-10062,835,Cambridge Education / Mott Macdonal
Nottinghamshire County Council,1111/1001,Children and Young People,CYP,Supplies & Services,DEA,06/06/2022,03-10063,583.51,Cambridge Education / Mott Macdonal
Nottinghamshire County Council,1111/1001,Children and Young People,CYP,Supplies & Services,DEA,06/06/2022,03-10064,890.88,Cambridge Education / Mott Macdonal
Nottinghamshire County Council,1111/1001,Children and Young People,CYP,Supplies & Services,DEA,06/06/2022,03-10065,"3,577.50",Cambridge Education / Mott Macdonal
Nottinghamshire County Council,1111/1001,Children and Young People,CYP,Supplies & Services,DEA,06/06/2022,03-10066,"1,000.00",Cambridge Education / Mott Macdonal
Nottinghamshire County Council,1111/1001,Children and Young People,CYP,Supplies & Services,DEA,06/06/2022,03-10067,742.5,Cambridge Education / Mott Macdonal
Nottinghamshire County Council,1111/1001,Children and Young People,CYP,Supplies & Services,DEA,06/06/2022,03-10068,"1,215.00",Cambridge Education / Mott Macdonal
Nottinghamshire County Council,1111/1001,Children and Young People,CYP,Supplies & Services,DEA,06/06/2022,03-10069,836.5,Cambridge Education / Mott Macdonal
Nottinghamshire County Council,1111/1001,Children and Young People,CYP,Supplies & Services,DEA,06/06/2022,03-10083,927.58,Phs Group Plc
Nottinghamshire County Council,1111/1001,Children and Young People,CYP,Supplies & Services,DEA,06/06/2022,03-10110,"1,700.00",Pravin Patel Training & Consultancy
Nottinghamshire County Council,1111/1001,Children and Young People,CYP,Supplies & Services,DEA,06/06/2022,03-16883,500,Worksop Priory CE Primary Academy
Nottinghamshire County Council,1111/1001,Children and Young People,CYP,Supplies & Services,DEA,15/06/2022,03-14076,995,Hollies Day Nurseries Ltd
Nottinghamshire County Council,1111/1001,Children and Young People,CYP,Supplies & Services,DEA,22/06/2022,03-15879,500,Homes 2 Inspire Ltd
Nottinghamshire County Council,1111/1001,Children and Young People,CYP,Supplies & Services,DEA,22/06/2022,03-15880,500,Abbey Green Therapeutic Childrens S
Nottinghamshire County Council,1111/1001,Children and Young People,CYP,Supplies & Services,DEA,22/06/2022,03-15881,500,Homes for Support Ltd
Nottinghamshire County Council,1111/1001,Children and Young People,CYP,Supplies & Services,DEA,24/06/2022,03-16001,700,Cambridge Education / Mott Macdonal
Nottinghamshire County Council,1111/1001,Children and Young People,CYP,Supplies & Services,DEA,24/06/2022,03-16002,"1,872.50",Cambridge Education / Mott Macdonal
Nottinghamshire County Council,1111/1001,Children and Young People,CYP,Supplies & Services,DEA,24/06/2022,03-16003,"1,432.00",Cambridge Education / Mott Macdonal
Nottinghamshire County Council,1111/1001,Children and Young People,CYP,Supplies & Services,DEA,24/06/2022,03-16004,"1,820.00",Cambridge Education / Mott Macdonal
Nottinghamshire County Council,1111/1001,Children and Young People,CYP,Supplies & Services,DEA,24/06/2022,03-16005,"1,016.83",Cambridge Education / Mott Macdonal
Nottinghamshire County Council,1111/1001,Children and Young People,CYP,Supplies & Services,DEA,24/06/2022,03-16006,"1,687.50",Cambridge Education / Mott Macdonal
Nottinghamshire County Council,1111/1001,Children and Young People,CYP,Supplies & Services,DEA,24/06/2022,03-16007,"1,459.24",Cambridge Education / Mott Macdonal
Nottinghamshire County Council,1111/1001,Children and Young People,CYP,Supplies & Services,DEA,24/06/2022,03-16008,"2,178.75",Cambridge Education / Mott Macdonal
Nottinghamshire County Council,1111/1001,Children and Young People,CYP,Supplies & Services,DEA,24/06/2022,03-16009,"1,816.12",Cambridge Education / Mott Macdonal
Nottinghamshire County Council,1111/1001,Children and Young People,CYP,Supplies & Services,DEA,24/06/2022,03-16010,"3,040.42",Cambridge Education / Mott Macdonal
Nottinghamshire County Council,1111/1001,Children and Young People,CYP,Supplies & Services,DEA,24/06/2022,03-16011,810,Cambridge Education / Mott Macdonal
Nottinghamshire County Council,1111/1001,Children and Young People,CYP,Supplies & Services,DEA,24/06/2022,03-16012,"2,430.00",Cambridge Education / Mott Macdonal
Nottinghamshire County Council,1111/1001,Children and Young People,CYP,Supplies & Services,DEA,24/06/2022,03-16013,"3,347.50",Cambridge Education / Mott Macdonal
Nottinghamshire County Council,1111/1001,Children and Young People,CYP,Supplies & Services,DEA,24/06/2022,03-16014,"2,680.00",Cambridge Education / Mott Macdonal
Nottinghamshire County Council,1111/1001,Children and Young People,CYP,Supplies & Services,DEA,24/06/2022,03-16015,760,Cambridge Education / Mott Macdonal
Nottinghamshire County Council,1111/1001,Children and Young People,CYP,Supplies & Services,DEA,24/06/2022,03-16016,750,Cambridge Education / Mott Macdonal
Nottinghamshire County Council,1111/1001,Children and Young People,CYP,Supplies & Services,DEA,24/06/2022,03-16018,"1,120.00",Cambridge Education / Mott Macdonal
Nottinghamshire County Council,1111/1001,Children and Young People,CYP,Supplies & Services,DEA,24/06/2022,03-16019,560.18,Cambridge Education / Mott Macdonal
Nottinghamshire County Council,1111/1001,Children and Young People,CYP,Supplies & Services,DEA,24/06/2022,03-16020,"2,912.50",Cambridge Education / Mott Macdonal
Nottinghamshire County Council,1111/1001,Children and Young People,CYP,Supplies & Services,DEA,24/06/2022,03-16021,687.5,Cambridge Education / Mott Macdonal
Nottinghamshire County Council,1111/1001,Children and Young People,CYP,Supplies & Services,DEA,24/06/2022,03-16022,935,Cambridge Education / Mott Macdonal
Nottinghamshire County Council,1111/1001,Children and Young People,CYP,Supplies & Services,DEA,24/06/2022,03-16023,540,Cambridge Education / Mott Macdonal
Nottinghamshire County Council,1111/1001,Children and Young People,CYP,Supplies & Services,DEA,24/06/2022,03-16024,"1,500.00",Cambridge Education / Mott Macdonal
Nottinghamshire County Council,1111/1001,Children and Young People,CYP,Supplies & Services,DEA,24/06/2022,03-16025,504,Cambridge Education / Mott Macdonal
Nottinghamshire County Council,1111/1001,Children and Young People,CYP,Supplies & Services,DEA,24/06/2022,03-16026,"1,372.50",Cambridge Education / Mott Macdonal
Nottinghamshire County Council,1111/1001,Children and Young People,CYP,Supplies & Services,DEA,28/06/2022,03-16476,500,Rothera Solicitors
Nottinghamshire County Council,1111/1001,Children and Young People,CYP,Supplies & Services,DEA,29/06/2022,03-16483,500,Total Care Matters Ltd
Nottinghamshire County Council,1111/1001,Children and Young People,CYP,Supplies & Services,DEA,30/06/2022,03-12792,"1,005.00",Cambridge Education / Mott Macdonal
Nottinghamshire County Council,1111/1001,Children and Young People,CYP,Supplies & Services,DEA,30/06/2022,03-12793,"1,460.00",Cambridge Education / Mott Macdonal
Nottinghamshire County Council,1111/1001,Children and Young People,CYP,Supplies & Services,DEA,30/06/2022,03-12794,"4,215.00",Cambridge Education / Mott Macdonal
Nottinghamshire County Council,1111/1001,Children and Young People,CYP,Supplies & Services,DEA,30/06/2022,03-12875,704.3,Cambridge Education / Mott Macdonal
Nottinghamshire County Council,1111/1001,Children and Young People,CYP,Supplies & Services,DEA,30/06/2022,03-12876,507,Cambridge Education / Mott Macdonal
Nottinghamshire County Council,1111/1001,Children and Young People,CYP,Supplies & Services,DKA,06/06/2022,03-16893,"5,200.00",Police & Crime Commissioner for Not
Nottinghamshire County Council,1111/1001,Children and Young People,CYP,Supplies & Services,DKA,08/06/2022,03-12774,800,Norman Galloway Ltd
Nottinghamshire County Council,1111/1001,Children and Young People,CYP,Supplies & Services,DKA,08/06/2022,03-12775,550,Mansfield Property Services LtdT/A
Nottinghamshire County Council,1111/1001,Children and Young People,CYP,Supplies & Services,DKA,08/06/2022,03-12776,500,[Redacted]
Nottinghamshire County Council,1111/1001,Children and Young People,CYP,Supplies & Services,DKA,08/06/2022,03-12777,936,Rene House CIC
Nottinghamshire County Council,1111/1001,Children and Young People,CYP,Supplies & Services,DKA,08/06/2022,03-12791,500,Creative Care(East Midlands)Ltd(Hea
Nottinghamshire County Council,1111/1001,Children and Young People,CYP,Supplies & Services,DKA,09/06/2022,03-12907,"1,680.00",[Redacted]
Nottinghamshire County Council,1111/1001,Children and Young People,CYP,Supplies & Services,DKA,15/06/2022,03-14070,-3.99,Framework Housing Association
Nottinghamshire County Council,1111/1001,Children and Young People,CYP,Supplies & Services,DKA,15/06/2022,03-14072,"1,041.84",Mansfield District Council
Nottinghamshire County Council,1111/1001,Children and Young People,CYP,Supplies & Services,DKA,15/06/2022,03-14074,"1,000.00",[Redacted]
Nottinghamshire County Council,1111/1001,Children and Young People,CYP,Supplies & Services,DKA,15/06/2022,03-14075,"1,118.38",Safespaces Ltd
Nottinghamshire County Council,1111/1001,Children and Young People,CYP,Supplies & Services,DKA,15/06/2022,03-14077,"1,480.00",[Redacted]
Nottinghamshire County Council,1111/1001,Children and Young People,CYP,Supplies & Services,DKA,29/06/2022,03-16477,575,Norman Galloway Ltd
Nottinghamshire County Council,1111/1001,Children and Young People,CYP,Supplies & Services,DKA,29/06/2022,03-16478,750,[Redacted]
Nottinghamshire County Council,1111/1001,Children and Young People,CYP,Supplies & Services,DKA,29/06/2022,03-16479,995,MVS Transportation
Nottinghamshire County Council,1111/1001,Children and Young People,CYP,Supplies & Services,DKA,29/06/2022,03-16480,"2,251.82",Sixteen Plus Ltd
Nottinghamshire County Council,1111/1001,Children and Young People,CYP,Supplies & Services,DKA,29/06/2022,03-16481,"1,026.84",Hits Homes Trust
Nottinghamshire County Council,1111/1001,Children and Young People,CYP,Supplies & Services,DKA,29/06/2022,03-16484,900.16,Team Fostering
Nottinghamshire County Council,1111/1001,Children and Young People,CYP,Third Party Payments,EBA,10/06/2022,03-12946,"9,280.00",Ashfield District Council
Nottinghamshire County Council,1111/1001,Children and Young People,CYP,Third Party Payments,EDA,06/06/2022,03-10058,"127,624.00",Bramcote College
Nottinghamshire County Council,1111/1001,Children and Young People,CYP,Third Party Payments,EDA,06/06/2022,03-10095,"49,114.27",Magnus Church of England Academy
Nottinghamshire County Council,1111/1001,Children and Young People,CYP,Third Party Payments,EDA,06/06/2022,03-10157,900,Yeoman Park Academy
Nottinghamshire County Council,1111/1001,Children and Young People,CYP,Third Party Payments,EDA,06/06/2022,03-10158,"5,000.00",Yeoman Park Academy
Nottinghamshire County Council,1111/1001,Children and Young People,CYP,Third Party Payments,EDA,06/06/2022,03-10159,"4,166.67",Beech Academy
Nottinghamshire County Council,1111/1001,Children and Young People,CYP,Third Party Payments,EDA,06/06/2022,03-10160,"91,434.00",Beech Academy
Nottinghamshire County Council,1111/1001,Children and Young People,CYP,Third Party Payments,EDA,06/06/2022,03-10161,"4,166.67",Beech Academy
Nottinghamshire County Council,1111/1001,Children and Young People,CYP,Third Party Payments,EDA,06/06/2022,03-10162,"56,670.50",Redgate Primary Academy
Nottinghamshire County Council,1111/1001,Children and Young People,CYP,Third Party Payments,EDA,06/06/2022,03-10164,"132,449.08",Harlow Academy (Evolve Trust)
Nottinghamshire County Council,1111/1001,Children and Young People,CYP,Third Party Payments,EDA,06/06/2022,03-10165,"124,164.50",Yeoman Park Academy
Nottinghamshire County Council,1111/1001,Children and Young People,CYP,Third Party Payments,EDA,06/06/2022,03-10166,"106,282.67",Foxwood Academy
Nottinghamshire County Council,1111/1001,Children and Young People,CYP,Third Party Payments,EDA,06/06/2022,03-10169,"34,500.00",Poplar Farm School (Community Inc T
Nottinghamshire County Council,1111/1001,Children and Young People,CYP,Third Party Payments,EDA,06/06/2022,03-10170,"16,532.00",Mapplewells Primary & Nursery Acade
Nottinghamshire County Council,1111/1001,Children and Young People,CYP,Third Party Payments,EDA,06/06/2022,03-10171,"16,532.00",Heymann Primary School
Nottinghamshire County Council,1111/1001,Children and Young People,CYP,Third Party Payments,EDA,07/06/2022,03-12724,"4,654.00",Quarrydale Academy
Nottinghamshire County Council,1111/1001,Children and Young People,CYP,Third Party Payments,EDA,10/06/2022,03-12947,"2,550.00",Heymann Primary School
Nottinghamshire County Council,1111/1001,Children and Young People,CYP,Third Party Payments,EDA,21/06/2022,03-14831,"15,750.00",Oak Tree Lane Primary Academy
Nottinghamshire County Council,1111/1001,Children and Young People,CYP,Third Party Payments,EDA,21/06/2022,03-14832,990,Lowes Wong Infants (Academy)
Nottinghamshire County Council,1111/1001,Children and Young People,CYP,Third Party Payments,EDA,23/06/2022,03-14830,"5,978.00",Garibaldi School (Academy)
Nottinghamshire County Council,1111/1001,Children and Young People,CYP,Third Party Payments,EDA,23/06/2022,03-14833,"83,151.40",Garibaldi School (Academy)
Nottinghamshire County Council,1111/1001,Children and Young People,CYP,Third Party Payments,EDA,24/06/2022,03-12688,"4,654.00",Kimberley Primary & Nursery Acadamy
Nottinghamshire County Council,1111/1001,Children and Young People,CYP,Third Party Payments,EDA,24/06/2022,03-12689,"11,000.00",Kimberley Primary & Nursery Acadamy
Nottinghamshire County Council,1111/1001,Children and Young People,CYP,Third Party Payments,EDA,24/06/2022,03-12690,"4,654.00",Kimberley Primary & Nursery Acadamy
Nottinghamshire County Council,1111/1001,Children and Young People,CYP,Third Party Payments,EDA,24/06/2022,03-12691,"11,000.00",Kimberley Primary & Nursery Acadamy
Nottinghamshire County Council,1111/1001,Children and Young People,CYP,Third Party Payments,EDA,24/06/2022,03-12692,"11,000.00",Kimberley Primary & Nursery Acadamy
Nottinghamshire County Council,1111/1001,Children and Young People,CYP,Third Party Payments,EDA,24/06/2022,03-12693,"11,000.00",Kimberley School Academy
Nottinghamshire County Council,1111/1001,Children and Young People,CYP,Third Party Payments,EDA,24/06/2022,03-12694,"5,500.00",Kimberley School Academy
Nottinghamshire County Council,1111/1001,Children and Young People,CYP,Third Party Payments,EDA,24/06/2022,03-12695,"11,000.00",Kimberley School Academy
Nottinghamshire County Council,1111/1001,Children and Young People,CYP,Third Party Payments,EDA,24/06/2022,03-12696,"6,981.00",Kimberley School Academy
Nottinghamshire County Council,1111/1001,Children and Young People,CYP,Third Party Payments,EDA,24/06/2022,03-12697,"4,654.00",Mornington Primary Academy
Nottinghamshire County Council,1111/1001,Children and Young People,CYP,Third Party Payments,EDA,24/06/2022,03-12698,"11,000.00",Barnby Road Academy Prim & Nursery
Nottinghamshire County Council,1111/1001,Children and Young People,CYP,Third Party Payments,EDA,24/06/2022,03-12699,"11,000.00",Barnby Road Academy Prim & Nursery
Nottinghamshire County Council,1111/1001,Children and Young People,CYP,Third Party Payments,EDA,24/06/2022,03-12700,"4,654.00",Magnus Church of England Academy
Nottinghamshire County Council,1111/1001,Children and Young People,CYP,Third Party Payments,EDA,24/06/2022,03-12701,"4,654.00",Magnus Church of England Academy
Nottinghamshire County Council,1111/1001,Children and Young People,CYP,Third Party Payments,EDA,24/06/2022,03-12702,"4,654.00",Magnus Church of England Academy
Nottinghamshire County Council,1111/1001,Children and Young People,CYP,Third Party Payments,EDA,24/06/2022,03-12703,"4,654.00",Magnus Church of England Academy
Nottinghamshire County Council,1111/1001,Children and Young People,CYP,Third Party Payments,EDA,24/06/2022,03-12704,"11,000.00",Magnus Church of England Academy
Nottinghamshire County Council,1111/1001,Children and Young People,CYP,Third Party Payments,EDA,24/06/2022,03-12705,"4,654.00",Mount C of E Primary School (Academ
Nottinghamshire County Council,1111/1001,Children and Young People,CYP,Third Party Payments,EDA,24/06/2022,03-12706,"4,654.00",Mount C of E Primary School (Academ
Nottinghamshire County Council,1111/1001,Children and Young People,CYP,Third Party Payments,EDA,24/06/2022,03-12707,"4,654.00",Mount C of E Primary School (Academ
Nottinghamshire County Council,1111/1001,Children and Young People,CYP,Third Party Payments,EDA,24/06/2022,03-12708,"11,000.00",Manor Academy (Two Counties Trust)
Nottinghamshire County Council,1111/1001,Children and Young People,CYP,Third Party Payments,EDA,24/06/2022,03-12709,"11,000.00",Manor Academy (Two Counties Trust)
Nottinghamshire County Council,1111/1001,Children and Young People,CYP,Third Party Payments,EDA,24/06/2022,03-12710,"4,654.00",Manor Academy (Two Counties Trust)
Nottinghamshire County Council,1111/1001,Children and Young People,CYP,Third Party Payments,EDA,24/06/2022,03-12711,"11,000.00",Peafield Lane Academy
Nottinghamshire County Council,1111/1001,Children and Young People,CYP,Third Party Payments,EDA,24/06/2022,03-12712,"4,654.00",Meden School - A Torch Academy
Nottinghamshire County Council,1111/1001,Children and Young People,CYP,Third Party Payments,EDA,24/06/2022,03-12713,"11,000.00",Meden School - A Torch Academy
Nottinghamshire County Council,1111/1001,Children and Young People,CYP,Third Party Payments,EDA,24/06/2022,03-12714,"11,000.00",Farnsfield St Michael's C of E Acad
Nottinghamshire County Council,1111/1001,Children and Young People,CYP,Third Party Payments,EDA,24/06/2022,03-12715,"4,654.00",Lowes Wong Infants (Academy)
Nottinghamshire County Council,1111/1001,Children and Young People,CYP,Third Party Payments,EDA,24/06/2022,03-12716,"7,531.00",The Minster School (Academy)
Nottinghamshire County Council,1111/1001,Children and Young People,CYP,Third Party Payments,EDA,24/06/2022,03-12717,"16,500.00",The Minster School (Academy)
Nottinghamshire County Council,1111/1001,Children and Young People,CYP,Third Party Payments,EDA,24/06/2022,03-12718,"4,654.00",The Minster School (Academy)
Nottinghamshire County Council,1111/1001,Children and Young People,CYP,Third Party Payments,EDA,24/06/2022,03-12719,"4,654.00",Hucknall National Primary Academy
Nottinghamshire County Council,1111/1001,Children and Young People,CYP,Third Party Payments,EDA,24/06/2022,03-12720,"16,500.00",Bramcote College
Nottinghamshire County Council,1111/1001,Children and Young People,CYP,Third Party Payments,EDA,24/06/2022,03-12721,"4,654.00",Bramcote College
Nottinghamshire County Council,1111/1001,Children and Young People,CYP,Third Party Payments,EDA,24/06/2022,03-12722,"16,500.00",Bramcote College
Nottinghamshire County Council,1111/1001,Children and Young People,CYP,Third Party Payments,EDA,24/06/2022,03-12723,"11,000.00",Forest Glade Primary School (Academ
Nottinghamshire County Council,1111/1001,Children and Young People,CYP,Third Party Payments,EDA,24/06/2022,03-12725,"4,654.00",Skegby Junior Academy
Nottinghamshire County Council,1111/1001,Children and Young People,CYP,Third Party Payments,EDA,24/06/2022,03-12726,"4,654.00",The Flying High Academy
Nottinghamshire County Council,1111/1001,Children and Young People,CYP,Third Party Payments,EDA,24/06/2022,03-12727,"11,000.00",The Flying High Academy
Nottinghamshire County Council,1111/1001,Children and Young People,CYP,Third Party Payments,EDA,24/06/2022,03-12728,"11,000.00",The Flying High Academy
Nottinghamshire County Council,1111/1001,Children and Young People,CYP,Third Party Payments,EDA,24/06/2022,03-12729,"4,654.00",The Flying High Academy
Nottinghamshire County Council,1111/1001,Children and Young People,CYP,Third Party Payments,EDA,24/06/2022,03-12730,"11,000.00",The Flying High Academy
Nottinghamshire County Council,1111/1001,Children and Young People,CYP,Third Party Payments,EDA,24/06/2022,03-12731,"3,490.00",Kirkby College
Nottinghamshire County Council,1111/1001,Children and Young People,CYP,Third Party Payments,EDA,24/06/2022,03-12773,"11,000.00",Bishop Alexander LEAD Academy
Nottinghamshire County Council,1111/1001,Children and Young People,CYP,Third Party Payments,EDA,24/06/2022,03-12840,"11,000.00",Bishop Alexander LEAD Academy
Nottinghamshire County Council,1111/1001,Children and Young People,CYP,Third Party Payments,EDA,24/06/2022,03-12851,"11,000.00",Bishop Alexander LEAD Academy
Nottinghamshire County Council,1111/1001,Children and Young People,CYP,Third Party Payments,EDA,24/06/2022,03-12860,"4,654.00",Bishop Alexander LEAD Academy
Nottinghamshire County Council,1111/1001,Children and Young People,CYP,Third Party Payments,EDA,27/06/2022,03-15884,"11,000.00",Leverton C Of E Academy
Nottinghamshire County Council,1111/1001,Children and Young People,CYP,Third Party Payments,EFA,06/06/2022,03-16892,"21,651.43",Real Education Ltd
Nottinghamshire County Council,1111/1001,Children and Young People,CYP,Third Party Payments,EFA,06/06/2022,03-16895,"12,166.98",Derby College
Nottinghamshire County Council,1111/1001,Children and Young People,CYP,Third Party Payments,EFA,06/06/2022,03-16908,"2,600.00",Primary Literacy Consultancy
Nottinghamshire County Council,1111/1001,Children and Young People,CYP,Third Party Payments,EFA,13/06/2022,03-14029,"28,000.00",[Redacted]
Nottinghamshire County Council,1111/1001,Children and Young People,CYP,Third Party Payments,EFA,23/06/2022,03-15999,500,[Redacted]
Nottinghamshire County Council,1111/1001,Children and Young People,CYP,Third Party Payments,EFA,29/06/2022,03-16482,550,Floors4less
Nottinghamshire County Council,1111/1001,Children and Young People,CYP,Third Party Payments,EFA,30/06/2022,03-16866,"3,600.00",[Redacted]
Nottinghamshire County Council,1111/1001,Children and Young People,CYP,Third Party Payments,EGA,07/06/2022,03-12768,"7,294.56",Smarties Private Day Nursery
Nottinghamshire County Council,1111/1001,Children and Young People,CYP,Third Party Payments,EGA,13/06/2022,03-14030,"1,000.00",Killisick Pre-School
Nottinghamshire County Council,1111/1001,Children and Young People,CYP,Third Party Payments,EGA,15/06/2022,03-14070,833.7,Framework Housing Association
Nottinghamshire County Council,1111/1001,Children and Young People,CYP,Third Party Payments,EGA,16/06/2022,03-14275,"6,474.81",Rainbows Day Nursery
Nottinghamshire County Council,1111/1001,Children and Young People,CYP,Third Party Payments,EGA,21/06/2022,03-14838,"1,422.30",North Muskham Playgroup
Nottinghamshire County Council,1111/1001,Children and Young People,CYP,Third Party Payments,EGA,28/06/2022,03-16439,800,Pre-School Learning Alliance (HO)
Nottinghamshire County Council,1111/1001,Children and Young People,CYP,Third Party Payments,EGA,28/06/2022,03-16440,800,Leen Mills Pre School Playgroup
Nottinghamshire County Council,1111/1001,Children and Young People,CYP,Third Party Payments,EGA,28/06/2022,03-16441,800,Ravenshead Pre-School Playgroup
Nottinghamshire County Council,1111/1001,Children and Young People,CYP,Third Party Payments,EGA,28/06/2022,03-16442,800,Portland Place Pre-School
Nottinghamshire County Council,1111/1001,Children and Young People,CYP,Third Party Payments,EGA,28/06/2022,03-16443,800,Woodborough Village Pre School
Nottinghamshire County Council,1111/1001,Children and Young People,CYP,Third Party Payments,EGA,28/06/2022,03-16444,800,The Learning Tree Day Nursery 2
Nottinghamshire County Council,1111/1001,Children and Young People,CYP,Third Party Payments,EGA,29/06/2022,03-16500,"1,300.00",Norman Galloway Ltd
Nottinghamshire County Council,1111/1001,Children and Young People,CYP,Third Party Payments,EGA,30/06/2022,03-16516,"12,172.06",Sunnydale Nursery Ltd
Nottinghamshire County Council,1111/1001,Children and Young People,CYP,Third Party Payments,EGA,30/06/2022,03-16517,"20,046.34",Plumtree School
Nottinghamshire County Council,1111/1001,Children and Young People,CYP,Third Party Payments,EGA,30/06/2022,03-16518,917.28,[Redacted]
Nottinghamshire County Council,1111/1001,Children and Young People,CYP,Third Party Payments,EGA,30/06/2022,03-16519,"20,680.80",Wellow House School
Nottinghamshire County Council,1111/1001,Children and Young People,CYP,Third Party Payments,EGA,30/06/2022,03-16520,588,Hayley�s Home Childcare
Nottinghamshire County Council,1111/1001,Children and Young People,CYP,Third Party Payments,EGA,30/06/2022,03-16521,551.46,[Redacted]
Nottinghamshire County Council,1111/1001,Children and Young People,CYP,Third Party Payments,EGA,30/06/2022,03-16522,"1,397.76",[Redacted]
Nottinghamshire County Council,1111/1001,Children and Young People,CYP,Third Party Payments,EGA,30/06/2022,03-16523,616.98,Little Tots
Nottinghamshire County Council,1111/1001,Children and Young People,CYP,Third Party Payments,EGA,30/06/2022,03-16524,"9,765.02",Wolds Childcare Ltd
Nottinghamshire County Council,1111/1001,Children and Young People,CYP,Third Party Payments,EGA,30/06/2022,03-16525,"2,271.36",Saville House School  T/A NRA Acade
Nottinghamshire County Council,1111/1001,Children and Young People,CYP,Third Party Payments,EGA,30/06/2022,03-16526,"6,256.32",Longdale Nursery School (Cherubs)
Nottinghamshire County Council,1111/1001,Children and Young People,CYP,Third Party Payments,EGA,30/06/2022,03-16527,"9,756.27",Wollaton Village Day Nurseries
Nottinghamshire County Council,1111/1001,Children and Young People,CYP,Third Party Payments,EGA,30/06/2022,03-16528,"3,239.67",Misson Pre-School
Nottinghamshire County Council,1111/1001,Children and Young People,CYP,Third Party Payments,EGA,30/06/2022,03-16529,570.75,Cheeky Monkeys Childminding
Nottinghamshire County Council,1111/1001,Children and Young People,CYP,Third Party Payments,EGA,30/06/2022,03-16530,"5,300.82",Toddlers University (Bee)
Nottinghamshire County Council,1111/1001,Children and Young People,CYP,Third Party Payments,EGA,30/06/2022,03-16531,960.96,Jammie Dodgers Childminding Group
Nottinghamshire County Council,1111/1001,Children and Young People,CYP,Third Party Payments,EGA,30/06/2022,03-16532,"14,143.11",Papermoon Day Nursery
Nottinghamshire County Council,1111/1001,Children and Young People,CYP,Third Party Payments,EGA,30/06/2022,03-16533,"21,144.93",Children 1st @ Breedon House (Plumt
Nottinghamshire County Council,1111/1001,Children and Young People,CYP,Third Party Payments,EGA,30/06/2022,03-16534,"4,288.21",Willow Brook Pre-School
Nottinghamshire County Council,1111/1001,Children and Young People,CYP,Third Party Payments,EGA,30/06/2022,03-16535,881.79,[Redacted]
Nottinghamshire County Council,1111/1001,Children and Young People,CYP,Third Party Payments,EGA,30/06/2022,03-16536,"18,031.53",Daisies Day Nursery
Nottinghamshire County Council,1111/1001,Children and Young People,CYP,Third Party Payments,EGA,30/06/2022,03-16537,567.84,V Gill (Childminder)
Nottinghamshire County Council,1111/1001,Children and Young People,CYP,Third Party Payments,EGA,30/06/2022,03-16538,"9,007.90",Lime Trees  (Burton Joyce)
Nottinghamshire County Council,1111/1001,Children and Young People,CYP,Third Party Payments,EGA,30/06/2022,03-16539,"4,537.56",Ark Pre-School
Nottinghamshire County Council,1111/1001,Children and Young People,CYP,Third Party Payments,EGA,30/06/2022,03-16540,"7,815.99",Little Kites Playgroup
Nottinghamshire County Council,1111/1001,Children and Young People,CYP,Third Party Payments,EGA,30/06/2022,03-16541,"9,487.23",Kidzgrove
Nottinghamshire County Council,1111/1001,Children and Young People,CYP,Third Party Payments,EGA,30/06/2022,03-16542,"22,299.51",Grosvenor House Day Nursery
Nottinghamshire County Council,1111/1001,Children and Young People,CYP,Third Party Payments,EGA,30/06/2022,03-16543,"1,176.45",[Redacted]
Nottinghamshire County Council,1111/1001,Children and Young People,CYP,Third Party Payments,EGA,30/06/2022,03-16544,"29,655.46",Pre-School Learning Alliance (HO)
Nottinghamshire County Council,1111/1001,Children and Young People,CYP,Third Party Payments,EGA,30/06/2022,03-16545,773.82,[Redacted]
Nottinghamshire County Council,1111/1001,Children and Young People,CYP,Third Party Payments,EGA,30/06/2022,03-16546,"5,282.11",Lady Bay Pre School Playgroup
Nottinghamshire County Council,1111/1001,Children and Young People,CYP,Third Party Payments,EGA,30/06/2022,03-16547,"14,743.81",All Aboard Nursery Ltd
Nottinghamshire County Council,1111/1001,Children and Young People,CYP,Third Party Payments,EGA,30/06/2022,03-16548,"18,880.84",Carlton & Gedling Day Nursery
Nottinghamshire County Council,1111/1001,Children and Young People,CYP,Third Party Payments,EGA,30/06/2022,03-16549,"11,178.39",Arnold House Day Nursery
Nottinghamshire County Council,1111/1001,Children and Young People,CYP,Third Party Payments,EGA,30/06/2022,03-16550,"12,914.21",Alphabet House Day Nurseries Ltd-Lo
Nottinghamshire County Council,1111/1001,Children and Young People,CYP,Third Party Payments,EGA,30/06/2022,03-16551,682.08,[Redacted]
Nottinghamshire County Council,1111/1001,Children and Young People,CYP,Third Party Payments,EGA,30/06/2022,03-16552,"6,611.36",Beeston Nursery
Nottinghamshire County Council,1111/1001,Children and Young People,CYP,Third Party Payments,EGA,30/06/2022,03-16553,"3,685.87",Gotham Pre-School Playgroup
Nottinghamshire County Council,1111/1001,Children and Young People,CYP,Third Party Payments,EGA,30/06/2022,03-16554,"11,038.32",Killisick Pre-School
Nottinghamshire County Council,1111/1001,Children and Young People,CYP,Third Party Payments,EGA,30/06/2022,03-16555,"6,132.30",Hucknall Pre-School Playgroup
Nottinghamshire County Council,1111/1001,Children and Young People,CYP,Third Party Payments,EGA,30/06/2022,03-16556,"4,107.90",Jesters Childcare Ltd
Nottinghamshire County Council,1111/1001,Children and Young People,CYP,Third Party Payments,EGA,30/06/2022,03-16557,"3,381.92",Allsorts Preschool Underwood
Nottinghamshire County Council,1111/1001,Children and Young People,CYP,Third Party Payments,EGA,30/06/2022,03-16558,"5,052.39",Collingham & District Pre-School
Nottinghamshire County Council,1111/1001,Children and Young People,CYP,Third Party Payments,EGA,30/06/2022,03-16559,"5,870.59",Pea Pod Day Nursery Ltd
Nottinghamshire County Council,1111/1001,Children and Young People,CYP,Third Party Payments,EGA,30/06/2022,03-16560,"17,465.16",Safe Haven Day Nursery
Nottinghamshire County Council,1111/1001,Children and Young People,CYP,Third Party Payments,EGA,30/06/2022,03-16561,"21,434.45",Shaping Futures Day Nursery
Nottinghamshire County Council,1111/1001,Children and Young People,CYP,Third Party Payments,EGA,30/06/2022,03-16562,"9,863.30",Applegarth Day Nurseries Ltd
Nottinghamshire County Council,1111/1001,Children and Young People,CYP,Third Party Payments,EGA,30/06/2022,03-16563,"4,599.47",Thrumpton Kids Clubs
Nottinghamshire County Council,1111/1001,Children and Young People,CYP,Third Party Payments,EGA,30/06/2022,03-16564,"7,469.39",Radcliffe On Trent Pre School Playg
Nottinghamshire County Council,1111/1001,Children and Young People,CYP,Third Party Payments,EGA,30/06/2022,03-16565,"9,152.94",Staunton Montessori Nursery School
Nottinghamshire County Council,1111/1001,Children and Young People,CYP,Third Party Payments,EGA,30/06/2022,03-16566,"17,483.93",Fernwood Day Nursery Ltd
Nottinghamshire County Council,1111/1001,Children and Young People,CYP,Third Party Payments,EGA,30/06/2022,03-16567,"1,291.29",Tinas Childminding
Nottinghamshire County Council,1111/1001,Children and Young People,CYP,Third Party Payments,EGA,30/06/2022,03-16568,582.4,[Redacted]
Nottinghamshire County Council,1111/1001,Children and Young People,CYP,Third Party Payments,EGA,30/06/2022,03-16569,"6,852.46",Honey Pot Day Private Day Nursery L
Nottinghamshire County Council,1111/1001,Children and Young People,CYP,Third Party Payments,EGA,30/06/2022,03-16570,"14,722.56",Busy Bees (Daybrook)
Nottinghamshire County Council,1111/1001,Children and Young People,CYP,Third Party Payments,EGA,30/06/2022,03-16571,"8,890.54",Little Nippers Pre-School
Nottinghamshire County Council,1111/1001,Children and Young People,CYP,Third Party Payments,EGA,30/06/2022,03-16572,"6,172.14",North Muskham Playgroup
Nottinghamshire County Council,1111/1001,Children and Young People,CYP,Third Party Payments,EGA,30/06/2022,03-16573,"5,569.20",Hermitage Pre-School
Nottinghamshire County Council,1111/1001,Children and Young People,CYP,Third Party Payments,EGA,30/06/2022,03-16574,"4,540.92",Highfields School & Nursery
Nottinghamshire County Council,1111/1001,Children and Young People,CYP,Third Party Payments,EGA,30/06/2022,03-16575,"4,843.94",Horsendale Playgroup
Nottinghamshire County Council,1111/1001,Children and Young People,CYP,Third Party Payments,EGA,30/06/2022,03-16576,"12,870.13",Quinton Day Nurseries T/A Honey Bee
Nottinghamshire County Council,1111/1001,Children and Young People,CYP,Third Party Payments,EGA,30/06/2022,03-16577,"3,246.88",St Giles Pre-school
Nottinghamshire County Council,1111/1001,Children and Young People,CYP,Third Party Payments,EGA,30/06/2022,03-16578,"6,195.89",Busy Bees Nurseries Limited
Nottinghamshire County Council,1111/1001,Children and Young People,CYP,Third Party Payments,EGA,30/06/2022,03-16579,"5,778.86",St Mary's Pre-School
Nottinghamshire County Council,1111/1001,Children and Young People,CYP,Third Party Payments,EGA,30/06/2022,03-16580,"7,823.55",Homestead Day Nursery Ltd
Nottinghamshire County Council,1111/1001,Children and Young People,CYP,Third Party Payments,EGA,30/06/2022,03-16581,"5,655.38",Kimberley Pre-School Playgroup
Nottinghamshire County Council,1111/1001,Children and Young People,CYP,Third Party Payments,EGA,30/06/2022,03-16582,"3,976.70",Leahurst Road Pre-School
Nottinghamshire County Council,1111/1001,Children and Young People,CYP,Third Party Payments,EGA,30/06/2022,03-16583,"13,097.93",Leen Mills Pre School Playgroup
Nottinghamshire County Council,1111/1001,Children and Young People,CYP,Third Party Payments,EGA,30/06/2022,03-16584,"10,713.46",Leos Childrens Nurseries Ltd
Nottinghamshire County Council,1111/1001,Children and Young People,CYP,Third Party Payments,EGA,30/06/2022,03-16585,"40,438.07",Children 1st @ Breedon House (MayFi
Nottinghamshire County Council,1111/1001,Children and Young People,CYP,Third Party Payments,EGA,30/06/2022,03-16586,"12,196.17",Westbourne House Nursery School
Nottinghamshire County Council,1111/1001,Children and Young People,CYP,Third Party Payments,EGA,30/06/2022,03-16587,"7,359.45",Lowdham & Epperstone Pre-School
Nottinghamshire County Council,1111/1001,Children and Young People,CYP,Third Party Payments,EGA,30/06/2022,03-16588,"10,576.38",Millfield Nursery School
Nottinghamshire County Council,1111/1001,Children and Young People,CYP,Third Party Payments,EGA,30/06/2022,03-16589,"3,546.27",Mulberry Bush Day Nursery
Nottinghamshire County Council,1111/1001,Children and Young People,CYP,Third Party Payments,EGA,30/06/2022,03-16590,"8,865.40",Noahs Ark Playgroup
Nottinghamshire County Council,1111/1001,Children and Young People,CYP,Third Party Payments,EGA,30/06/2022,03-16591,"10,732.11",Tiny World Mansfield
Nottinghamshire County Council,1111/1001,Children and Young People,CYP,Third Party Payments,EGA,30/06/2022,03-16592,"4,367.05",Old Cooperative Day Nursery
Nottinghamshire County Council,1111/1001,Children and Young People,CYP,Third Party Payments,EGA,30/06/2022,03-16593,"21,725.96",Orchard Day Nursery
Nottinghamshire County Council,1111/1001,Children and Young People,CYP,Third Party Payments,EGA,30/06/2022,03-16594,"7,816.20",Puddleducks Pre-School
Nottinghamshire County Council,1111/1001,Children and Young People,CYP,Third Party Payments,EGA,30/06/2022,03-16595,"7,294.56",Smarties Private Day Nursery
Nottinghamshire County Council,1111/1001,Children and Young People,CYP,Third Party Payments,EGA,30/06/2022,03-16596,"8,840.32",Cherubs Childrens Centre Pleasley
Nottinghamshire County Council,1111/1001,Children and Young People,CYP,Third Party Payments,EGA,30/06/2022,03-16597,"4,851.84",Beacon Hill Day Nursery
Nottinghamshire County Council,1111/1001,Children and Young People,CYP,Third Party Payments,EGA,30/06/2022,03-16598,"2,090.81",Orchard School Nursery
Nottinghamshire County Council,1111/1001,Children and Young People,CYP,Third Party Payments,EGA,30/06/2022,03-16599,"11,868.61",Papermoon Day Nursery
Nottinghamshire County Council,1111/1001,Children and Young People,CYP,Third Party Payments,EGA,30/06/2022,03-16600,"4,883.29",Prebend Pre-School Playgroup
Nottinghamshire County Council,1111/1001,Children and Young People,CYP,Third Party Payments,EGA,30/06/2022,03-16601,"11,250.51",Railway Children Playgroup
Nottinghamshire County Council,1111/1001,Children and Young People,CYP,Third Party Payments,EGA,30/06/2022,03-16602,"5,641.66",Worksop College
Nottinghamshire County Council,1111/1001,Children and Young People,CYP,Third Party Payments,EGA,30/06/2022,03-16603,"28,102.26",Cherubs Day Nursery
Nottinghamshire County Council,1111/1001,Children and Young People,CYP,Third Party Payments,EGA,30/06/2022,03-16604,"10,160.51",Claremont Early Years Ltd
Nottinghamshire County Council,1111/1001,Children and Young People,CYP,Third Party Payments,EGA,30/06/2022,03-16605,"10,216.62",Granby House Nursery
Nottinghamshire County Council,1111/1001,Children and Young People,CYP,Third Party Payments,EGA,30/06/2022,03-16606,"3,112.71",Ravenshead Pre-School Playgroup
Nottinghamshire County Council,1111/1001,Children and Young People,CYP,Third Party Payments,EGA,30/06/2022,03-16607,"2,674.55",Salterford House School
Nottinghamshire County Council,1111/1001,Children and Young People,CYP,Third Party Payments,EGA,30/06/2022,03-16608,"3,939.21",Sconce Hills Pre-School Playgroup
Nottinghamshire County Council,1111/1001,Children and Young People,CYP,Third Party Payments,EGA,30/06/2022,03-16609,"8,220.80",Scotts Wood Private Day Nursery
Nottinghamshire County Council,1111/1001,Children and Young People,CYP,Third Party Payments,EGA,30/06/2022,03-16610,"11,281.44",Treetops Nursery (Toton)
Nottinghamshire County Council,1111/1001,Children and Young People,CYP,Third Party Payments,EGA,30/06/2022,03-16611,"3,168.98",Arnold St Mary's Pre-School
Nottinghamshire County Council,1111/1001,Children and Young People,CYP,Third Party Payments,EGA,30/06/2022,03-16612,"10,785.32",Radcliffe On Trent Day Nursery
Nottinghamshire County Council,1111/1001,Children and Young People,CYP,Third Party Payments,EGA,30/06/2022,03-16613,"8,332.50",Tiny Talkers Day Nursery
Nottinghamshire County Council,1111/1001,Children and Young People,CYP,Third Party Payments,EGA,30/06/2022,03-16614,"13,592.80",Oceans Day Nursery
Nottinghamshire County Council,1111/1001,Children and Young People,CYP,Third Party Payments,EGA,30/06/2022,03-16615,"11,359.53",The Secret Garden Private Day Nurse
Nottinghamshire County Council,1111/1001,Children and Young People,CYP,Third Party Payments,EGA,30/06/2022,03-16616,"4,937.45",St Johns Pre � School Playgroup
Nottinghamshire County Council,1111/1001,Children and Young People,CYP,Third Party Payments,EGA,30/06/2022,03-16617,"2,726.72",Walesby School Playgroup
Nottinghamshire County Council,1111/1001,Children and Young People,CYP,Third Party Payments,EGA,30/06/2022,03-16618,"4,906.39",Cherubs Childcare Centre (Mansfield
Nottinghamshire County Council,1111/1001,Children and Young People,CYP,Third Party Payments,EGA,30/06/2022,03-16619,"3,793.13",Sutton Bonington Playgroup
Nottinghamshire County Council,1111/1001,Children and Young People,CYP,Third Party Payments,EGA,30/06/2022,03-16620,"3,792.60",Sutton Centre Under 5'S Playgroup
Nottinghamshire County Council,1111/1001,Children and Young People,CYP,Third Party Payments,EGA,30/06/2022,03-16621,"5,295.22",Portland Place Pre-School
Nottinghamshire County Council,1111/1001,Children and Young People,CYP,Third Party Payments,EGA,30/06/2022,03-16622,"14,537.25",The Learning Tree Nursery
Nottinghamshire County Council,1111/1001,Children and Young People,CYP,Third Party Payments,EGA,30/06/2022,03-16623,"13,444.23",Little Bears Day Nursery
Nottinghamshire County Council,1111/1001,Children and Young People,CYP,Third Party Payments,EGA,30/06/2022,03-16624,"9,544.45",Tollerton Playgroup
Nottinghamshire County Council,1111/1001,Children and Young People,CYP,Third Party Payments,EGA,30/06/2022,03-16625,"6,836.64",Pre-School 345
Nottinghamshire County Council,1111/1001,Children and Young People,CYP,Third Party Payments,EGA,30/06/2022,03-16626,"5,601.96",Lambley Day Nursery Ltd
Nottinghamshire County Council,1111/1001,Children and Young People,CYP,Third Party Payments,EGA,30/06/2022,03-16627,"11,734.77",Alphabet House Day Nurseries Ltd-Be
Nottinghamshire County Council,1111/1001,Children and Young People,CYP,Third Party Payments,EGA,30/06/2022,03-16628,"8,842.20",Carlton Preschool Playgroup
Nottinghamshire County Council,1111/1001,Children and Young People,CYP,Third Party Payments,EGA,30/06/2022,03-16629,"12,414.93",Village Day Nursery
Nottinghamshire County Council,1111/1001,Children and Young People,CYP,Third Party Payments,EGA,30/06/2022,03-16630,"3,939.93",Watnall Pre-School Playgroup
Nottinghamshire County Council,1111/1001,Children and Young People,CYP,Third Party Payments,EGA,30/06/2022,03-16631,"9,753.22",Weaverthorpe Pre-School Playgroup
Nottinghamshire County Council,1111/1001,Children and Young People,CYP,Third Party Payments,EGA,30/06/2022,03-16632,"14,195.18",Rocking Horse Nursery (Kingsway)
Nottinghamshire County Council,1111/1001,Children and Young People,CYP,Third Party Payments,EGA,30/06/2022,03-16633,"8,140.48",Attenborough Church Pre-School
Nottinghamshire County Council,1111/1001,Children and Young People,CYP,Third Party Payments,EGA,30/06/2022,03-16634,"8,400.21",Awsworth Schoolhouse Day Nursery
Nottinghamshire County Council,1111/1001,Children and Young People,CYP,Third Party Payments,EGA,30/06/2022,03-16635,"13,679.15",Balderton Pre-School
Nottinghamshire County Council,1111/1001,Children and Young People,CYP,Third Party Payments,EGA,30/06/2022,03-16636,"6,615.30",Balderton Village Day Nursery
Nottinghamshire County Council,1111/1001,Children and Young People,CYP,Third Party Payments,EGA,30/06/2022,03-16637,"5,189.18",Bingham Day Nursery & Pre School
Nottinghamshire County Council,1111/1001,Children and Young People,CYP,Third Party Payments,EGA,30/06/2022,03-16638,"4,038.21",West Street Pre-School
Nottinghamshire County Council,1111/1001,Children and Young People,CYP,Third Party Payments,EGA,30/06/2022,03-16639,"13,249.18",Alphabet House Day Nurseries Ltd-Wh
Nottinghamshire County Council,1111/1001,Children and Young People,CYP,Third Party Payments,EGA,30/06/2022,03-16640,"11,725.89",Whitehouse Day Nursery
Nottinghamshire County Council,1111/1001,Children and Young People,CYP,Third Party Payments,EGA,30/06/2022,03-16641,"2,304.13",Willoughby On The Wolds Playgroup
Nottinghamshire County Council,1111/1001,Children and Young People,CYP,Third Party Payments,EGA,30/06/2022,03-16642,"4,708.70",Willow Pre-School Playgroup
Nottinghamshire County Council,1111/1001,Children and Young People,CYP,Third Party Payments,EGA,30/06/2022,03-16643,"3,556.64",Windmill Kindergarten CIC
Nottinghamshire County Council,1111/1001,Children and Young People,CYP,Third Party Payments,EGA,30/06/2022,03-16644,"26,152.97",Papermoon Day Nursery Sutton In Ash
Nottinghamshire County Council,1111/1001,Children and Young People,CYP,Third Party Payments,EGA,30/06/2022,03-16645,"9,115.49",Buttercross Pre School
Nottinghamshire County Council,1111/1001,Children and Young People,CYP,Third Party Payments,EGA,30/06/2022,03-16646,"8,998.08",Bramcote Pre-School Playgroup
Nottinghamshire County Council,1111/1001,Children and Young People,CYP,Third Party Payments,EGA,30/06/2022,03-16647,"13,414.96",Bright Sparks Day Nursery
Nottinghamshire County Council,1111/1001,Children and Young People,CYP,Third Party Payments,EGA,30/06/2022,03-16648,"15,083.63",Brooklyn Day Nursery
Nottinghamshire County Council,1111/1001,Children and Young People,CYP,Third Party Payments,EGA,30/06/2022,03-16649,"4,875.77",Woodborough Village Pre School
Nottinghamshire County Council,1111/1001,Children and Young People,CYP,Third Party Payments,EGA,30/06/2022,03-16650,"25,493.08",Woodthorpe Day Nursery Ltd
Nottinghamshire County Council,1111/1001,Children and Young People,CYP,Third Party Payments,EGA,30/06/2022,03-16651,"13,444.43",Hollies Day Nurseries Ltd
Nottinghamshire County Council,1111/1001,Children and Young People,CYP,Third Party Payments,EGA,30/06/2022,03-16652,"2,725.62",Hickling Pre-School
Nottinghamshire County Council,1111/1001,Children and Young People,CYP,Third Party Payments,EGA,30/06/2022,03-16653,"56,587.07",Serendipity's Day Nursery
Nottinghamshire County Council,1111/1001,Children and Young People,CYP,Third Party Payments,EGA,30/06/2022,03-16654,"8,553.20",Coteswood House School
Nottinghamshire County Council,1111/1001,Children and Young People,CYP,Third Party Payments,EGA,30/06/2022,03-16655,"22,278.42",Bizzy Kidz
Nottinghamshire County Council,1111/1001,Children and Young People,CYP,Third Party Payments,EGA,30/06/2022,03-16656,"13,192.62",Cherubs Childrens Centre Wynndale
Nottinghamshire County Council,1111/1001,Children and Young People,CYP,Third Party Payments,EGA,30/06/2022,03-16657,"18,753.92",Little Oaks Nursery
Nottinghamshire County Council,1111/1001,Children and Young People,CYP,Third Party Payments,EGA,30/06/2022,03-16658,"8,995.83",The Learning Tree Day Nursery 2
Nottinghamshire County Council,1111/1001,Children and Young People,CYP,Third Party Payments,EGA,30/06/2022,03-16659,"12,565.28",Ruddington Nursery & Pre-School
Nottinghamshire County Council,1111/1001,Children and Young People,CYP,Third Party Payments,EGA,30/06/2022,03-16660,"11,504.94",Papplewick Pre-School Playgroup
Nottinghamshire County Council,1111/1001,Children and Young People,CYP,Third Party Payments,EGA,30/06/2022,03-16661,"5,835.10",Little Friends Day Nursery
Nottinghamshire County Council,1111/1001,Children and Young People,CYP,Third Party Payments,EGA,30/06/2022,03-16662,"18,179.71",Stapleford Day Nursery
Nottinghamshire County Council,1111/1001,Children and Young People,CYP,Third Party Payments,EGA,30/06/2022,03-16663,"8,636.97",Rocking Horse Nursery (Hucknall)
Nottinghamshire County Council,1111/1001,Children and Young People,CYP,Third Party Payments,EGA,30/06/2022,03-16664,"13,368.90",Treetops Nurseries (Workop)
Nottinghamshire County Council,1111/1001,Children and Young People,CYP,Third Party Payments,EGA,30/06/2022,03-16665,"3,887.88",Christchurch Hall Pre-School Playgr
Nottinghamshire County Council,1111/1001,Children and Young People,CYP,Third Party Payments,EGA,30/06/2022,03-16666,"12,125.46",Carnarvon Pre-School
Nottinghamshire County Council,1111/1001,Children and Young People,CYP,Third Party Payments,EGA,30/06/2022,03-16667,"2,837.02",Costock Pre School
Nottinghamshire County Council,1111/1001,Children and Young People,CYP,Third Party Payments,EGA,30/06/2022,03-16668,"1,860.60",Rainbow Day Nursery
Nottinghamshire County Council,1111/1001,Children and Young People,CYP,Third Party Payments,EGA,30/06/2022,03-16669,"9,821.79",Papermoon Day Nursery
Nottinghamshire County Council,1111/1001,Children and Young People,CYP,Third Party Payments,EGA,30/06/2022,03-16670,"6,078.06",Haywood Road Pre-School
Nottinghamshire County Council,1111/1001,Children and Young People,CYP,Third Party Payments,EGA,30/06/2022,03-16671,"7,392.32",Southfields Pre-School
Nottinghamshire County Council,1111/1001,Children and Young People,CYP,Third Party Payments,EGA,30/06/2022,03-16672,"9,173.71",Ashfield Plaza Day Nursery
Nottinghamshire County Council,1111/1001,Children and Young People,CYP,Third Party Payments,EGA,30/06/2022,03-16673,"6,195.62",Cranmer Pre-School
Nottinghamshire County Council,1111/1001,Children and Young People,CYP,Third Party Payments,EGA,30/06/2022,03-16674,"9,393.51",Daisies Day Nursery
Nottinghamshire County Council,1111/1001,Children and Young People,CYP,Third Party Payments,EGA,30/06/2022,03-16675,"16,377.02",East Leake Day Nursery & Pre-School
Nottinghamshire County Council,1111/1001,Children and Young People,CYP,Third Party Payments,EGA,30/06/2022,03-16676,"3,495.48",Elston Pre-school
Nottinghamshire County Council,1111/1001,Children and Young People,CYP,Third Party Payments,EGA,30/06/2022,03-16677,"12,724.30",Wollaton Village Day Nurseries Ltd
Nottinghamshire County Council,1111/1001,Children and Young People,CYP,Third Party Payments,EGA,30/06/2022,03-16678,"6,911.26",Pippins Pre-School
Nottinghamshire County Council,1111/1001,Children and Young People,CYP,Third Party Payments,EGA,30/06/2022,03-16679,"8,180.90",Pump Farm Day Nursery
Nottinghamshire County Council,1111/1001,Children and Young People,CYP,Third Party Payments,EGA,30/06/2022,03-16680,"15,682.86",Edwalton Day Nursery
Nottinghamshire County Council,1111/1001,Children and Young People,CYP,Third Party Payments,EGA,30/06/2022,03-16681,"7,755.16",Farnsfield Pre-School
Nottinghamshire County Council,1111/1001,Children and Young People,CYP,Third Party Payments,EGA,30/06/2022,03-16682,"3,104.56",Fledglings Pre School
Nottinghamshire County Council,1111/1001,Children and Young People,CYP,Third Party Payments,EGA,30/06/2022,03-16683,"3,893.52",Early Years Playgroup
Nottinghamshire County Council,1111/1001,Children and Young People,CYP,Third Party Payments,EGA,30/06/2022,03-16684,"2,719.42",Lowater Street Play & Pre School
Nottinghamshire County Council,1111/1001,Children and Young People,CYP,Third Party Payments,EGA,30/06/2022,03-16685,"10,067.67",Little Millers Day Nursery
Nottinghamshire County Council,1111/1001,Children and Young People,CYP,Third Party Payments,EGA,30/06/2022,03-16686,"3,451.06",Tiny Tots Playgroup
Nottinghamshire County Council,1111/1001,Children and Young People,CYP,Third Party Payments,EGA,30/06/2022,03-16687,"12,783.68",Alphabet House Day Nurseries Ltd-We
Nottinghamshire County Council,1111/1001,Children and Young People,CYP,Third Party Payments,EGA,30/06/2022,03-16688,"13,957.20",Good Foundations Day Nursery
Nottinghamshire County Council,1111/1001,Children and Young People,CYP,Third Party Payments,EGA,30/06/2022,03-16689,"3,422.25",Good Shepherd Pre-School
Nottinghamshire County Council,1111/1001,Children and Young People,CYP,Third Party Payments,EGA,30/06/2022,03-16690,"5,142.34",Leo's Childrens Nurseries Ltd
Nottinghamshire County Council,1111/1001,Children and Young People,CYP,Third Party Payments,EGA,30/06/2022,03-16691,"9,066.09",Bircotes Pre-School
Nottinghamshire County Council,1111/1001,Children and Young People,CYP,Third Party Payments,EGA,30/06/2022,03-16692,"9,492.47",East Leake Pre-School Playgroup
Nottinghamshire County Council,1111/1001,Children and Young People,CYP,Third Party Payments,EGA,30/06/2022,03-16693,"8,122.62",Little Acorns Shireoaks
Nottinghamshire County Council,1111/1001,Children and Young People,CYP,Third Party Payments,EGA,30/06/2022,03-16694,"10,817.71",Willow Childcare & Training Ltd
Nottinghamshire County Council,1111/1001,Children and Young People,CYP,Third Party Payments,EGA,30/06/2022,03-16695,"1,281.28",J Fisher (Childminder)
Nottinghamshire County Council,1111/1001,Children and Young People,CYP,Third Party Payments,EGA,30/06/2022,03-16696,"11,671.85",Treetops Nursery (Clipstone)
Nottinghamshire County Council,1111/1001,Children and Young People,CYP,Third Party Payments,EGA,30/06/2022,03-16697,873.6,[Redacted]
Nottinghamshire County Council,1111/1001,Children and Young People,CYP,Third Party Payments,EGA,30/06/2022,03-16698,"18,376.11",Bright Stars Childcare
Nottinghamshire County Council,1111/1001,Children and Young People,CYP,Third Party Payments,EGA,30/06/2022,03-16699,"8,808.42",Cherubs Ryton Park
Nottinghamshire County Council,1111/1001,Children and Young People,CYP,Third Party Payments,EGA,30/06/2022,03-16700,"7,558.62",Bullpit Road Nursery
Nottinghamshire County Council,1111/1001,Children and Young People,CYP,Third Party Payments,EGA,30/06/2022,03-16701,"20,912.34",The Enchanted Garden Day Nursery
Nottinghamshire County Council,1111/1001,Children and Young People,CYP,Third Party Payments,EGA,30/06/2022,03-16702,567.84,[Redacted]
Nottinghamshire County Council,1111/1001,Children and Young People,CYP,Third Party Payments,EGA,30/06/2022,03-16703,"1,354.08",Kylees Childminding Services
Nottinghamshire County Council,1111/1001,Children and Young People,CYP,Third Party Payments,EGA,30/06/2022,03-16704,"1,643.46",Luans Little Stars
Nottinghamshire County Council,1111/1001,Children and Young People,CYP,Third Party Payments,EGA,30/06/2022,03-16705,"1,092.00",Sharons Childminding
Nottinghamshire County Council,1111/1001,Children and Young People,CYP,Third Party Payments,EGA,30/06/2022,03-16706,"8,054.73",Zoe's Childcare Ltd
Nottinghamshire County Council,1111/1001,Children and Young People,CYP,Third Party Payments,EGA,30/06/2022,03-16707,"9,794.20",Cedar House Day Nursery
Nottinghamshire County Council,1111/1001,Children and Young People,CYP,Third Party Payments,EGA,30/06/2022,03-16708,"1,048.32",Mini-me Childcare
Nottinghamshire County Council,1111/1001,Children and Young People,CYP,Third Party Payments,EGA,30/06/2022,03-16709,"1,485.12",[Redacted]
Nottinghamshire County Council,1111/1001,Children and Young People,CYP,Third Party Payments,EGA,30/06/2022,03-16710,"31,889.16",Orange Tree Day Nursery
Nottinghamshire County Council,1111/1001,Children and Young People,CYP,Third Party Payments,EGA,30/06/2022,03-16711,698.88,[Redacted]
Nottinghamshire County Council,1111/1001,Children and Young People,CYP,Third Party Payments,EGA,30/06/2022,03-16712,827.01,Janet Rutherford
Nottinghamshire County Council,1111/1001,Children and Young People,CYP,Third Party Payments,EGA,30/06/2022,03-16713,524.16,[Redacted]
Nottinghamshire County Council,1111/1001,Children and Young People,CYP,Third Party Payments,EGA,30/06/2022,03-16714,698.88,[Redacted]
Nottinghamshire County Council,1111/1001,Children and Young People,CYP,Third Party Payments,EGA,30/06/2022,03-16715,"5,247.08",Rushcliffe Pre-School (Nottingham)
Nottinghamshire County Council,1111/1001,Children and Young People,CYP,Third Party Payments,EGA,30/06/2022,03-16716,"3,810.41",Upton Crickets Day Nursery
Nottinghamshire County Council,1111/1001,Children and Young People,CYP,Third Party Payments,EGA,30/06/2022,03-16717,628.99,[Redacted]
Nottinghamshire County Council,1111/1001,Children and Young People,CYP,Third Party Payments,EGA,30/06/2022,03-16718,767.13,[Redacted]
Nottinghamshire County Council,1111/1001,Children and Young People,CYP,Third Party Payments,EGA,30/06/2022,03-16719,"10,501.56",Cheeky Monkeys Day Nursery
Nottinghamshire County Council,1111/1001,Children and Young People,CYP,Third Party Payments,EGA,30/06/2022,03-16720,764.4,[Redacted]
Nottinghamshire County Council,1111/1001,Children and Young People,CYP,Third Party Payments,EGA,30/06/2022,03-16721,"1,796.34",[Redacted]
Nottinghamshire County Council,1111/1001,Children and Young People,CYP,Third Party Payments,EGA,30/06/2022,03-16722,"1,266.72",[Redacted]
Nottinghamshire County Council,1111/1001,Children and Young People,CYP,Third Party Payments,EGA,30/06/2022,03-16723,900.9,[Redacted]
Nottinghamshire County Council,1111/1001,Children and Young People,CYP,Third Party Payments,EGA,30/06/2022,03-16724,742.56,[Redacted]
Nottinghamshire County Council,1111/1001,Children and Young People,CYP,Third Party Payments,EGA,30/06/2022,03-16725,"14,684.88",Acorns Childminding
Nottinghamshire County Council,1111/1001,Children and Young People,CYP,Third Party Payments,EGA,30/06/2022,03-16726,"11,305.23",Children 1st @ Newark Centre
Nottinghamshire County Council,1111/1001,Children and Young People,CYP,Third Party Payments,EGA,30/06/2022,03-16727,"5,028.66",Zoes Childcare Ltd
Nottinghamshire County Council,1111/1001,Children and Young People,CYP,Third Party Payments,EGA,30/06/2022,03-16728,640.64,Fiona Lamb Childminding Service
Nottinghamshire County Council,1111/1001,Children and Young People,CYP,Third Party Payments,EGA,30/06/2022,03-16729,"1,671.49",Tracey Streeter Childminding Servic
Nottinghamshire County Council,1111/1001,Children and Young People,CYP,Third Party Payments,EGA,30/06/2022,03-16730,"1,135.68",Lucy Doherty (Childminder)
Nottinghamshire County Council,1111/1001,Children and Young People,CYP,Third Party Payments,EGA,30/06/2022,03-16731,"1,660.38",[Redacted]
Nottinghamshire County Council,1111/1001,Children and Young People,CYP,Third Party Payments,EGA,30/06/2022,03-16732,611.52,[Redacted]
Nottinghamshire County Council,1111/1001,Children and Young People,CYP,Third Party Payments,EGA,30/06/2022,03-16733,698.88,[Redacted]
Nottinghamshire County Council,1111/1001,Children and Young People,CYP,Third Party Payments,EGA,30/06/2022,03-16734,838.65,[Redacted]
Nottinghamshire County Council,1111/1001,Children and Young People,CYP,Third Party Payments,EGA,30/06/2022,03-16735,605.69,[Redacted]
Nottinghamshire County Council,1111/1001,Children and Young People,CYP,Third Party Payments,EGA,30/06/2022,03-16736,780.41,Jeanette Hooper Childminding Servic
Nottinghamshire County Council,1111/1001,Children and Young People,CYP,Third Party Payments,EGA,30/06/2022,03-16737,"13,961.61",Little Beans Playgroup
Nottinghamshire County Council,1111/1001,Children and Young People,CYP,Third Party Payments,EGA,30/06/2022,03-16738,"8,735.45",Childrens House Childcare Ltd
Nottinghamshire County Council,1111/1001,Children and Young People,CYP,Third Party Payments,EGA,30/06/2022,03-16739,698.88,Little Acorns Childminding
Nottinghamshire County Council,1111/1001,Children and Young People,CYP,Third Party Payments,EGA,30/06/2022,03-16740,"13,403.00",Mapperley Day Nursery
Nottinghamshire County Council,1111/1001,Children and Young People,CYP,Third Party Payments,EGA,30/06/2022,03-16741,663.93,T M Fletcher (Childminding Service)
Nottinghamshire County Council,1111/1001,Children and Young People,CYP,Third Party Payments,EGA,30/06/2022,03-16742,733.82,Sweet Pea's Childminding
Nottinghamshire County Council,1111/1001,Children and Young People,CYP,Third Party Payments,EGA,30/06/2022,03-16743,"19,832.45",Hollies Day Nurseries Ltd
Nottinghamshire County Council,1111/1001,Children and Young People,CYP,Third Party Payments,EGA,30/06/2022,03-16744,702.88,Nicola Fenton Childminding Services
Nottinghamshire County Council,1111/1001,Children and Young People,CYP,Third Party Payments,EGA,30/06/2022,03-16745,"2,164.14",Yew Tree Childcare
Nottinghamshire County Council,1111/1001,Children and Young People,CYP,Third Party Payments,EGA,30/06/2022,03-16746,"27,408.11",Phoenix Park Nursery Ltd
Nottinghamshire County Council,1111/1001,Children and Young People,CYP,Third Party Payments,EGA,30/06/2022,03-16747,"1,441.44",R Durr Rose Lodge Childminding
Nottinghamshire County Council,1111/1001,Children and Young People,CYP,Third Party Payments,EGA,30/06/2022,03-16748,"1,098.69",Explorers Childcare
Nottinghamshire County Council,1111/1001,Children and Young People,CYP,Third Party Payments,EGA,30/06/2022,03-16749,967.87,Dee Dee's Childminding
Nottinghamshire County Council,1111/1001,Children and Young People,CYP,Third Party Payments,EGA,30/06/2022,03-16750,"8,762.20",Wolds Day Nursery @ Stragglethorpe
Nottinghamshire County Council,1111/1001,Children and Young People,CYP,Third Party Payments,EGA,30/06/2022,03-16751,"11,984.53",Pre-School Learning Alliance (HO)
Nottinghamshire County Council,1111/1001,Children and Young People,CYP,Third Party Payments,EGA,30/06/2022,03-16752,"1,048.32",J M Mayfield (Childminder)
Nottinghamshire County Council,1111/1001,Children and Young People,CYP,Third Party Payments,EGA,30/06/2022,03-16753,"12,897.34",Aunty Sue's Day Care Ltd
Nottinghamshire County Council,1111/1001,Children and Young People,CYP,Third Party Payments,EGA,30/06/2022,03-16754,"9,684.54",Happy Days Childcare Services Ltd
Nottinghamshire County Council,1111/1001,Children and Young People,CYP,Third Party Payments,EGA,30/06/2022,03-16755,"8,207.69",Alphabet House Day Nursery (Chilwel
Nottinghamshire County Council,1111/1001,Children and Young People,CYP,Third Party Payments,EGA,30/06/2022,03-16756,"1,048.32",L Naylor (Childminding Service)
Nottinghamshire County Council,1111/1001,Children and Young People,CYP,Third Party Payments,EGA,30/06/2022,03-16757,621.6,Hunny Bunny's Childcare
Nottinghamshire County Council,1111/1001,Children and Young People,CYP,Third Party Payments,EGA,30/06/2022,03-16758,637.73,Donna Callaghan (Childminder)
Nottinghamshire County Council,1111/1001,Children and Young People,CYP,Third Party Payments,EGA,30/06/2022,03-16759,"14,551.16",Creative Hands Childcare Ltd
Nottinghamshire County Council,1111/1001,Children and Young People,CYP,Third Party Payments,EGA,30/06/2022,03-16760,"1,301.66",Imogen Barnett (Immy's House)
Nottinghamshire County Council,1111/1001,Children and Young People,CYP,Third Party Payments,EGA,30/06/2022,03-16761,"12,106.96",Little Lambs Day Nursery
Nottinghamshire County Council,1111/1001,Children and Young People,CYP,Third Party Payments,EGA,30/06/2022,03-16762,786.24,N Stevenson (Childminder)
Nottinghamshire County Council,1111/1001,Children and Young People,CYP,Third Party Payments,EGA,30/06/2022,03-16763,617.34,B Lilley (Childminder)
Nottinghamshire County Council,1111/1001,Children and Young People,CYP,Third Party Payments,EGA,30/06/2022,03-16764,714,S Elliott (Childminder)
Nottinghamshire County Council,1111/1001,Children and Young People,CYP,Third Party Payments,EGA,30/06/2022,03-16765,803.71,J Brosgarth (Childminder)
Nottinghamshire County Council,1111/1001,Children and Young People,CYP,Third Party Payments,EGA,30/06/2022,03-16766,602.78,L Cheetham Childminder
Nottinghamshire County Council,1111/1001,Children and Young People,CYP,Third Party Payments,EGA,30/06/2022,03-16767,742.56,S Whetton Childminder
Nottinghamshire County Council,1111/1001,Children and Young People,CYP,Third Party Payments,EGA,30/06/2022,03-16768,898.17,Kathryn Birks Childminding Service
Nottinghamshire County Council,1111/1001,Children and Young People,CYP,Third Party Payments,EGA,30/06/2022,03-16769,873.6,Liz Stevens (Childminder)
Nottinghamshire County Council,1111/1001,Children and Young People,CYP,Third Party Payments,EGA,30/06/2022,03-16770,943.49,P Verma (Childminder)
Nottinghamshire County Council,1111/1001,Children and Young People,CYP,Third Party Payments,EGA,30/06/2022,03-16771,"11,583.01",Jumacare Ltd T/A Church House Nurse
Nottinghamshire County Council,1111/1001,Children and Young People,CYP,Third Party Payments,EGA,30/06/2022,03-16772,"8,598.59",Child First (Welbeck) Nursery
Nottinghamshire County Council,1111/1001,Children and Young People,CYP,Third Party Payments,EGA,30/06/2022,03-16773,786.24,K Watt Childminder
Nottinghamshire County Council,1111/1001,Children and Young People,CYP,Third Party Payments,EGA,30/06/2022,03-16774,578.76,Elaine Marshall (Childminder)
Nottinghamshire County Council,1111/1001,Children and Young People,CYP,Third Party Payments,EGA,30/06/2022,03-16775,803.71,Alison Plant (Childminder)
Nottinghamshire County Council,1111/1001,Children and Young People,CYP,Third Party Payments,EGA,30/06/2022,03-16776,829.71,C Nazar (Childminder)
Nottinghamshire County Council,1111/1001,Children and Young People,CYP,Third Party Payments,EGA,30/06/2022,03-16777,524.16,J Daxter (Childminder)
Nottinghamshire County Council,1111/1001,Children and Young People,CYP,Third Party Payments,EGA,30/06/2022,03-16778,"1,140.77",Kate's Childminding
Nottinghamshire County Council,1111/1001,Children and Young People,CYP,Third Party Payments,EGA,30/06/2022,03-16779,873.6,Little Bears Corner
Nottinghamshire County Council,1111/1001,Children and Young People,CYP,Third Party Payments,EGA,30/06/2022,03-16780,"4,815.72",Country Kids Day Nursery (Kneesall)
Nottinghamshire County Council,1111/1001,Children and Young People,CYP,Third Party Payments,EGA,30/06/2022,03-16781,"1,135.68",Butterflies Childminding Services
Nottinghamshire County Council,1111/1001,Children and Young People,CYP,Third Party Payments,EGA,30/06/2022,03-16782,"1,324.26",Little House Of Horrors
Nottinghamshire County Council,1111/1001,Children and Young People,CYP,Third Party Payments,EGA,30/06/2022,03-16783,"1,022.11",Ruthies Childcare
Nottinghamshire County Council,1111/1001,Children and Young People,CYP,Third Party Payments,EGA,30/06/2022,03-16784,"4,379.47",Little House Childcare of Brinsley
Nottinghamshire County Council,1111/1001,Children and Young People,CYP,Third Party Payments,EGA,30/06/2022,03-16785,"1,131.31",Green Tot Childcare
Nottinghamshire County Council,1111/1001,Children and Young People,CYP,Third Party Payments,EGA,30/06/2022,03-16786,829.92,E Overton (Childminder)
Nottinghamshire County Council,1111/1001,Children and Young People,CYP,Third Party Payments,EGA,30/06/2022,03-16787,"1,255.59",Jenny's Jelly Tots
Nottinghamshire County Council,1111/1001,Children and Young People,CYP,Third Party Payments,EGA,30/06/2022,03-16788,777.84,R Savage (Childminder)
Nottinghamshire County Council,1111/1001,Children and Young People,CYP,Third Party Payments,EGA,30/06/2022,03-16789,"1,092.00",L Warwick (Childminder)
Nottinghamshire County Council,1111/1001,Children and Young People,CYP,Third Party Payments,EGA,30/06/2022,03-16790,"13,317.58",Luan's Little People Ltd
Nottinghamshire County Council,1111/1001,Children and Young People,CYP,Third Party Payments,EGA,30/06/2022,03-16791,559.1,Fingerprints Childminding
Nottinghamshire County Council,1111/1001,Children and Young People,CYP,Third Party Payments,EGA,30/06/2022,03-16792,"13,147.85",Little Adventures Forest School Ltd
Nottinghamshire County Council,1111/1001,Children and Young People,CYP,Third Party Payments,EGA,30/06/2022,03-16793,567.84,D Taylor (Childminder)
Nottinghamshire County Council,1111/1001,Children and Young People,CYP,Third Party Payments,EGA,30/06/2022,03-16794,524.16,Helping Hands Daycare
Nottinghamshire County Council,1111/1001,Children and Young People,CYP,Third Party Payments,EGA,30/06/2022,03-16795,661.02,S Schneider (Childminder)
Nottinghamshire County Council,1111/1001,Children and Young People,CYP,Third Party Payments,EGA,30/06/2022,03-16796,"2,105.37",L & K's Little Kingdom
Nottinghamshire County Council,1111/1001,Children and Young People,CYP,Third Party Payments,EGA,30/06/2022,03-16797,524.16,Samsam Little Minders
Nottinghamshire County Council,1111/1001,Children and Young People,CYP,Third Party Payments,EGA,30/06/2022,03-16798,"9,449.16",Ryan House Day Nursery
Nottinghamshire County Council,1111/1001,Children and Young People,CYP,Third Party Payments,EGA,30/06/2022,03-16799,"17,352.39",Little Baths Ltd T/A Little PLums D
Nottinghamshire County Council,1111/1001,Children and Young People,CYP,Third Party Payments,EGA,30/06/2022,03-16800,"9,094.11",Lime Trees Day Nursery Ltd
Nottinghamshire County Council,1111/1001,Children and Young People,CYP,Third Party Payments,EGA,30/06/2022,03-16801,"10,773.13",Hollies Day Nursery (Loughborough R
Nottinghamshire County Council,1111/1001,Children and Young People,CYP,Third Party Payments,EGA,30/06/2022,03-16802,"11,088.16",Secret Garden Childcare Ltd
Nottinghamshire County Council,1111/1001,Children and Young People,CYP,Third Party Payments,EGA,30/06/2022,03-16803,"13,790.79",Cherubs (Sutton In Ashfield)
Nottinghamshire County Council,1111/1001,Children and Young People,CYP,Third Party Payments,EGA,30/06/2022,03-16804,"9,158.88",Small People Ltd
Nottinghamshire County Council,1111/1001,Children and Young People,CYP,Third Party Payments,EGA,30/06/2022,03-16805,628.99,E L Smith (Childminder)
Nottinghamshire County Council,1111/1001,Children and Young People,CYP,Third Party Payments,EGA,30/06/2022,03-16806,768.77,Mornington Childcare Services
Nottinghamshire County Council,1111/1001,Children and Young People,CYP,Third Party Payments,EGA,30/06/2022,03-16807,"7,443.17",Little Wrens Day Nursery & Pre Scho
Nottinghamshire County Council,1111/1001,Children and Young People,CYP,Third Party Payments,EGA,30/06/2022,03-16808,769.86,U Tomlinson (Childminder)
Nottinghamshire County Council,1111/1001,Children and Young People,CYP,Third Party Payments,EGA,30/06/2022,03-16809,"11,020.19",Jelly Beans Day Nursery Ltd
Nottinghamshire County Council,1111/1001,Children and Young People,CYP,Third Party Payments,EGA,30/06/2022,03-16810,524.16,Crafty Kids Childminding
Nottinghamshire County Council,1111/1001,Children and Young People,CYP,Third Party Payments,EGA,30/06/2022,03-16811,"6,107.01",Play Days Cottage
Nottinghamshire County Council,1111/1001,Children and Young People,CYP,Third Party Payments,EGA,30/06/2022,03-16812,"2,123.94",New Beginnings Quality Childcare
Nottinghamshire County Council,1111/1001,Children and Young People,CYP,Third Party Payments,EGA,30/06/2022,03-16813,742.56,A Pemberton (Childminder)
Nottinghamshire County Council,1111/1001,Children and Young People,CYP,Third Party Payments,EGA,30/06/2022,03-16814,941.85,Cooper's Nest Childcare
Nottinghamshire County Council,1111/1001,Children and Young People,CYP,Third Party Payments,EGA,30/06/2022,03-16815,"1,528.12",Windmills Childcare
Nottinghamshire County Council,1111/1001,Children and Young People,CYP,Third Party Payments,EGA,30/06/2022,03-16816,611.52,Michelle Maddock (Childminder)
Nottinghamshire County Council,1111/1001,Children and Young People,CYP,Third Party Payments,EGA,30/06/2022,03-16817,803.71,Morags Childminding
Nottinghamshire County Council,1111/1001,Children and Young People,CYP,Third Party Payments,EGA,30/06/2022,03-16818,"5,994.37",Country Kids Day Nursery (Newark)
Nottinghamshire County Council,1111/1001,Children and Young People,CYP,Third Party Payments,EGA,30/06/2022,03-16819,"4,717.96",Country Kids Nursery (Rainworth)
Nottinghamshire County Council,1111/1001,Children and Young People,CYP,Third Party Payments,EGA,30/06/2022,03-16820,924.42,Tiki Tots Daycare
Nottinghamshire County Council,1111/1001,Children and Young People,CYP,Third Party Payments,EGA,30/06/2022,03-16821,813.54,Jennytots Childcare
Nottinghamshire County Council,1111/1001,Children and Young People,CYP,Third Party Payments,EGA,30/06/2022,03-16822,"13,438.77",Crocodile Rock Day Care Ltd
Nottinghamshire County Council,1111/1001,Children and Young People,CYP,Third Party Payments,EGA,30/06/2022,03-16823,"4,911.36",Windmills Childcare
Nottinghamshire County Council,1111/1001,Children and Young People,CYP,Third Party Payments,EGA,30/06/2022,03-16824,524.16,Blossoms Childcare
Nottinghamshire County Council,1111/1001,Children and Young People,CYP,Third Party Payments,EGA,30/06/2022,03-16825,"1,205.57",C Evans (Childminder)
Nottinghamshire County Council,1111/1001,Children and Young People,CYP,Third Party Payments,EGA,30/06/2022,03-16826,"1,790.88",E Severs (Childminder)
Nottinghamshire County Council,1111/1001,Children and Young People,CYP,Third Party Payments,EGA,30/06/2022,03-16827,698.88,D H Childminding
Nottinghamshire County Council,1111/1001,Children and Young People,CYP,Third Party Payments,EGA,30/06/2022,03-16828,"5,466.67",Cherubs (Edwinstowe)
Nottinghamshire County Council,1111/1001,Children and Young People,CYP,Third Party Payments,EGA,30/06/2022,03-16829,917.28,M Tyreman (Childminder)
Nottinghamshire County Council,1111/1001,Children and Young People,CYP,Third Party Payments,EGA,30/06/2022,03-16830,"2,620.80",M Dodgson (Chidminder)
Nottinghamshire County Council,1111/1001,Children and Young People,CYP,Third Party Payments,EGA,30/06/2022,03-16831,"9,025.38",Cherubs (Ruddington)
Nottinghamshire County Council,1111/1001,Children and Young People,CYP,Third Party Payments,EGA,30/06/2022,03-16832,"18,988.38",Hucknall Day Nursery Ltd
Nottinghamshire County Council,1111/1001,Children and Young People,CYP,Third Party Payments,EGA,30/06/2022,03-16833,"8,176.38",Lime Trees (Cropwell Bishop)
Nottinghamshire County Council,1111/1001,Children and Young People,CYP,Third Party Payments,EGA,30/06/2022,03-16834,"7,728.24",Lime Trees (Kirkby West)
Nottinghamshire County Council,1111/1001,Children and Young People,CYP,Third Party Payments,EGA,30/06/2022,03-16835,896.02,Little Munchkins Childminding
Nottinghamshire County Council,1111/1001,Children and Young People,CYP,Third Party Payments,EGA,30/06/2022,03-16836,"3,254.16",Lime Trees (Netherfield)
Nottinghamshire County Council,1111/1001,Children and Young People,CYP,Third Party Payments,EGA,30/06/2022,03-16837,"14,545.96",Little Lambs Day Nursery (Kirkby in
Nottinghamshire County Council,1111/1001,Children and Young People,CYP,Third Party Payments,EGA,30/06/2022,03-16838,640.64,Daisy's Childminding
Nottinghamshire County Council,1111/1001,Children and Young People,CYP,Third Party Payments,EGA,30/06/2022,03-16839,524.16,L Wragg (Childminder)
Nottinghamshire County Council,1111/1001,Children and Young People,CYP,Third Party Payments,EGA,30/06/2022,03-16840,"3,202.29",Little Explorers
Nottinghamshire County Council,1111/1001,Children and Young People,CYP,Third Party Payments,EGA,30/06/2022,03-16841,"1,640.73",Kangaroo Teacher Led Childcare Ltd
Nottinghamshire County Council,1111/1001,Children and Young People,CYP,Third Party Payments,EGA,30/06/2022,03-16842,"5,222.45",Poppy & Jacks Ltd
Nottinghamshire County Council,1111/1001,Children and Young People,CYP,Third Party Payments,EGA,30/06/2022,03-16843,"10,182.68",Redwood Scholars Schools LtdT/A Alp
Nottinghamshire County Council,1111/1001,Children and Young People,CYP,Third Party Payments,EGA,30/06/2022,03-16844,698.88,Ems Gems
Nottinghamshire County Council,1111/1001,Children and Young People,CYP,Third Party Payments,EGA,30/06/2022,03-16845,"7,454.72",Playroom Nursery
Nottinghamshire County Council,1111/1001,Children and Young People,CYP,Third Party Payments,EGA,30/06/2022,03-16846,823.16,Lou Lous Childminding
Nottinghamshire County Council,1111/1001,Children and Young People,CYP,Third Party Payments,EGA,30/06/2022,03-16847,"1,048.32",Little Gems Childminding
Nottinghamshire County Council,1111/1001,Children and Young People,CYP,Third Party Payments,EGA,30/06/2022,03-16848,941.85,S Greger (Childminder)
Nottinghamshire County Council,1111/1001,Children and Young People,CYP,Third Party Payments,EGA,30/06/2022,03-16849,873.6,M Mckay (Childminder)
Nottinghamshire County Council,1111/1001,Children and Young People,CYP,Third Party Payments,EGA,30/06/2022,03-16850,"9,415.02",Cherubs (Mapperley)
Nottinghamshire County Council,1111/1001,Children and Young People,CYP,Third Party Payments,EGA,30/06/2022,03-16851,527.8,Fun Flamingos Childminding
Nottinghamshire County Council,1111/1001,Children and Young People,CYP,Third Party Payments,EGA,30/06/2022,03-16852,"3,728.43",Welcome Nursery (Mansfield)
Nottinghamshire County Council,1111/1001,Children and Young People,CYP,Third Party Payments,EGA,30/06/2022,03-16853,"1,670.76",Phoenix Kindergarten CIC
Nottinghamshire County Council,1111/1001,Children and Young People,CYP,Third Party Payments,EGA,30/06/2022,03-16854,"2,393.30",Diggory�s Day Nursery Ltd
Nottinghamshire County Council,1111/1001,Children and Young People,CYP,Third Party Payments,EGA,30/06/2022,03-16855,"2,649.92",Little Elms Pre-school (Oxton)
Nottinghamshire County Council,1111/1001,Children and Young People,CYP,Third Party Payments,EGA,30/06/2022,03-16856,655.2,Little Sunshines TLC
Nottinghamshire County Council,1111/1001,Children and Young People,CYP,Third Party Payments,EGA,30/06/2022,03-16857,"1,639.32",Busy Bees (Edwalton)
Nottinghamshire County Council,1111/1001,Children and Young People,CYP,Third Party Payments,EGA,30/06/2022,03-16858,567.84,Eden Adventures Childminding
Nottinghamshire County Council,1111/1001,Children and Young People,CYP,Third Party Payments,EGA,30/06/2022,03-16859,"1,177.72",Little Adventurers Forest School Wa
Nottinghamshire County Council,1111/1001,Children and Young People,CYP,Third Party Payments,EGA,30/06/2022,03-16860,"1,592.66",Country Kids Day Nursery (Farndon)
Nottinghamshire County Council,1111/1001,Children and Young People,CYP,Third Party Payments,EGA,30/06/2022,03-16861,"11,349.61",Purley Green Ltd
Nottinghamshire County Council,1111/1001,Children and Young People,CYP,Third Party Payments,EGA,30/06/2022,03-16862,"8,968.05",Welcome Nurseries (Ollerton)
Nottinghamshire County Council,1111/1001,Children and Young People,CYP,Third Party Payments,EGA,30/06/2022,03-16863,"7,938.84",Holly House Nursery (Doncaster) Ltd
Nottinghamshire County Council,1111/1001,Children and Young People,CYP,Third Party Payments,EGA,30/06/2022,03-16864,"9,883.23",Hollies Day Nursery Ltd (Mapperley)
Nottinghamshire County Council,1111/1001,Children and Young People,CYP,Transfer Payments,GAA,15/06/2022,03-14265,"6,517.86",Beechnut Property Investments Ltd
Nottinghamshire County Council,1111/1001,Children and Young People,CYP,Transfer Payments,GAA,22/06/2022,03-15882,750,Collins Training Ltd
Nottinghamshire County Council,1111/1001,Children and Young People,CYP,Transfer Payments,GAA,22/06/2022,03-15883,773.6,Right Let Leeds
Nottinghamshire County Council,1111/1001,Children and Young People,CYP,Support Services,HAA,15/06/2022,03-14167,790.4,Nottingham Minibuses & Coaches
Nottinghamshire County Council,1111/1001,Adult Social Care and Health,ASCH,Premises Related,BAA,07/06/2022,03-12734,"8,963.87",ARC Property Services Partnership L
Nottinghamshire County Council,1111/1001,Adult Social Care and Health,ASCH,Premises Related,BAA,08/06/2022,03-12769,682.5,Ball & Sons Ltd
Nottinghamshire County Council,1111/1001,Adult Social Care and Health,ASCH,Premises Related,BAA,08/06/2022,03-12770,519.25,Groundwork Creswell Ashf & Mansf
Nottinghamshire County Council,1111/1001,Adult Social Care and Health,ASCH,Premises Related,BAA,08/06/2022,03-12771,592.25,Groundwork Creswell Ashf & Mansf
Nottinghamshire County Council,1111/1001,Adult Social Care and Health,ASCH,Premises Related,BAA,08/06/2022,03-12772,935.13,Steven Pay
Nottinghamshire County Council,1111/1001,Adult Social Care and Health,ASCH,Premises Related,BAA,09/06/2022,03-12880,643.25,Helping Hands (Notts) Ltd
Nottinghamshire County Council,1111/1001,Adult Social Care and Health,ASCH,Premises Related,BAA,16/06/2022,03-14268,701.37,TMM & Building Ltd
Nottinghamshire County Council,1111/1001,Adult Social Care and Health,ASCH,Premises Related,BAA,17/06/2022,03-14279,"3,973.83",ARC Property Services Partnership L
Nottinghamshire County Council,1111/1001,Adult Social Care and Health,ASCH,Premises Related,BAA,22/06/2022,03-15890,928.52,ARC Property Services Partnership L
Nottinghamshire County Council,1111/1001,Adult Social Care and Health,ASCH,Premises Related,BAA,29/06/2022,03-16494,"3,073.74",ARC Property Services Partnership L
Nottinghamshire County Council,1111/1001,Adult Social Care and Health,ASCH,Premises Related,BDA,08/06/2022,03-12778,124,Calder Conferences Ltd
Nottinghamshire County Council,1111/1001,Adult Social Care and Health,ASCH,Transport Related,CAA,01/06/2022,03-10043,"1,161.44",UK Fuels Ltd
Nottinghamshire County Council,1111/1001,Adult Social Care and Health,ASCH,Transport Related,CAA,01/06/2022,03-10076,"5,146.50",Via East Midlands Ltd
Nottinghamshire County Council,1111/1001,Adult Social Care and Health,ASCH,Transport Related,CAA,08/06/2022,03-12782,"2,438.14",Via East Midlands Ltd
Nottinghamshire County Council,1111/1001,Adult Social Care and Health,ASCH,Transport Related,CAA,13/06/2022,03-13756,"1,461.22",Via East Midlands Ltd
Nottinghamshire County Council,1111/1001,Adult Social Care and Health,ASCH,Transport Related,CAA,20/06/2022,03-14805,"3,669.52",Via East Midlands Ltd
Nottinghamshire County Council,1111/1001,Adult Social Care and Health,ASCH,Transport Related,CAA,20/06/2022,03-14812,"5,037.50",Via East Midlands Ltd
Nottinghamshire County Council,1111/1001,Adult Social Care and Health,ASCH,Transport Related,CAA,22/06/2022,03-12400,638.05,UK Fuels Ltd
Nottinghamshire County Council,1111/1001,Adult Social Care and Health,ASCH,Transport Related,CAA,27/06/2022,03-16031,843.78,Via East Midlands Ltd
Nottinghamshire County Council,1111/1001,Adult Social Care and Health,ASCH,Transport Related,CAA,29/06/2022,03-12939,"1,982.35",UK Fuels Ltd
Nottinghamshire County Council,1111/1001,Adult Social Care and Health,ASCH,Transport Related,CCA,10/06/2022,03-13460,"2,092.23",Arrow Specialised Transport Ltd
Nottinghamshire County Council,1111/1001,Adult Social Care and Health,ASCH,Transport Related,CCA,10/06/2022,03-13535,"1,906.80",BN Gibson Ltd
Nottinghamshire County Council,1111/1001,Adult Social Care and Health,ASCH,Transport Related,CCA,10/06/2022,03-13564,"1,092.00",Abacus Cars
Nottinghamshire County Council,1111/1001,Adult Social Care and Health,ASCH,Transport Related,CCA,10/06/2022,03-13706,"4,247.88",Nottingham Specialist Transport Ltd
Nottinghamshire County Council,1111/1001,Adult Social Care and Health,ASCH,Transport Related,CCA,15/06/2022,03-14115,"1,731.20",Alpha Cars
Nottinghamshire County Council,1111/1001,Adult Social Care and Health,ASCH,Transport Related,CCA,30/06/2022,03-16867,865.88,Via East Midlands Ltd
Nottinghamshire County Council,1111/1001,Adult Social Care and Health,ASCH,Transport Related,CDA,01/06/2022,03-10137,"1,829.52",SM Travel Yorkshire Ltd
Nottinghamshire County Council,1111/1001,Adult Social Care and Health,ASCH,Transport Related,CDA,07/06/2022,03-12749,682.76,Bridges Transport Ltd
Nottinghamshire County Council,1111/1001,Adult Social Care and Health,ASCH,Transport Related,CDA,07/06/2022,03-12758,"2,354.31",Hawkins Taxis & Transport
Nottinghamshire County Council,1111/1001,Adult Social Care and Health,ASCH,Transport Related,CDA,10/06/2022,03-12915,"1,266.72",D G Private Hire Ltd
Nottinghamshire County Council,1111/1001,Adult Social Care and Health,ASCH,Transport Related,CDA,10/06/2022,03-12928,936,Ideal Cars (Private Hire) Ltd
Nottinghamshire County Council,1111/1001,Adult Social Care and Health,ASCH,Transport Related,CDA,10/06/2022,03-12930,832,Ideal Cars (Private Hire) Ltd
Nottinghamshire County Council,1111/1001,Adult Social Care and Health,ASCH,Transport Related,CDA,10/06/2022,03-13376,507,6 Five 2s
Nottinghamshire County Council,1111/1001,Adult Social Care and Health,ASCH,Transport Related,CDA,10/06/2022,03-13378,691.6,6 Five 2s
Nottinghamshire County Council,1111/1001,Adult Social Care and Health,ASCH,Transport Related,CDA,10/06/2022,03-13411,535.56,200 Cars Ltd
Nottinghamshire County Council,1111/1001,Adult Social Care and Health,ASCH,Transport Related,CDA,10/06/2022,03-13412,"1,497.60",200 Cars Ltd
Nottinghamshire County Council,1111/1001,Adult Social Care and Health,ASCH,Transport Related,CDA,10/06/2022,03-13414,"1,372.80",Ace Of Mansfield Ltd
Nottinghamshire County Council,1111/1001,Adult Social Care and Health,ASCH,Transport Related,CDA,10/06/2022,03-13415,"1,383.20",Acorn Contracts
Nottinghamshire County Council,1111/1001,Adult Social Care and Health,ASCH,Transport Related,CDA,10/06/2022,03-13441,"2,164.95",Arrow Specialised Transport Ltd
Nottinghamshire County Council,1111/1001,Adult Social Care and Health,ASCH,Transport Related,CDA,10/06/2022,03-13480,"2,596.54",Arrow Specialised Transport Ltd
Nottinghamshire County Council,1111/1001,Adult Social Care and Health,ASCH,Transport Related,CDA,10/06/2022,03-13508,665.6,Ng11 Cars
Nottinghamshire County Council,1111/1001,Adult Social Care and Health,ASCH,Transport Related,CDA,10/06/2022,03-13535,953.25,BN Gibson Ltd
Nottinghamshire County Council,1111/1001,Adult Social Care and Health,ASCH,Transport Related,CDA,10/06/2022,03-13537,"3,993.98",BN Gibson Ltd
Nottinghamshire County Council,1111/1001,Adult Social Care and Health,ASCH,Transport Related,CDA,10/06/2022,03-13542,"5,278.88",BN Gibson Ltd
Nottinghamshire County Council,1111/1001,Adult Social Care and Health,ASCH,Transport Related,CDA,10/06/2022,03-13553,"1,506.96",D G Private Hire Ltd
Nottinghamshire County Council,1111/1001,Adult Social Care and Health,ASCH,Transport Related,CDA,10/06/2022,03-13559,665.6,Abacus Cars
Nottinghamshire County Council,1111/1001,Adult Social Care and Health,ASCH,Transport Related,CDA,10/06/2022,03-13560,665.6,Abacus Cars
